Workbook

Sheet FY 2024 TABLE 15
A1: Table 15 of the Superintendent's Annual Report for Virginia
A2: Sources of Financial Support for Expenditures, Total Expenditures for Operations 1, 8 and Total Per Pupil Expenditures for Operations | F2: Per Pupil Expenditure
A3: Fiscal Year 2024
C5: End-of-Year
C6: ADM for | H6: State Retail Sales
C7: Determining | D7: Local 3 | F7: State | H7: And Use Tax 4 | J7: Federal | L7: Total
C8: Cost Per | E8: Per | G8: Per | I8: Per | K8: Per | L8: Expenditures for | M8: Per Pupil
A9: =of:=#REF! ->  | B9: School Division | C9: Pupil 2 | D9: Amount | E9: Pupil | F9: Amount | G9: Pupil | H9: Amount | I9: Pupil | J9: Amount | K9: Pupil | L9: Operations 3 | M9: Expenditure 5
B10: COUNTIES
A11: 1 | B11: Accomack | C11: 4757.35 | D11: 20301910.31 | E11: 4267 | F11: 38445925.8 | G11: 8081 | H11: 6009078.6 | I11: 1263 | J11: 12990612.31 | K11: 2731 | L11: 77747527.02 | M11: 16343
A12: 2 | B12: Albemarle | C12: 13840.91 | D12: 205556956.1 | E12: 14851 | F12: 54836933.58 | G12: 3962 | H12: 21141568.36 | I12: 1527 | J12: 14309384.27 | K12: 1034 | L12: 295844842.3 | M12: 21375
A13: 3 | B13: Alleghany Highlands | C13: 2793.89 | D13: 12426177.34 | E13: 4448 | F13: 25567108.69 | G13: 9151 | H13: 3778505 | I13: 1352 | J13: 5554571.43 | K13: 1988 | L13: 47326362.46 | M13: 16939
A14: 4 | B14: Amelia | C14: 1585.71 | D14: 6860297.83 | E14: 4326 | F14: 12233875.9 | G14: 7715 | H14: 2487402.84 | I14: 1569 | J14: 2772775.26 | K14: 1749 | L14: 24354351.83 | M14: 15359
A15: 5 | B15: Amherst | C15: 3923.25 | D15: 16466172.45 | E15: 4197 | F15: 33423151.54 | G15: 8519 | H15: 5881097.42 | I15: 1499 | J15: 6860015.04 | K15: 1749 | L15: 62630436.45 | M15: 15964
A16: 6 | B16: Appomattox | C16: 2344.19 | D16: 10148796.51 | E16: 4329 | F16: 15411816.94 | G16: 6574 | H16: 3207177.76 | I16: 1368 | J16: 3477853.34 | K16: 1484 | L16: 32245644.55 | M16: 13756
A17: 7 | B17: Arlington | C17: 27856.74 | D17: 600159925.4 | E17: 21545 | F17: 69513951.13 | G17: 2495 | H17: 36550281.63 | I17: 1312 | J17: 24198908.81 | K17: 869 | L17: 730423067 | M17: #1 26,221
A18: 8 | B18: Augusta | C18: 10048.8 | D18: 50762158.65 | E18: 5052 | F18: 68217734.91 | G18: 6789 | H18: 14586709.92 | I18: 1452 | J18: 13716727.31 | K18: 1365 | L18: 147283330.8 | M18: 14657
A19: 9 | B19: Bath | C19: 508.72 | D19: 9005602.55 | E19: 17702 | F19: 1698367.78 | G19: 3339 | H19: 652151.7 | I19: 1282 | J19: 1090342.12 | K19: 2143 | L19: 12446464.15 | M19: 24466
A20: 10 | B20: Bedford County | C20: 8964.5 | D20: 37400216.82 | E20: 4172 | F20: 62368233.7 | G20: 6957 | H20: 15345149.24 | I20: 1712 | J20: 10509970.2 | K20: 1172 | L20: 125623570 | M20: 14013
A21: 11 | B21: Bland | C21: 800.66 | D21: 3839999.25 | E21: 4796 | F21: 6440191.76 | G21: 8044 | H21: 868154.64 | I21: 1084 | J21: 1021955.42 | K21: 1276 | L21: 12170301.07 | M21: 15200
A22: 12 | B22: Botetourt | C22: 4444.62 | D22: 31297801.55 | E22: 7042 | F22: 27171384.89 | G22: 6113 | H22: 6518035.08 | I22: 1466 | J22: 5913943.52 | K22: 1331 | L22: 70901165.04 | M22: 15952
A23: 13 | B23: Brunswick | C23: 1375.73 | D23: 8567464.98 | E23: 6228 | F23: 11991988.24 | G23: 8717 | H23: 2328492.42 | I23: 1693 | J23: 5195240 | K23: 3776 | L23: 28083185.64 | M23: 20413
A24: 14 | B24: Buchanan | C24: 2358.23 | D24: 14571783.37 | E24: 6179 | F24: 16402223.81 | G24: 6955 | H24: 3324974.62 | I24: 1410 | J24: 8408474.07 | K24: 3566 | L24: 42707455.87 | M24: 18110
A25: 15 | B25: Buckingham | C25: 1917.97 | D25: 8749556.75 | E25: 4562 | F25: 16529259.93 | G25: 8618 | H25: 2933466.32 | I25: 1529 | J25: 5324987.85 | K25: 2776 | L25: 33537270.85 | M25: 17486
A26: 16 | B26: Campbell | C26: 7829.17 | D26: 32294254.42 | E26: 4125 | F26: 54708130.95 | G26: 6988 | H26: 10686108.94 | I26: 1365 | J26: 11568396.16 | K26: 1478 | L26: 109256890.5 | M26: 13955
A27: 17 | B27: Caroline | C27: 4532.9 | D27: 19511476.21 | E27: 4304 | F27: 28728302.83 | G27: 6338 | H27: 6552062.7 | I27: 1445 | J27: 8821657.38 | K27: 1946 | L27: 63613499.12 | M27: 14034
A28: 18 | B28: Carroll | C28: 3428.88 | D28: 14007027.99 | E28: 4085 | F28: 28577384.52 | G28: 8334 | H28: 5016922.1 | I28: 1463 | J28: 15910244.72 | K28: 4640 | L28: 63511579.33 | M28: 18523
A29: 19 | B29: Charles City | C29: 526.05 | D29: 7231532.83 | E29: 13747 | F29: 3262132.56 | G29: 6201 | H29: 925859.82 | I29: 1760 | J29: 1976276.76 | K29: 3757 | L29: 13395801.97 | M29: #2 25,465
A30: 20 | B30: Charlotte | C30: 1688.09 | D30: 5429180.1 | E30: 3216 | F30: 15875335.5 | G30: 9404 | H30: 2229052.6 | I30: 1320 | J30: 4860299.45 | K30: 2879 | L30: 28393867.65 | M30: 16820
A31: 21 | B31: Chesterfield | C31: 63681.57 | D31: 355253635.1 | E31: 5579 | F31: 403356295.5 | G31: 6334 | H31: 83195164.98 | I31: 1306 | J31: 82239153.87 | K31: 1291 | L31: 924044249.5 | M31: 14510
A32: 22 | B32: Clarke | C32: 1920.96 | D32: 16096516.72 | E32: 8379 | F32: 8171242.77 | G32: 4254 | H32: 2907973.28 | I32: 1514 | J32: 1955318.43 | K32: 1018 | L32: 29131051.2 | M32: 15165
A33: 23 | B33: Craig | C33: 468.23 | D33: 2692838.12 | E33: 5751 | F33: 3902896.33 | G33: 8335 | H33: 873787.22 | I33: 1866 | J33: 929587.72 | K33: 1985 | L33: 8399109.39 | M33: 17938
A34: 24 | B34: Culpeper | C34: 8361.54 | D34: 41117224.36 | E34: 4917 | F34: 51590992.1 | G34: 6170 | H34: 12031532.22 | I34: 1439 | J34: 9975229.75 | K34: 1193 | L34: 114714978.4 | M34: 13719
A35: 25 | B35: Cumberland | C35: 1239.91 | D35: 5634981.27 | E35: 4545 | F35: 11666385.37 | G35: 9409 | H35: 1789701.3 | I35: 1443 | J35: 3869783.37 | K35: 3121 | L35: 22960851.31 | M35: 18518
A36: 26 | B36: Dickenson | C36: 1861.65 | D36: 3732985.78 | E36: 2005 | F36: 18413595.62 | G36: 9891 | H36: 2577190.82 | I36: 1384 | J36: 6191589 | K36: 3326 | L36: 30915361.22 | M36: 16606
A37: 27 | B37: Dinwiddie | C37: 4230.79 | D37: 18491934.64 | E37: 4371 | F37: 34694167.12 | G37: 8200 | H37: 5595646.28 | I37: 1323 | J37: 9923420.44 | K37: 2346 | L37: 68705168.48 | M37: 16239
A38: 28 | B38: Essex | C38: 1125.35 | D38: 7504387.49 | E38: 6668 | F38: 8507832.24 | G38: 7560 | H38: 1828561.22 | I38: 1625 | J38: 3170632.96 | K38: 2817 | L38: 21011413.91 | M38: 18671
A39: 29 | B39: Fairfax County/City6 | C39: 180750.19 | D39: 2516163150 | E39: 13921 | F39: 733162446.9 | G39: 4056 | H39: 248417057.2 | I39: 1374 | J39: 235609690.5 | K39: 1304 | L39: 3733352345 | M39: 20655
A40: 30 | B40: Fauquier | C40: 10805.28 | D40: 98445972.28 | E40: 9111 | F40: 50142788.81 | G40: 4641 | H40: 16230711.24 | I40: 1502 | J40: 11861417.79 | K40: 1098 | L40: 176680890.1 | M40: 16351
A41: 31 | B41: Floyd | C41: 1704.86 | D41: 7369538.45 | E41: 4323 | F41: 12696421.78 | G41: 7447 | H41: 2801469.86 | I41: 1643 | J41: 3042277.04 | K41: 1784 | L41: 25909707.13 | M41: 15198
A42: 32 | B42: Fluvanna | C42: 3349.09 | D42: 21031656.11 | E42: 6280 | F42: 22689018.55 | G42: 6775 | H42: 5074679.12 | I42: 1515 | J42: 4421645.11 | K42: 1320 | L42: 53216998.89 | M42: 15890
A43: 33 | B43: Franklin | C43: 6087.13 | D43: 36650385.98 | E43: 6021 | F43: 42515268.29 | G43: 6984 | H43: 9613771.5 | I43: 1579 | J43: 15050494.94 | K43: 2473 | L43: 103829920.7 | M43: 17057
A44: 34 | B44: Frederick | C44: 14269.21 | D44: 105342642.5 | E44: 7383 | F44: 85236783.76 | G44: 5973 | H44: 20245760.72 | I44: 1419 | J44: 13693034.86 | K44: 960 | L44: 224518221.8 | M44: 15734
A45: 35 | B45: Giles | C45: 3550.48 | D45: 9297560.72 | E45: 2619 | F45: 28614088.17 | G45: 8059 | H45: 3150443 | I45: 887 | J45: 4365780.07 | K45: 1230 | L45: 45427871.96 | M45: 12795
A46: 36 | B46: Gloucester | C46: 4938.68 | D46: 35842271.06 | E46: 7257 | F46: 31302554.3 | G46: 6338 | H46: 7295826.62 | I46: 1477 | J46: 6954448.11 | K46: 1408 | L46: 81395100.09 | M46: 16481
A47: 37 | B47: Goochland | C47: 2583.23 | D47: 28832320.64 | E47: 11161 | F47: 6154330.85 | G47: 2382 | H47: 4183402.76 | I47: 1619 | J47: 2508836.37 | K47: 971 | L47: 41678890.62 | M47: 16134
A48: 38 | B48: Grayson | C48: 1566.98 | D48: 7535565.15 | E48: 4809 | F48: 12564571.63 | G48: 8018 | H48: 2324689.62 | I48: 1484 | J48: 4591055.8 | K48: 2930 | L48: 27015882.2 | M48: 17241
A49: 39 | B49: Greene | C49: 2833.09 | D49: 13365740.15 | E49: 4718 | F49: 20135225.79 | G49: 7107 | H49: 4473284.56 | I49: 1579 | J49: 4995033.68 | K49: 1763 | L49: 42969284.18 | M49: 15167
A50: 40 | B50: Greensville/Emporia 6 | C50: 2037.12 | D50: 11504739.95 | E50: 5648 | F50: 16365411.28 | G50: 8034 | H50: 2764437.61 | I50: 1357 | J50: 9368350.58 | K50: 4599 | L50: 40002939.42 | M50: 19637
A51: 41 | B51: Halifax | C51: 4537.15 | D51: 16079768.5 | E51: 3544 | F51: 41889144.86 | G51: 9232 | H51: 6288195.26 | I51: 1386 | J51: 12624957.6 | K51: 2783 | L51: 76882066.22 | M51: 16945
A52: 42 | B52: Hanover | C52: 16794.66 | D52: 122366751.3 | E52: 7286 | F52: 90056926.46 | G52: 5362 | H52: 21739951.54 | I52: 1294 | J52: 12453299.5 | K52: 742 | L52: 246616928.8 | M52: 14684
A53: 43 | B53: Henrico | C53: 50421.86 | D53: 342333525.3 | E53: 6789 | F53: 255578863.6 | G53: 5069 | H53: 79059028.7 | I53: 1568 | J53: 77308726.35 | K53: 1533 | L53: 754280143.9 | M53: 14959
A54: 44 | B54: Henry | C54: 6917.8 | D54: 17338022.03 | E54: 2506 | F54: 62356427.08 | G54: 9014 | H54: 9269739.18 | I54: 1340 | J54: 15866461.92 | K54: 2294 | L54: 104830650.2 | M54: 15154
A55: 45 | B55: Highland | C55: 212 | D55: 2598142 | E55: 12255 | F55: 1879877.15 | G55: 8867 | H55: 289118.74 | I55: 1364 | J55: 428399.15 | K55: 2021 | L55: 5195537.04 | M55: #4 24,507
A56: 46 | B56: Isle Of Wight | C56: 5573.26 | D56: 31953033.26 | E56: 5733 | F56: 35655110.22 | G56: 6398 | H56: 8103957.66 | I56: 1454 | J56: 6221627.22 | K56: 1116 | L56: 81933728.36 | M56: 14701
A57: 48 | B57: King George | C57: 4492.14 | D57: 24064681.23 | E57: 5357 | F57: 26559837.41 | G57: 5913 | H57: 6434924.34 | I57: 1432 | J57: 5067817.02 | K57: 1128 | L57: 62127260 | M57: 13830
A58: 49 | B58: King & Queen | C58: 849.05 | D58: 4973194.87 | E58: 5857 | F58: 6973185.41 | G58: 8213 | H58: 1049422.12 | I58: 1236 | J58: 1939054.79 | K58: 2284 | L58: 14934857.19 | M58: 17590
A59: 50 | B59: King William | C59: 2094.34 | D59: 10862289.21 | E59: 5186 | F59: 14066504.06 | G59: 6716 | H59: 2931456.92 | I59: 1400 | J59: 3037129.57 | K59: 1450 | L59: 30897379.76 | M59: 14753
A60: 51 | B60: Lancaster | C60: 1016.73 | D60: 12801412.78 | E60: 12591 | F60: 2511760.36 | G60: 2470 | H60: 1472485.46 | I60: 1448 | J60: 2208899.87 | K60: 2173 | L60: 18994558.47 | M60: 18682
A61: 52 | B61: Lee | C61: 2982.65 | D61: 11160240.39 | E61: 3742 | F61: 25867806.58 | G61: 8673 | H61: 4059931.04 | I61: 1361 | J61: 10189091.45 | K61: 3416 | L61: 51277069.46 | M61: 17192
A62: 53 | B62: Loudoun | C62: 82439.13 | D62: 1205785798 | E62: 14626 | F62: 388687169.7 | G62: 4715 | H62: 110131367.5 | I62: 1336 | J62: 41696474.3 | K62: 506 | L62: 1746300809 | M62: 21183
A63: 54 | B63: Louisa | C63: 5135.66 | D63: 38215682.74 | E63: 7441 | F63: 27700966.18 | G63: 5394 | H63: 7243604.88 | I63: 1410 | J63: 13105606.56 | K63: 2552 | L63: 86265860.36 | M63: 16797
A64: 55 | B64: Lunenburg | C64: 1573.36 | D64: 6469118.42 | E64: 4112 | F64: 14287731.07 | G64: 9081 | H64: 2189889.52 | I64: 1392 | J64: 3768719.67 | K64: 2395 | L64: 26715458.68 | M64: 16980
A65: 56 | B65: Madison | C65: 1668.53 | D65: 10409786.75 | E65: 6239 | F65: 9766206.52 | G65: 5853 | H65: 2732885.16 | I65: 1638 | J65: 2886185.99 | K65: 1730 | L65: 25795064.42 | M65: 15460
A66: 57 | B66: Mathews | C66: 821.34 | D66: 10169781.66 | E66: 12382 | F66: 4512891.25 | G66: 5495 | H66: 1282304.4 | I66: 1561 | J66: 1537350.65 | K66: 1872 | L66: 17502327.96 | M66: 21309
A67: 58 | B67: Mecklenburg | C67: 3865.22 | D67: 22278029.55 | E67: 5764 | F67: 27854362.24 | G67: 7206 | H67: 5067331.46 | I67: 1311 | J67: 9008409.03 | K67: 2331 | L67: 64208132.28 | M67: 16612
A68: 59 | B68: Middlesex | C68: 1214.67 | D68: 12080478.16 | E68: 9945 | F68: 5181533.48 | G68: 4266 | H68: 1464062.2 | I68: 1205 | J68: 2585385.83 | K68: 2128 | L68: 21311459.67 | M68: 17545
A69: 60 | B69: Montgomery | C69: 9566.78 | D69: 61082589.1 | E69: 6385 | F69: 57639221.54 | G69: 6025 | H69: 15057624.22 | I69: 1574 | J69: 10840244.03 | K69: 1133 | L69: 144619678.9 | M69: 15117
A70: 62 | B70: Nelson | C70: 1474.85 | D70: 19139466.19 | E70: 12977 | F70: 5963577.91 | G70: 4044 | H70: 2327424.06 | I70: 1578 | J70: 4672098.45 | K70: 3168 | L70: 32102566.61 | M70: 21767
A71: 63 | B71: New Kent | C71: 3541.44 | D71: 20636224.28 | E71: 5827 | F71: 19977592.2 | G71: 5641 | H71: 4515712.7 | I71: 1275 | J71: 4112658.54 | K71: 1161 | L71: 49242187.72 | M71: 13905
A72: 65 | B72: Northampton | C72: 1320.31 | D72: 10350119.92 | E72: 7839 | F72: 9312765.67 | G72: 7053 | H72: 2028798.94 | I72: 1537 | J72: 3879730.51 | K72: 2938 | L72: 25571415.04 | M72: 19368
A73: 66 | B73: Northumberland | C73: 1162.79 | D73: 13041783.96 | E73: 11216 | F73: 4361660.45 | G73: 3751 | H73: 1575274.2 | I73: 1355 | J73: 4221818.53 | K73: 3631 | L73: 23200537.14 | M73: 19952
A74: 67 | B74: Nottoway | C74: 1824.6 | D74: 6524056.1 | E74: 3576 | F74: 16102976.44 | G74: 8825 | H74: 2654424.66 | I74: 1455 | J74: 8543356.8 | K74: 4682 | L74: 33824814 | M74: 18538
A75: 68 | B75: Orange | C75: 5052.56 | D75: 23465194.88 | E75: 4644 | F75: 32678491.03 | G75: 6468 | H75: 7088479.6 | I75: 1403 | J75: 9081200.38 | K75: 1797 | L75: 72313365.89 | M75: 14312
A76: 69 | B76: Page | C76: 2985.71 | D76: 14550186.59 | E76: 4873 | F76: 24312912.68 | G76: 8143 | H76: 4311941.46 | I76: 1444 | J76: 4867830.88 | K76: 1630 | L76: 48042871.61 | M76: 16091
A77: 70 | B77: Patrick | C77: 2354.4 | D77: 7599643.61 | E77: 3228 | F77: 20951461.31 | G77: 8899 | H77: 2994225.84 | I77: 1272 | J77: 4574440.6 | K77: 1943 | L77: 36119771.36 | M77: 15341
A78: 71 | B78: Pittsylvania | C78: 7792.09 | D78: 31625491.03 | E78: 4059 | F78: 64712671.21 | G78: 8305 | H78: 11047495.18 | I78: 1418 | J78: 21828450.39 | K78: 2801 | L78: 129214107.8 | M78: 16583
A79: 72 | B79: Powhatan | C79: 4171.94 | D79: 30366923.29 | E79: 7279 | F79: 20549860.96 | G79: 4926 | H79: 6087339.48 | I79: 1459 | J79: 3717088.18 | K79: 891 | L79: 60721211.91 | M79: 14555
A80: 73 | B80: Prince Edward | C80: 1860.26 | D80: 8240612.24 | E80: 4430 | F80: 14603312.67 | G80: 7850 | H80: 3140520.02 | I80: 1688 | J80: 7210545.75 | K80: 3876 | L80: 33194990.68 | M80: 17844
A81: 74 | B81: Prince George | C81: 6125.02 | D81: 17302842.88 | E81: 2825 | F81: 48584412.71 | G81: 7932 | H81: 8039174.76 | I81: 1313 | J81: 11574336.55 | K81: 1890 | L81: 85500766.9 | M81: 13959
A82: 75 | B82: Prince William | C82: 90689.17 | D82: 677772899.5 | E82: 7474 | F82: 647995659 | G82: 7145 | H82: 118304436.8 | I82: 1305 | J82: 95403303.75 | K82: 1052 | L82: 1539476299 | M82: 16975
A83: 77 | B83: Pulaski | C83: 4322.39 | D83: 16939009.43 | E83: 3919 | F83: 34272843.74 | G83: 7929 | H83: 5591687.3 | I83: 1294 | J83: 10923409.93 | K83: 2527 | L83: 67726950.4 | M83: 15669
A84: 78 | B84: Rappahannock | C84: 771.87 | D84: 11591984.68 | E84: 15018 | F84: 2014663.07 | G84: 2610 | H84: 1170817.9 | I84: 1517 | J84: 696835.63 | K84: 903 | L84: 15474301.28 | M84: 20048
A85: 79 | B85: Richmond | C85: 1367.8 | D85: 5868342.19 | E85: 4290 | F85: 10467608.74 | G85: 7653 | H85: 1477835.4 | I85: 1080 | J85: 2572761.57 | K85: 1881 | L85: 20386547.9 | M85: 14905
A86: 80 | B86: Roanoke | C86: 13715.82 | D86: 99644432.31 | E86: 7265 | F86: 84782399.36 | G86: 6181 | H86: 18841607.68 | I86: 1374 | J86: 15288695.32 | K86: 1115 | L86: 218557134.7 | M86: 15935
A87: 81 | B87: Rockbridge | C87: 2309.58 | D87: 20599870.66 | E87: 8919 | F87: 12160049.45 | G87: 5265 | H87: 3930632.36 | I87: 1702 | J87: 4501553.24 | K87: 1949 | L87: 41192105.71 | M87: 17835
A88: 82 | B88: Rockingham | C88: 11554.51 | D88: 69375129.9 | E88: 6004 | F88: 77932979.89 | G88: 6745 | H88: 17264686.12 | I88: 1494 | J88: 14355156.79 | K88: 1242 | L88: 178927952.7 | M88: 15486
A89: 83 | B89: Russell | C89: 3415.33 | D89: 8079234.53 | E89: 2366 | F89: 31168265.57 | G89: 9126 | H89: 4593851.46 | I89: 1345 | J89: 7869721.34 | K89: 2304 | L89: 51711072.9 | M89: 15141
A90: 84 | B90: Scott | C90: 4251.93 | D90: 11797633.95 | E90: 2775 | F90: 46390522.5 | G90: 10910 | H90: 3885890.02 | I90: 914 | J90: 8003398.56 | K90: 1882 | L90: 70077445.03 | M90: 16481
A91: 85 | B91: Shenandoah | C91: 5655.02 | D91: 32812512.33 | E91: 5802 | F91: 38215257.63 | G91: 6758 | H91: 8713701.38 | I91: 1541 | J91: 11194554.02 | K91: 1980 | L91: 90936025.36 | M91: 16081
A92: 86 | B92: Smyth | C92: 3869.45 | D92: 12911420.64 | E92: 3337 | F92: 36119918.68 | G92: 9335 | H92: 5516111.06 | I92: 1426 | J92: 12530099.43 | K92: 3238 | L92: 67077549.81 | M92: 17335
A93: 87 | B93: Southampton | C93: 2472.54 | D93: 12096466.55 | E93: 4892 | F93: 19994846.27 | G93: 8087 | H93: 3264371.78 | I93: 1320 | J93: 3713774.82 | K93: 1502 | L93: 39069459.42 | M93: 15801
A94: 88 | B94: Spotsylvania | C94: 23865.69 | D94: 139265102.3 | E94: 5835 | F94: 152930852.5 | G94: 6408 | H94: 33052930.34 | I94: 1385 | J94: 31468132.42 | K94: 1319 | L94: 356717017.6 | M94: 14947
A95: 89 | B95: Stafford | C95: 31662.95 | D95: 163413016 | E95: 5161 | F95: 206751753.6 | G95: 6530 | H95: 41058860.32 | I95: 1297 | J95: 33389600.15 | K95: 1055 | L95: 444613230 | M95: 14042
A96: 90 | B96: Surry | C96: 689.88 | D96: 12613305.32 | E96: 18283 | F96: 2538954.71 | G96: 3680 | H96: 923003.34 | I96: 1338 | J96: 2860548.83 | K96: 4146 | L96: 18935812.2 | M96: 27448
A97: 91 | B97: Sussex | C97: 1010.28 | D97: 9582629.93 | E97: 9485 | F97: 9399397.24 | G97: 9304 | H97: 1451133.32 | I97: 1436 | J97: 5036801.66 | K97: 4986 | L97: 25469962.15 | M97: #3 25211
A98: 92 | B98: Tazewell | C98: 5271.56 | D98: 12327601.66 | E98: 2339 | F98: 43450643.98 | G98: 8242 | H98: 7060490.68 | I98: 1339 | J98: 27850303.31 | K98: 5283 | L98: 90689039.63 | M98: 17203
A99: 93 | B99: Warren | C99: 5107.37 | D99: 29942674.74 | E99: 5863 | F99: 29004671.25 | G99: 5679 | H99: 8236772.16 | I99: 1613 | J99: 9639194.33 | K99: 1887 | L99: 76823312.48 | M99: 15042
A100: 94 | B100: Washington | C100: 6748.62 | D100: 30707807.45 | E100: 4550 | F100: 48500300.04 | G100: 7187 | H100: 9435442.04 | I100: 1398 | J100: 12428255.89 | K100: 1842 | L100: 101071805.4 | M100: 14977
A101: 95 | B101: Westmoreland | C101: 1554.5 | D101: 11927428.81 | E101: 7673 | F101: 13392381.65 | G101: 8615 | H101: 2350574.63 | I101: 1512 | J101: 3667201.23 | K101: 2359 | L101: 31337586.32 | M101: 20159
A102: 96 | B102: Wise | C102: 5815.5 | D102: 22604790.2 | E102: 3887 | F102: 40540527.42 | G102: 6971 | H102: 6641582.14 | I102: 1142 | J102: 13058467.99 | K102: 2245 | L102: 82845367.75 | M102: 14246
A103: 97 | B103: Wythe | C103: 3766.37 | D103: 19451363.86 | E103: 5164 | F103: 23859612.67 | G103: 6335 | H103: 5179688.22 | I103: 1375 | J103: 7559924.78 | K103: 2007 | L103: 56050589.53 | M103: 14882
A104: 98 | B104: York | C104: 13021.98 | D104: 70859963.87 | E104: 5442 | F104: 81691612.7 | G104: 6273 | H104: 16340826.56 | I104: 1255 | J104: 24170677.25 | K104: 1856 | L104: 193063080.4 | M104: 14826
B105: CITIES
A106: 101 | B106: Alexandria | C106: 16572.83 | D106: 266541686.8 | E106: 16083 | F106: 43610265.23 | G106: 2631 | H106: 23096056.06 | I106: 1394 | J106: 36002823.25 | K106: 2172 | L106: 369250831.3 | M106: 22280
A107: 102 | B107: Bristol | C107: 2151.45 | D107: 11244732.35 | E107: 5227 | F107: 16746303 | G107: 7784 | H107: 3268153.54 | I107: 1519 | J107: 9452778.46 | K107: 4394 | L107: 40711967.35 | M107: 18923
A108: 103 | B108: Buena Vista | C108: 831.72 | D108: 2185009.85 | E108: 2627 | F108: 8749364.92 | G108: 10520 | H108: 1194872.88 | I108: 1437 | J108: 2286518.74 | K108: 2749 | L108: 14415766.39 | M108: 17332
A109: 104 | B109: Charlottesville | C109: 4341.47 | D109: 54256299.53 | E109: 12497 | F109: 17418654.67 | G109: 4012 | H109: 6914493.96 | I109: 1593 | J109: 16647159.5 | K109: 3834 | L109: 95236607.66 | M109: 21936
A110: 106 | B110: Colonial Heights | C110: 2904.04 | D110: 23992076.49 | E110: 8262 | F110: 19205090.27 | G110: 6613 | H110: 3711607.6 | I110: 1278 | J110: 3937290.2 | K110: 1356 | L110: 50846064.56 | M110: 17509
A111: 107 | B111: Covington
A112: 108 | B112: Danville | C112: 5528.54 | D112: 32888958.22 | E112: 5949 | F112: 51235746.5 | G112: 9268 | H112: 8308084.63 | I112: 1503 | J112: 26063683.3 | K112: 4714 | L112: 118496472.7 | M112: 21434
A113: 109 | B113: Falls Church | C113: 2631.12 | D113: 53341476.34 | E113: 20273 | F113: 9258456.23 | G113: 3519 | H113: 3457469.62 | I113: 1314 | J113: 1732588.84 | K113: 658 | L113: 67789991.03 | M113: 25765
A114: 110 | B114: Fredericksburg | C114: 3489.61 | D114: 33030875.92 | E114: 9465 | F114: 18033944.87 | G114: 5168 | H114: 4841825.26 | I114: 1387 | J114: 11981173.19 | K114: 3433 | L114: 67887819.24 | M114: 19454
A115: 111 | B115: Galax | C115: 1417.03 | D115: 5547148.67 | E115: 3915 | F115: 11943400.87 | G115: 8428 | H115: 1462158.64 | I115: 1032 | J115: 3829385.54 | K115: 2702 | L115: 22782093.72 | M115: 16077
A116: 112 | B116: Hampton | C116: 19611.6 | D116: 97340527.34 | E116: 4963 | F116: 144734033.7 | G116: 7380 | H116: 24957064.98 | I116: 1273 | J116: 53715767.57 | K116: 2739 | L116: 320747393.6 | M116: 16355
A117: 113 | B117: Harrisonburg | C117: 6801.6 | D117: 36683742.59 | E117: 5393 | F117: 54691893.23 | G117: 8041 | H117: 8455384.46 | I117: 1243 | J117: 14961405.35 | K117: 2200 | L117: 114792425.6 | M117: 16877
A118: 114 | B118: Hopewell | C118: 3895.97 | D118: 13505251.83 | E118: 3466 | F118: 37011863.69 | G118: 9500 | H118: 5023482.38 | I118: 1289 | J118: 13508800.69 | K118: 3467 | L118: 69049398.59 | M118: 17723
A119: 115 | B119: Lynchburg | C119: 7667.56 | D119: 36785186.45 | E119: 4798 | F119: 56284187.53 | G119: 7341 | H119: 12951896.7 | I119: 1689 | J119: 32175497.99 | K119: 4196 | L119: 138196768.7 | M119: 18024
A120: 116 | B120: Martinsville | C120: 1813.4 | D120: 6486094.29 | E120: 3577 | F120: 18591566.5 | G120: 10252 | H120: 2658574.06 | I120: 1466 | J120: 8288785.99 | K120: 4571 | L120: 36025020.84 | M120: 19866
A121: 117 | B121: Newport News | C121: 26035.99 | D121: 132157760.2 | E121: 5076 | F121: 225045384.7 | G121: 8644 | H121: 35642470.74 | I121: 1369 | J121: 107357802.8 | K121: 4123 | L121: 500203418.5 | M121: 19212
A122: 118 | B122: Norfolk | C122: 26846.02 | D122: 126110605.7 | E122: 4698 | F122: 210232900.2 | G122: 7831 | H122: 37371632.62 | I122: 1392 | J122: 91385385.48 | K122: 3404 | L122: 465100523.9 | M122: 17325
A123: 119 | B123: Norton | C123: 816.3 | D123: 3016093.33 | E123: 3695 | F123: 7042001.3 | G123: 8627 | H123: 889511.5 | I123: 1090 | J123: 2339763.95 | K123: 2866 | L123: 13287370.08 | M123: 16278
A124: 120 | B124: Petersburg | C124: 4500.62 | D124: 17485599.89 | E124: 3885 | F124: 40846202.26 | G124: 9076 | H124: 5097705.72 | I124: 1133 | J124: 16326024.18 | K124: 3628 | L124: 79755532.05 | M124: 17721
A125: 121 | B125: Portsmouth | C125: 12849.84 | D125: 40393984.63 | E125: 3144 | F125: 113456825.2 | G125: 8829 | H125: 18601828.72 | I125: 1448 | J125: 53489461.84 | K125: 4163 | L125: 225942100.4 | M125: 17583
A126: 122 | B126: Radford | C126: 3186.52 | D126: 9252901.49 | E126: 2904 | F126: 22271053.01 | G126: 6989 | H126: 2133017.08 | I126: 669 | J126: 2968495.76 | K126: 932 | L126: 36625467.34 | M126: 11494
A127: 123 | B127: Richmond | C127: 21180.55 | D127: 221594436.7 | E127: 10462 | F127: 133626157.2 | G127: 6309 | H127: 31282398.58 | I127: 1477 | J127: 102372911.6 | K127: 4833 | L127: 488875904 | M127: 23081
A128: 124 | B128: Roanoke | C128: 13609.98 | D128: 90315479.13 | E128: 6636 | F128: 115794969.2 | G128: 8508 | H128: 18693776.16 | I128: 1374 | J128: 41454632.6 | K128: 3046 | L128: 266258857.1 | M128: 19564
A129: 126 | B129: Staunton | C129: 2656.99 | D129: 18127785.95 | E129: 6823 | F129: 17412918.03 | G129: 6554 | H129: 4264965.88 | I129: 1605 | J129: 5246886.59 | K129: 1975 | L129: 45052556.45 | M129: 16956
A130: 127 | B130: Suffolk | C130: 14432.37 | D130: 76730543.67 | E130: 5317 | F130: 98042268.65 | G130: 6793 | H130: 20436643.18 | I130: 1416 | J130: 33542138.28 | K130: 2324 | L130: 228751593.8 | M130: 15850
A131: 128 | B131: Virginia Beach | C131: 64755.16 | D131: 481917860.7 | E131: 7442 | F131: 370547582.3 | G131: 5722 | H131: 90678102.66 | I131: 1400 | J131: 113391288.3 | K131: 1751 | L131: 1056534834 | M131: 16316
A132: 130 | B132: Waynesboro | C132: 2998.03 | D132: 24763762.89 | E132: 8260 | F132: 19107883.84 | G132: 6373 | H132: 4268595.26 | I132: 1424 | J132: 6478131.11 | K132: 2161 | L132: 54618373.1 | M132: 18218
A133: 131 | B133: Williamsburg/James CIty 6 | C133: 11572.65 | D133: 97500764.89 | E133: 8425 | F133: 55373159.77 | G133: 4785 | H133: 16366879.14 | I133: 1414 | J133: 13883554.41 | K133: 1200 | L133: 183124358.2 | M133: 15824
A134: 132 | B134: Winchester | C134: 4206.63 | D134: 35652675.46 | E134: 8475 | F134: 30206949.37 | G134: 7181 | H134: 5316792.66 | I134: 1264 | J134: 13380901.24 | K134: 3181 | L134: 84557318.73 | M134: 20101
A135: 135 | B135: Franklin | C135: 1038.85 | D135: 4534191.39 | E135: 4365 | F135: 12255915.21 | G135: 11798 | H135: 1667677.7 | I135: 1605 | J135: 3083948.52 | K135: 2969 | L135: 21541732.82 | M135: 20736
A136: 136 | B136: Chesapeake | C136: 40643.27 | D136: 271114231 | E136: 6671 | F136: 268254263.1 | G136: 6600 | H136: 56177093.5 | I136: 1382 | J136: 68964936.92 | K136: 1697 | L136: 664510524.5 | M136: 16350
A137: 137 | B137: Lexington | C137: 649.79 | D137: 4017814.84 | E137: 6183 | F137: 3896863.13 | G137: 5997 | H137: 808296.66 | I137: 1244 | J137: 493848.43 | K137: 760 | L137: 9216823.06 | M137: 14184
A138: 139 | B138: Salem | C138: 4272 | D138: 24767492.4 | E138: 5798 | F138: 27012491.86 | G138: 6323 | H138: 4600937 | I138: 1077 | J138: 5080759.91 | K138: 1189 | L138: 61461681.17 | M138: 14387
A139: 142 | B139: Poquoson | C139: 2021.54 | D139: 12571462.94 | E139: 6219 | F139: 11518212.71 | G139: 5698 | H139: 2851738.1 | I139: 1411 | J139: 1525739.68 | K139: 755 | L139: 28467153.43 | M139: 14082
A140: 143 | B140: Manassas | C140: 7519.68 | D140: 56733733.98 | E140: 7545 | F140: 63214189.56 | G140: 8406 | H140: 9571052.38 | I140: 1273 | J140: 10212074.53 | K140: 1358 | L140: 139731050.4 | M140: 18582
A141: 144 | B141: Manassas Park | C141: 3424.57 | D141: 15225801.63 | E141: 4446 | F141: 31028773.37 | G141: 9061 | H141: 4082164.44 | I141: 1192 | J141: 5021705.24 | K141: 1466 | L141: 55358444.68 | M141: 16165
B142: TOWNS
A143: 202 | B143: Colonial Beach | C143: 598.04 | D143: 2785375.76 | E143: 4658 | F143: 5801387.25 | G143: 9701 | H143: 699745.73 | I143: 1170 | J143: 1586621.16 | K143: 2653 | L143: 10873129.9 | M143: 18181
A144: 207 | B144: West Point | C144: 842.49 | D144: 5096989.56 | E144: 6050 | F144: 7011570.2 | G144: 8322 | H144: 883344.96 | I144: 1048 | J144: 602703.24 | K144: 715 | L144: 13594607.96 | M144: 16136
B146: State7 | C146: 1257959.93 | D146: 1.057024024e+10 | E146: 8403 | F146: 7664513387 | G146: 6093 | H146: 1737049862 | I146: 1381 | J146: 2213212558 | K146: 1759 | L146: 2.218501605e+10 | M146: 17636
A148: 1 Operations include regular day school, school food services, summer school, adult education, pre-kindergarten, and other education, but do not include non-regular day school programs, non-local education agency (LEA) programs, debt service, or capital outlay additions. Non-LEA programs include expenditures made by a school division for state-operated education programs (in hospitals, clinics, and detention homes) that are located within the school division and reimbursed with state funds.
A149: 2 The Average Daily Membership (ADM) calculated at the end of the school year includes the ADM of pupils served in the school division and the ADM of resident pupils for whom tuition is paid to another school division, regional special education program, or private school. It excludes students for whom the division receives tuition payments from another division or entity (i.e., out-of-state school division, Comprehensive Services Act, Interstate Compact Agreement). This figure also includes pre-kinergarten students.
A150: 3 Expenditures exclude tuition payments (revenue source code 1901010 and 1901020) received from other LEAs.
A151: 4 Sales Tax amounts are as reported on the Annual School Report and include both the one percent and one-eighth percent.
A152: 5 Support by fund source may not equal total expenditures due to rounding.
A153: 6 Data for jointly-operated school divisions (Fairfax City and Fairfax County; Emporia City and Greensville County; and Williamsburg City and James City County) is reported under the fiscal agent division only. Fairfax County, Greensville County and Williamsburg City are the fiscal agent divisions.
A154: 7 State level per pupil amounts are calculated based on statewide totals. For example: state level "local per pupil amount" = state level "local amount" divided by the state level "End-of-Year ADM for determining Cost Per Pupil".
A155: 8 State revenues for regional Alternative Education programs and Academic Year Governor's Schools are allocated to divisions according to participation, rather than as paid to the fiscal agents for these programs.
A156: End of Worksheet

Sheet Division Source (hidden)
A1: 000 - <SELECT DIVISION> | C1: <SELECT DIVISION>
A2: 001 - ACCOMACK | B2: 1 | C2: ACCOMACK
A3: 002 - ALBEMARLE | B3: 2 | C3: ALBEMARLE
A4: 003 - ALLEGHANY HIGHLANDS | B4: 3 | C4: ALLEGHANY HIGHLANDS
A5: 004 - AMELIA | B5: 4 | C5: AMELIA
A6: 005 - AMHERST | B6: 5 | C6: AMHERST
A7: 006 - APPOMATTOX | B7: 6 | C7: APPOMATTOX
A8: 007 - ARLINGTON | B8: 7 | C8: ARLINGTON
A9: 008 - AUGUSTA | B9: 8 | C9: AUGUSTA
A10: 009 - BATH | B10: 9 | C10: BATH
A11: 010 - BEDFORD | B11: 10 | C11: BEDFORD
A12: 011 - BLAND | B12: 11 | C12: BLAND
A13: 012 - BOTETOURT | B13: 12 | C13: BOTETOURT
A14: 013 - BRUNSWICK | B14: 13 | C14: BRUNSWICK
A15: 014 - BUCHANAN | B15: 14 | C15: BUCHANAN
A16: 015 - BUCKINGHAM | B16: 15 | C16: BUCKINGHAM
A17: 016 - CAMPBELL | B17: 16 | C17: CAMPBELL
A18: 017 - CAROLINE | B18: 17 | C18: CAROLINE
A19: 018 - CARROLL | B19: 18 | C19: CARROLL
A20: 019 - CHARLES CITY COUNTY | B20: 19 | C20: CHARLES CITY COUNTY
A21: 020 - CHARLOTTE | B21: 20 | C21: CHARLOTTE
A22: 021 - CHESTERFIELD | B22: 21 | C22: CHESTERFIELD
A23: 022 - CLARKE | B23: 22 | C23: CLARKE
A24: 023 - CRAIG | B24: 23 | C24: CRAIG
A25: 024 - CULPEPER | B25: 24 | C25: CULPEPER
A26: 025 - CUMBERLAND | B26: 25 | C26: CUMBERLAND
A27: 026 - DICKENSON | B27: 26 | C27: DICKENSON
A28: 027 - DINWIDDIE | B28: 27 | C28: DINWIDDIE
A29: 028 - ESSEX | B29: 28 | C29: ESSEX
A30: 029 - FAIRFAX | B30: 29 | C30: FAIRFAX
A31: 030 - FAUQUIER | B31: 30 | C31: FAUQUIER
A32: 031 - FLOYD | B32: 31 | C32: FLOYD
A33: 032 - FLUVANNA | B33: 32 | C33: FLUVANNA
A34: 033 - FRANKLIN | B34: 33 | C34: FRANKLIN
A35: 034 - FREDERICK | B35: 34 | C35: FREDERICK
A36: 035 - GILES | B36: 35 | C36: GILES
A37: 036 - GLOUCESTER | B37: 36 | C37: GLOUCESTER
A38: 037 - GOOCHLAND | B38: 37 | C38: GOOCHLAND
A39: 038 - GRAYSON | B39: 38 | C39: GRAYSON
A40: 039 - GREENE | B40: 39 | C40: GREENE
A41: 040 - GREENSVILLE | B41: 40 | C41: GREENSVILLE
A42: 041 - HALIFAX | B42: 41 | C42: HALIFAX
A43: 042 - HANOVER | B43: 42 | C43: HANOVER
A44: 043 - HENRICO | B44: 43 | C44: HENRICO
A45: 044 - HENRY | B45: 44 | C45: HENRY
A46: 045 - HIGHLAND | B46: 45 | C46: HIGHLAND
A47: 046 - ISLE OF WIGHT | B47: 46 | C47: ISLE OF WIGHT
A48: 048 - KING GEORGE | B48: 48 | C48: KING GEORGE
A49: 049 - KING AND QUEEN | B49: 49 | C49: KING AND QUEEN
A50: 050 - KING WILLIAM | B50: 50 | C50: KING WILLIAM
A51: 051 - LANCASTER | B51: 51 | C51: LANCASTER
A52: 052 - LEE | B52: 52 | C52: LEE
A53: 053 - LOUDOUN | B53: 53 | C53: LOUDOUN
A54: 054 - LOUISA | B54: 54 | C54: LOUISA
A55: 055 - LUNENBURG | B55: 55 | C55: LUNENBURG
A56: 056 - MADISON | B56: 56 | C56: MADISON
A57: 057 - MATHEWS | B57: 57 | C57: MATHEWS
A58: 058 - MECKLENBURG | B58: 58 | C58: MECKLENBURG
A59: 059 - MIDDLESEX | B59: 59 | C59: MIDDLESEX
A60: 060 - MONTGOMERY | B60: 60 | C60: MONTGOMERY
A61: 062 - NELSON | B61: 62 | C61: NELSON
A62: 063 - NEW KENT | B62: 63 | C62: NEW KENT
A63: 065 - NORTHAMPTON | B63: 65 | C63: NORTHAMPTON
A64: 066 - NORTHUMBERLAND | B64: 66 | C64: NORTHUMBERLAND
A65: 067 - NOTTOWAY | B65: 67 | C65: NOTTOWAY
A66: 068 - ORANGE | B66: 68 | C66: ORANGE
A67: 069 - PAGE | B67: 69 | C67: PAGE
A68: 070 - PATRICK | B68: 70 | C68: PATRICK
A69: 071 - PITTSYLVANIA | B69: 71 | C69: PITTSYLVANIA
A70: 072 - POWHATAN | B70: 72 | C70: POWHATAN
A71: 073 - PRINCE EDWARD | B71: 73 | C71: PRINCE EDWARD
A72: 074 - PRINCE GEORGE | B72: 74 | C72: PRINCE GEORGE
A73: 075 - PRINCE WILLIAM | B73: 75 | C73: PRINCE WILLIAM
A74: 077 - PULASKI | B74: 77 | C74: PULASKI
A75: 078 - RAPPAHANNOCK | B75: 78 | C75: RAPPAHANNOCK
A76: 079 - RICHMOND | B76: 79 | C76: RICHMOND
A77: 080 - ROANOKE | B77: 80 | C77: ROANOKE
A78: 081 - ROCKBRIDGE | B78: 81 | C78: ROCKBRIDGE
A79: 082 - ROCKINGHAM | B79: 82 | C79: ROCKINGHAM
A80: 083 - RUSSELL | B80: 83 | C80: RUSSELL
A81: 084 - SCOTT | B81: 84 | C81: SCOTT
A82: 085 - SHENANDOAH | B82: 85 | C82: SHENANDOAH
A83: 086 - SMYTH | B83: 86 | C83: SMYTH
A84: 087 - SOUTHAMPTON | B84: 87 | C84: SOUTHAMPTON
A85: 088 - SPOTSYLVANIA | B85: 88 | C85: SPOTSYLVANIA
A86: 089 - STAFFORD | B86: 89 | C86: STAFFORD
A87: 090 - SURRY | B87: 90 | C87: SURRY
A88: 091 - SUSSEX | B88: 91 | C88: SUSSEX
A89: 092 - TAZEWELL | B89: 92 | C89: TAZEWELL
A90: 093 - WARREN | B90: 93 | C90: WARREN
A91: 094 - WASHINGTON | B91: 94 | C91: WASHINGTON
A92: 095 - WESTMORELAND | B92: 95 | C92: WESTMORELAND
A93: 096 - WISE | B93: 96 | C93: WISE
A94: 097 - WYTHE | B94: 97 | C94: WYTHE
A95: 098 - YORK | B95: 98 | C95: YORK
A96: 101 - ALEXANDRIA CITY | B96: 101 | C96: ALEXANDRIA CITY
A97: 102 - BRISTOL CITY | B97: 102 | C97: BRISTOL CITY
A98: 103 - BUENA VISTA CITY | B98: 103 | C98: BUENA VISTA CITY
A99: 104 - CHARLOTTESVILLE CITY | B99: 104 | C99: CHARLOTTESVILLE CITY
A100: 106 - COLONIAL HEIGHTS CITY | B100: 106 | C100: COLONIAL HEIGHTS CITY
A101: 108 - DANVILLE CITY | B101: 108 | C101: DANVILLE CITY
A102: 109 - FALLS CHURCH CITY | B102: 109 | C102: FALLS CHURCH CITY
A103: 110 - FREDERICKSBURG CITY | B103: 110 | C103: FREDERICKSBURG CITY
A104: 111 - GALAX CITY | B104: 111 | C104: GALAX CITY
A105: 112 - HAMPTON CITY | B105: 112 | C105: HAMPTON CITY
A106: 113 - HARRISONBURG CITY | B106: 113 | C106: HARRISONBURG CITY
A107: 114 - HOPEWELL CITY | B107: 114 | C107: HOPEWELL CITY
A108: 115 - LYNCHBURG CITY | B108: 115 | C108: LYNCHBURG CITY
A109: 116 - MARTINSVILLE CITY | B109: 116 | C109: MARTINSVILLE CITY
A110: 117 - NEWPORT NEWS CITY | B110: 117 | C110: NEWPORT NEWS CITY
A111: 118 - NORFOLK CITY | B111: 118 | C111: NORFOLK CITY
A112: 119 - NORTON CITY | B112: 119 | C112: NORTON CITY
A113: 120 - PETERSBURG CITY | B113: 120 | C113: PETERSBURG CITY
A114: 121 - PORTSMOUTH CITY | B114: 121 | C114: PORTSMOUTH CITY
A115: 122 - RADFORD CITY | B115: 122 | C115: RADFORD CITY
A116: 123 - RICHMOND CITY | B116: 123 | C116: RICHMOND CITY
A117: 124 - ROANOKE CITY | B117: 124 | C117: ROANOKE CITY
A118: 126 - STAUNTON CITY | B118: 126 | C118: STAUNTON CITY
A119: 127 - SUFFOLK CITY | B119: 127 | C119: SUFFOLK CITY
A120: 128 - VIRGINIA BEACH CITY | B120: 128 | C120: VIRGINIA BEACH CITY
A121: 130 - WAYNESBORO CITY | B121: 130 | C121: WAYNESBORO CITY
A122: 131 - WILLIAMSBURG CITY | B122: 131 | C122: WILLIAMSBURG CITY
A123: 132 - WINCHESTER CITY | B123: 132 | C123: WINCHESTER CITY
A124: 135 - FRANKLIN CITY | B124: 135 | C124: FRANKLIN CITY
A125: 136 - CHESAPEAKE CITY | B125: 136 | C125: CHESAPEAKE CITY
A126: 137 - LEXINGTON CITY | B126: 137 | C126: LEXINGTON CITY
A127: 139 - SALEM CITY | B127: 139 | C127: SALEM CITY
A128: 142 - POQUOSON CITY | B128: 142 | C128: POQUOSON CITY
A129: 143 - MANASSAS CITY | B129: 143 | C129: MANASSAS CITY
A130: 144 - MANASSAS PARK CITY | B130: 144 | C130: MANASSAS PARK CITY
A131: 202 - COLONIAL BEACH | B131: 202 | C131: COLONIAL BEACH
A132: 207 - WEST POINT | B132: 207 | C132: WEST POINT

Sheet Source Data (hidden)
A1: Div | B1: State Rev | C1: S - BOY | D1: S - EOY | E1: S - Capital | F1: Exp Deduct | G1: Total State | H1: Sales Tax | I1: Federal | J1: F - BOY | K1: F - EOY | L1: F - Capital | M1: Total Federal | N1: Local | O1: Local Tuition Deduct | P1: Expenditures | Q1: BOD EOY ADM WITH PRE-K | S1: Sales Tax FY 2024 | T1: Sales Tax FY 2025 | U1: UPDATED-Projections based on GA Conference Caboose Budget - HB30 & Big Bill Budget | Z1: DABS Sales Tax fy 2025 | AD1: DABS Sales Tax fy 2026 | AI1: DABS Alt Ed and Govs School | AJ1: Data from 2023-2024Table 15 source file with queries for Alt Ed & Govs School
A2: 1 | B2: 42481409.73 | C2: 2183938 | D2: 4518044.38 | E2: 477545.55 | F2: 0 | G2: =of:=SUM([.B2]+[.C2]-[.D2]-[.E2]-[.F2]) -> 39669757.8 | H2: 6009078.6 | I2: 12952597.01 | J2: 1630441.26 | K2: 1322851.07 | L2: 269574.89 | M2: =of:=SUM([.I2]+[.J2]-[.K2]-[.L2]) -> 12990612.31 | N2: =of:=SUM([.P2]-([.G2]+[.H2]+[.M2])) -> 19078078.31 | O2: 0 | P2: 77747527.02 | Q2: =of:=VLOOKUP([.$A2];[$'FY 2024 TABLE 15'.$A$11:.$C$144];3;0) -> 4757.35 | S2: =of:=VLOOKUP([.A2];[.$Z$3:.$AB$138];3;0) -> 6113863.131 | T2: =of:=VLOOKUP([.$A2];[.$AD$3:.$AF$138];3;0) -> 6462046.141 | Z2: NUM | AA2: DIVISION | AB2: SALES TAX | AD2: NUM | AE2: DIVISION | AF2: SALES TAX | AI2: NUM | AJ2: DIVISION | AK2: ALT ED AMT | AL2: GOVS SCHOOL
A3: 2 | B3: 56752909.06 | C3: 0 | D3: 0 | E3: 0 | F3: 0 | G3: =of:=SUM([.B3]+[.C3]-[.D3]-[.E3]-[.F3]) -> 56752909.06 | H3: 21141568.36 | I3: 14249044.15 | J3: 358488.07 | K3: 298147.95 | L3: 0 | M3: =of:=SUM([.I3]+[.J3]-[.K3]-[.L3]) -> 14309384.27 | N3: =of:=SUM([.P3]-([.G3]+[.H3]+[.M3])) -> 203640980.6 | O3: 0 | P3: 295844842.3 | Q3: =of:=VLOOKUP([.$A3];[$'FY 2024 TABLE 15'.$A$11:.$C$144];3;0) -> 13840.91 | S3: =of:=VLOOKUP([.A3];[.$Z$3:.$AB$138];3;0) -> 21562131.38 | T3: =of:=VLOOKUP([.$A3];[.$AD$3:.$AF$138];3;0) -> 21728058.06 | Z3: 1 | AA3: ACCOMACK | AB3: 6113863.131 | AD3: 1 | AE3: ACCOMACK | AF3: 6462046.141 | AI3: 1 | AJ3: ACCOMACK | AK3: 68145 | AL3: 0
A4: 3 | B4: 26326523.69 | C4: 0 | D4: 0 | E4: 0 | F4: 0 | G4: =of:=SUM([.B4]+[.C4]-[.D4]-[.E4]-[.F4]) -> 26326523.69 | H4: 3778505 | I4: 5829712.57 | J4: 0 | K4: 0 | L4: 275141.14 | M4: =of:=SUM([.I4]+[.J4]-[.K4]-[.L4]) -> 5554571.43 | N4: =of:=SUM([.P4]-([.G4]+[.H4]+[.M4])) -> 11666762.34 | O4: 0 | P4: 47326362.46 | Q4: =of:=VLOOKUP([.$A4];[$'FY 2024 TABLE 15'.$A$11:.$C$144];3;0) -> 2793.89 | S4: =of:=VLOOKUP([.A4];[.$Z$3:.$AB$138];3;0) -> 3755505.012 | T4: =of:=VLOOKUP([.$A4];[.$AD$3:.$AF$138];3;0) -> 4020779.098 | Z4: 2 | AA4: ALBEMARLE | AB4: 21562131.38 | AD4: 2 | AE4: ALBEMARLE | AF4: 21728058.06 | AI4: 2 | AJ4: ALBEMARLE | AK4: 0 | AL4: 0
A5: 4 | B5: 12712538.6 | C5: 450753 | D5: 534210.7 | E5: 5883 | F5: 0 | G5: =of:=SUM([.B5]+[.C5]-[.D5]-[.E5]-[.F5]) -> 12623197.9 | H5: 2487402.84 | I5: 3657993.97 | J5: 0 | K5: 0 | L5: 885218.71 | M5: =of:=SUM([.I5]+[.J5]-[.K5]-[.L5]) -> 2772775.26 | N5: =of:=SUM([.P5]-([.G5]+[.H5]+[.M5])) -> 6470975.83 | O5: 0 | P5: 24354351.83 | Q5: =of:=VLOOKUP([.$A5];[$'FY 2024 TABLE 15'.$A$11:.$C$144];3;0) -> 1585.71 | S5: =of:=VLOOKUP([.A5];[.$Z$3:.$AB$138];3;0) -> 2440163.331 | T5: =of:=VLOOKUP([.$A5];[.$AD$3:.$AF$138];3;0) -> 2588613.75 | Z5: 3 | AA5: ALLEGHANY | AB5: 3755505.012 | AD5: 3 | AE5: ALLEGHANY | AF5: 4020779.098 | AI5: 3 | AJ5: ALLEGHANY | AK5: 24931 | AL5: 31932
A6: 5 | B6: 34479196.54 | C6: 0 | D6: 0 | E6: 0 | F6: 0 | G6: =of:=SUM([.B6]+[.C6]-[.D6]-[.E6]-[.F6]) -> 34479196.54 | H6: 5881097.42 | I6: 11452092.23 | J6: 0 | K6: 0 | L6: 4592077.19 | M6: =of:=SUM([.I6]+[.J6]-[.K6]-[.L6]) -> 6860015.04 | N6: =of:=SUM([.P6]-([.G6]+[.H6]+[.M6])) -> 15410127.45 | O6: 43935 | P6: 62630436.45 | Q6: =of:=VLOOKUP([.$A6];[$'FY 2024 TABLE 15'.$A$11:.$C$144];3;0) -> 3923.25 | S6: =of:=VLOOKUP([.A6];[.$Z$3:.$AB$138];3;0) -> 5775878.444 | T6: =of:=VLOOKUP([.$A6];[.$AD$3:.$AF$138];3;0) -> 5961960.345 | Z6: 4 | AA6: AMELIA | AB6: 2440163.331 | AD6: 4 | AE6: AMELIA | AF6: 2588613.75 | AI6: 4 | AJ6: AMELIA | AK6: 65615 | AL6: 98093
A7: 6 | B7: 20339242.74 | C7: 0 | D7: 0 | E7: 3183015.8 | F7: 0 | G7: =of:=SUM([.B7]+[.C7]-[.D7]-[.E7]-[.F7]) -> 17156226.94 | H7: 3207177.76 | I7: 4032353.34 | J7: 0 | K7: 0 | L7: 554500 | M7: =of:=SUM([.I7]+[.J7]-[.K7]-[.L7]) -> 3477853.34 | N7: =of:=SUM([.P7]-([.G7]+[.H7]+[.M7])) -> 8404386.51 | O7: 28779.67 | P7: 32245644.55 | Q7: =of:=VLOOKUP([.$A7];[$'FY 2024 TABLE 15'.$A$11:.$C$144];3;0) -> 2344.19 | S7: =of:=VLOOKUP([.A7];[.$Z$3:.$AB$138];3;0) -> 3320645.733 | T7: =of:=VLOOKUP([.$A7];[.$AD$3:.$AF$138];3;0) -> 3455950.052 | Z7: 5 | AA7: AMHERST | AB7: 5775878.444 | AD7: 5 | AE7: AMHERST | AF7: 5961960.345 | AI7: 5 | AJ7: AMHERST | AK7: 51576 | AL7: 48102
A8: 7 | B8: 71667801.13 | C8: 0 | D8: 0 | E8: 0 | F8: 0 | G8: =of:=SUM([.B8]+[.C8]-[.D8]-[.E8]-[.F8]) -> 71667801.13 | H8: 36550281.63 | I8: 28520489.11 | J8: 0 | K8: 0 | L8: 4321580.3 | M8: =of:=SUM([.I8]+[.J8]-[.K8]-[.L8]) -> 24198908.81 | N8: =of:=SUM([.P8]-([.G8]+[.H8]+[.M8])) -> 598006075.4 | O8: 176457.6 | P8: 730423067 | Q8: =of:=VLOOKUP([.$A8];[$'FY 2024 TABLE 15'.$A$11:.$C$144];3;0) -> 27856.74 | S8: =of:=VLOOKUP([.A8];[.$Z$3:.$AB$138];3;0) -> 38312824.7 | T8: =of:=VLOOKUP([.$A8];[.$AD$3:.$AF$138];3;0) -> 41119777.8 | Z8: 6 | AA8: APPOMATTOX | AB8: 3320645.733 | AD8: 6 | AE8: APPOMATTOX | AF8: 3455950.052 | AI8: 6 | AJ8: APPOMATTOX | AK8: 33765 | AL8: 32474
A9: 8 | B9: 71500683.91 | C9: 0 | D9: 0 | E9: 0 | F9: 839123 | G9: =of:=SUM([.B9]+[.C9]-[.D9]-[.E9]-[.F9]) -> 70661560.91 | H9: 14586709.92 | I9: 15792415.31 | J9: 0 | K9: 0 | L9: 2075688 | M9: =of:=SUM([.I9]+[.J9]-[.K9]-[.L9]) -> 13716727.31 | N9: =of:=SUM([.P9]-([.G9]+[.H9]+[.M9])) -> 48318332.65 | O9: 1024298.2 | P9: 147283330.8 | Q9: =of:=VLOOKUP([.$A9];[$'FY 2024 TABLE 15'.$A$11:.$C$144];3;0) -> 10048.8 | S9: =of:=VLOOKUP([.A9];[.$Z$3:.$AB$138];3;0) -> 14499973.63 | T9: =of:=VLOOKUP([.$A9];[.$AD$3:.$AF$138];3;0) -> 14539324.75 | Z9: 7 | AA9: ARLINGTON | AB9: 38312824.7 | AD9: 7 | AE9: ARLINGTON | AF9: 41119777.8 | AI9: 7 | AJ9: ARLINGTON | AK9: 0 | AL9: 130968
A10: 9 | B10: 1898367.78 | C10: 0 | D10: 0 | E10: 0 | F10: 0 | G10: =of:=SUM([.B10]+[.C10]-[.D10]-[.E10]-[.F10]) -> 1898367.78 | H10: 652151.7 | I10: 1090342.12 | J10: 0 | K10: 0 | L10: 0 | M10: =of:=SUM([.I10]+[.J10]-[.K10]-[.L10]) -> 1090342.12 | N10: =of:=SUM([.P10]-([.G10]+[.H10]+[.M10])) -> 8805602.55 | O10: 0 | P10: 12446464.15 | Q10: =of:=VLOOKUP([.$A10];[$'FY 2024 TABLE 15'.$A$11:.$C$144];3;0) -> 508.72 | S10: =of:=VLOOKUP([.A10];[.$Z$3:.$AB$138];3;0) -> 642601.4594 | T10: =of:=VLOOKUP([.$A10];[.$AD$3:.$AF$138];3;0) -> 674222.8138 | Z10: 8 | AA10: AUGUSTA | AB10: 14499973.63 | AD10: 8 | AE10: AUGUSTA | AF10: 14539324.75 | AI10: 8 | AJ10: AUGUSTA | AK10: 174224 | AL10: 529658
A11: 10 | B11: 64774391.96 | C11: 0 | D11: 0 | E11: 0 | F11: 0 | G11: =of:=SUM([.B11]+[.C11]-[.D11]-[.E11]-[.F11]) -> 64774391.96 | H11: 15345149.24 | I11: 11596243.28 | J11: 0 | K11: 0 | L11: 1086273.08 | M11: =of:=SUM([.I11]+[.J11]-[.K11]-[.L11]) -> 10509970.2 | N11: =of:=SUM([.P11]-([.G11]+[.H11]+[.M11])) -> 34994058.56 | O11: 108322.49 | P11: 125623570 | Q11: =of:=VLOOKUP([.$A11];[$'FY 2024 TABLE 15'.$A$11:.$C$144];3;0) -> 8964.5 | S11: =of:=VLOOKUP([.A11];[.$Z$3:.$AB$138];3;0)+VLOOKUP(140;[.$Z$3:.$AB$138];3;0) -> 15053235.19 | T11: =of:=VLOOKUP([.$A11];[.$AD$3:.$AF$138];3;0)+VLOOKUP(140;[.$AD$3:.$AF$138];3;0) -> 15951397.37 | Z11: 9 | AA11: BATH | AB11: 642601.4594 | AD11: 9 | AE11: BATH | AF11: 674222.8138 | AI11: 9 | AJ11: BATH | AK11: 5022 | AL11: 1384
A12: 11 | B12: 6781106.9 | C12: 2948522.56 | D12: 3084358.7 | E12: 0 | F12: 0 | G12: =of:=SUM([.B12]+[.C12]-[.D12]-[.E12]-[.F12]) -> 6645270.76 | H12: 868154.64 | I12: 1021955.42 | J12: 0 | K12: 0 | L12: 0 | M12: =of:=SUM([.I12]+[.J12]-[.K12]-[.L12]) -> 1021955.42 | N12: =of:=SUM([.P12]-([.G12]+[.H12]+[.M12])) -> 3634920.25 | O12: 101704 | P12: 12170301.07 | Q12: =of:=VLOOKUP([.$A12];[$'FY 2024 TABLE 15'.$A$11:.$C$144];3;0) -> 800.66 | S12: =of:=VLOOKUP([.A12];[.$Z$3:.$AB$138];3;0) -> 894475.3983 | T12: =of:=VLOOKUP([.$A12];[.$AD$3:.$AF$138];3;0) -> 914219.3452 | Z12: 10 | AA12: BEDFORD | AB12: 15053235.19 | AD12: 10 | AE12: BEDFORD | AF12: 15951397.37 | AI12: 10 | AJ12: BEDFORD | AK12: 80544 | AL12: 209089
A13: 12 | B13: 28116738.71 | C13: 0 | D13: 0 | E13: 0 | F13: 0 | G13: =of:=SUM([.B13]+[.C13]-[.D13]-[.E13]-[.F13]) -> 28116738.71 | H13: 6518035.08 | I13: 5944641.24 | J13: 0 | K13: 0 | L13: 30697.72 | M13: =of:=SUM([.I13]+[.J13]-[.K13]-[.L13]) -> 5913943.52 | N13: =of:=SUM([.P13]-([.G13]+[.H13]+[.M13])) -> 30352447.73 | O13: 0 | P13: 70901165.04 | Q13: =of:=VLOOKUP([.$A13];[$'FY 2024 TABLE 15'.$A$11:.$C$144];3;0) -> 4444.62 | S13: =of:=VLOOKUP([.A13];[.$Z$3:.$AB$138];3;0) -> 6413097.982 | T13: =of:=VLOOKUP([.$A13];[.$AD$3:.$AF$138];3;0) -> 6387256.524 | Z13: 11 | AA13: BLAND | AB13: 894475.3983 | AD13: 11 | AE13: BLAND | AF13: 914219.3452 | AI13: 11 | AJ13: BLAND | AK13: 29290 | AL13: 14920
A14: 13 | B14: 12961800.01 | C14: 0 | D14: 0 | E14: 190549.77 | F14: 471884 | G14: =of:=SUM([.B14]+[.C14]-[.D14]-[.E14]-[.F14]) -> 12299366.24 | H14: 2328492.42 | I14: 7444326.42 | J14: 0 | K14: 0 | L14: 2249086.42 | M14: =of:=SUM([.I14]+[.J14]-[.K14]-[.L14]) -> 5195240 | N14: =of:=SUM([.P14]-([.G14]+[.H14]+[.M14])) -> 8260086.98 | O14: 0 | P14: 28083185.64 | Q14: =of:=VLOOKUP([.$A14];[$'FY 2024 TABLE 15'.$A$11:.$C$144];3;0) -> 1375.73 | S14: =of:=VLOOKUP([.A14];[.$Z$3:.$AB$138];3;0) -> 2310997.208 | T14: =of:=VLOOKUP([.$A14];[.$AD$3:.$AF$138];3;0) -> 2317361.857 | Z14: 12 | AA14: BOTETOURT | AB14: 6413097.982 | AD14: 12 | AE14: BOTETOURT | AF14: 6387256.524 | AI14: 12 | AJ14: BOTETOURT | AK14: 22716 | AL14: 57238
A15: 14 | B15: 25876305.27 | C15: 467982.41 | D15: 490332.26 | E15: 4864009.51 | F15: 0 | G15: =of:=SUM([.B15]+[.C15]-[.D15]-[.E15]-[.F15]) -> 20989945.91 | H15: 3324974.62 | I15: 8685503.07 | J15: 0 | K15: 0 | L15: 277029 | M15: =of:=SUM([.I15]+[.J15]-[.K15]-[.L15]) -> 8408474.07 | N15: =of:=SUM([.P15]-([.G15]+[.H15]+[.M15])) -> 9984061.27 | O15: 0 | P15: 42707455.87 | Q15: =of:=VLOOKUP([.$A15];[$'FY 2024 TABLE 15'.$A$11:.$C$144];3;0) -> 2358.23 | S15: =of:=VLOOKUP([.A15];[.$Z$3:.$AB$138];3;0) -> 3290506.971 | T15: =of:=VLOOKUP([.$A15];[.$AD$3:.$AF$138];3;0) -> 3253906.461 | Z15: 13 | AA15: BRUNSWICK | AB15: 2310997.208 | AD15: 13 | AE15: BRUNSWICK | AF15: 2317361.857 | AI15: 13 | AJ15: BRUNSWICK | AK15: 90728 | AL15: 45899
A16: 15 | B16: 17131155.04 | C16: 0 | D16: 0 | E16: 111594.11 | F16: 0 | G16: =of:=SUM([.B16]+[.C16]-[.D16]-[.E16]-[.F16]) -> 17019560.93 | H16: 2933466.32 | I16: 5375964.84 | J16: 0 | K16: 0 | L16: 50976.99 | M16: =of:=SUM([.I16]+[.J16]-[.K16]-[.L16]) -> 5324987.85 | N16: =of:=SUM([.P16]-([.G16]+[.H16]+[.M16])) -> 8259255.75 | O16: 0 | P16: 33537270.85 | Q16: =of:=VLOOKUP([.$A16];[$'FY 2024 TABLE 15'.$A$11:.$C$144];3;0) -> 1917.97 | S16: =of:=VLOOKUP([.A16];[.$Z$3:.$AB$138];3;0) -> 2912696.062 | T16: =of:=VLOOKUP([.$A16];[.$AD$3:.$AF$138];3;0) -> 2890004.743 | Z16: 14 | AA16: BUCHANAN | AB16: 3290506.971 | AD16: 14 | AE16: BUCHANAN | AF16: 3253906.461 | AI16: 14 | AJ16: BUCHANAN | AK16: 26170 | AL16: 86575
A17: 16 | B17: 65341767.49 | C17: 0 | D17: 0 | E17: 4726373.67 | F17: 0 | G17: =of:=SUM([.B17]+[.C17]-[.D17]-[.E17]-[.F17]) -> 60615393.82 | H17: 10686108.94 | I17: 12163717.16 | J17: 0 | K17: 0 | L17: 595321 | M17: =of:=SUM([.I17]+[.J17]-[.K17]-[.L17]) -> 11568396.16 | N17: =of:=SUM([.P17]-([.G17]+[.H17]+[.M17])) -> 26386991.55 | O17: 32990.23 | P17: 109256890.5 | Q17: =of:=VLOOKUP([.$A17];[$'FY 2024 TABLE 15'.$A$11:.$C$144];3;0) -> 7829.17 | S17: =of:=VLOOKUP([.A17];[.$Z$3:.$AB$138];3;0) -> 10725093.7 | T17: =of:=VLOOKUP([.$A17];[.$AD$3:.$AF$138];3;0) -> 10813239.07 | Z17: 15 | AA17: BUCKINGHAM | AB17: 2912696.062 | AD17: 15 | AE17: BUCKINGHAM | AF17: 2890004.743 | AI17: 15 | AJ17: BUCKINGHAM | AK17: 67617 | AL17: 69817
A18: 17 | B18: 32842068.18 | C18: 2069628.14 | D18: 1900224.48 | E18: 1530897.5 | F18: 0 | G18: =of:=SUM([.B18]+[.C18]-[.D18]-[.E18]-[.F18]) -> 31480574.34 | H18: 6552062.7 | I18: 11903687.35 | J18: 0 | K18: 0 | L18: 3082029.97 | M18: =of:=SUM([.I18]+[.J18]-[.K18]-[.L18]) -> 8821657.38 | N18: =of:=SUM([.P18]-([.G18]+[.H18]+[.M18])) -> 16759204.7 | O18: 0 | P18: 63613499.12 | Q18: =of:=VLOOKUP([.$A18];[$'FY 2024 TABLE 15'.$A$11:.$C$144];3;0) -> 4532.9 | S18: =of:=VLOOKUP([.A18];[.$Z$3:.$AB$138];3;0) -> 6708027.295 | T18: =of:=VLOOKUP([.$A18];[.$AD$3:.$AF$138];3;0) -> 7313754.762 | Z18: 16 | AA18: CAMPBELL | AB18: 10725093.7 | AD18: 16 | AE18: CAMPBELL | AF18: 10813239.07 | AI18: 16 | AJ18: CAMPBELL | AK18: 0 | AL18: 114416
A19: 18 | B19: 33205921.74 | C19: 0 | D19: 0 | E19: 2634504.64 | F19: 257958.71 | G19: =of:=SUM([.B19]+[.C19]-[.D19]-[.E19]-[.F19]) -> 30313458.39 | H19: 5016922.1 | I19: 12862275.55 | J19: 7908079.4 | K19: 0 | L19: 4860110.23 | M19: =of:=SUM([.I19]+[.J19]-[.K19]-[.L19]) -> 15910244.72 | N19: =of:=SUM([.P19]-([.G19]+[.H19]+[.M19])) -> 12270954.12 | O19: 0 | P19: 63511579.33 | Q19: =of:=VLOOKUP([.$A19];[$'FY 2024 TABLE 15'.$A$11:.$C$144];3;0) -> 3428.88 | S19: =of:=VLOOKUP([.A19];[.$Z$3:.$AB$138];3;0) -> 4966437.41 | T19: =of:=VLOOKUP([.$A19];[.$AD$3:.$AF$138];3;0) -> 5013136.849 | Z19: 17 | AA19: CAROLINE | AB19: 6708027.295 | AD19: 17 | AE19: CAROLINE | AF19: 7313754.762 | AI19: 17 | AJ19: CAROLINE | AK19: 55134 | AL19: 121528
A20: 19 | B20: 3462132.56 | C20: 0 | D20: 0 | E20: 0 | F20: 0 | G20: =of:=SUM([.B20]+[.C20]-[.D20]-[.E20]-[.F20]) -> 3462132.56 | H20: 925859.82 | I20: 1976276.76 | J20: 3197.59 | K20: 3197.59 | L20: 0 | M20: =of:=SUM([.I20]+[.J20]-[.K20]-[.L20]) -> 1976276.76 | N20: =of:=SUM([.P20]-([.G20]+[.H20]+[.M20])) -> 7031532.83 | O20: 0 | P20: 13395801.97 | Q20: =of:=VLOOKUP([.$A20];[$'FY 2024 TABLE 15'.$A$11:.$C$144];3;0) -> 526.05 | S20: =of:=VLOOKUP([.A20];[.$Z$3:.$AB$138];3;0) -> 899857.3201 | T20: =of:=VLOOKUP([.$A20];[.$AD$3:.$AF$138];3;0) -> 926498.2375 | Z20: 18 | AA20: CARROLL | AB20: 4966437.41 | AD20: 18 | AE20: CARROLL | AF20: 5013136.849 | AI20: 18 | AJ20: CARROLL | AK20: 178760 | AL20: 27374
A21: 20 | B21: 16366955.5 | C21: 0 | D21: 0 | E21: 0 | F21: 7500 | G21: =of:=SUM([.B21]+[.C21]-[.D21]-[.E21]-[.F21]) -> 16359455.5 | H21: 2229052.6 | I21: 4867174.18 | J21: 0 | K21: 0 | L21: 6874.73 | M21: =of:=SUM([.I21]+[.J21]-[.K21]-[.L21]) -> 4860299.45 | N21: =of:=SUM([.P21]-([.G21]+[.H21]+[.M21])) -> 4945060.1 | O21: 7500 | P21: 28393867.65 | Q21: =of:=VLOOKUP([.$A21];[$'FY 2024 TABLE 15'.$A$11:.$C$144];3;0) -> 1688.09 | S21: =of:=VLOOKUP([.A21];[.$Z$3:.$AB$138];3;0) -> 2228115.613 | T21: =of:=VLOOKUP([.$A21];[.$AD$3:.$AF$138];3;0) -> 2416709.258 | Z21: 19 | AA21: CHARLES CITY | AB21: 899857.3201 | AD21: 19 | AE21: CHARLES CITY | AF21: 926498.2375 | AI21: 19 | AJ21: CHARLES CITY | AK21: 13720 | AL21: 25830
A22: 21 | B22: 434561773.3 | C22: 0 | D22: 0 | E22: 13330496.76 | F22: 1668578 | G22: =of:=SUM([.B22]+[.C22]-[.D22]-[.E22]-[.F22]) -> 419562698.5 | H22: 83195164.98 | I22: 84041389.36 | J22: 0 | K22: 0 | L22: 1802235.49 | M22: =of:=SUM([.I22]+[.J22]-[.K22]-[.L22]) -> 82239153.87 | N22: =of:=SUM([.P22]-([.G22]+[.H22]+[.M22])) -> 339047232.1 | O22: 0 | P22: 924044249.5 | Q22: =of:=VLOOKUP([.$A22];[$'FY 2024 TABLE 15'.$A$11:.$C$144];3;0) -> 63681.57 | S22: =of:=VLOOKUP([.A22];[.$Z$3:.$AB$138];3;0) -> 87057966.56 | T22: =of:=VLOOKUP([.$A22];[.$AD$3:.$AF$138];3;0) -> 89959630.07 | Z22: 20 | AA22: CHARLOTTE | AB22: 2228115.613 | AD22: 20 | AE22: CHARLOTTE | AF22: 2416709.258 | AI22: 20 | AJ22: CHARLOTTE | AK22: 76527 | AL22: 85901
A23: 22 | B23: 9006635.77 | C23: 0 | D23: 0 | E23: 510848 | F23: 0 | G23: =of:=SUM([.B23]+[.C23]-[.D23]-[.E23]-[.F23]) -> 8495787.77 | H23: 2907973.28 | I23: 1772231.68 | J23: 718936.29 | K23: 527489.54 | L23: 8360 | M23: =of:=SUM([.I23]+[.J23]-[.K23]-[.L23]) -> 1955318.43 | N23: =of:=SUM([.P23]-([.G23]+[.H23]+[.M23])) -> 15771971.72 | O23: 0 | P23: 29131051.2 | Q23: =of:=VLOOKUP([.$A23];[$'FY 2024 TABLE 15'.$A$11:.$C$144];3;0) -> 1920.96 | S23: =of:=VLOOKUP([.A23];[.$Z$3:.$AB$138];3;0) -> 2905161.372 | T23: =of:=VLOOKUP([.$A23];[.$AD$3:.$AF$138];3;0) -> 3048514.08 | Z23: 21 | AA23: CHESTERFIELD | AB23: 87057966.56 | AD23: 21 | AE23: CHESTERFIELD | AF23: 89959630.07 | AI23: 21 | AJ23: CHESTERFIELD | AK23: 0 | AL23: 1589747
A24: 23 | B24: 4774582.56 | C24: 0 | D24: 0 | E24: 671686.23 | F24: 0 | G24: =of:=SUM([.B24]+[.C24]-[.D24]-[.E24]-[.F24]) -> 4102896.33 | H24: 873787.22 | I24: 1542656.83 | J24: 0 | K24: 0 | L24: 613069.11 | M24: =of:=SUM([.I24]+[.J24]-[.K24]-[.L24]) -> 929587.72 | N24: =of:=SUM([.P24]-([.G24]+[.H24]+[.M24])) -> 2492838.12 | O24: 0 | P24: 8399109.39 | Q24: =of:=VLOOKUP([.$A24];[$'FY 2024 TABLE 15'.$A$11:.$C$144];3;0) -> 468.23 | S24: =of:=VLOOKUP([.A24];[.$Z$3:.$AB$138];3;0) -> 856801.9459 | T24: =of:=VLOOKUP([.$A24];[.$AD$3:.$AF$138];3;0) -> 853941.1466 | Z24: 22 | AA24: CLARKE | AB24: 2905161.372 | AD24: 22 | AE24: CLARKE | AF24: 3048514.08 | AI24: 22 | AJ24: CLARKE | AK24: 16648 | AL24: 17242
A25: 24 | B25: 59404524.95 | C25: 0 | D25: 3005438.42 | E25: 2685360.43 | F25: 0 | G25: =of:=SUM([.B25]+[.C25]-[.D25]-[.E25]-[.F25]) -> 53713726.1 | H25: 12031532.22 | I25: 9975229.75 | J25: 0 | K25: 0 | L25: 0 | M25: =of:=SUM([.I25]+[.J25]-[.K25]-[.L25]) -> 9975229.75 | N25: =of:=SUM([.P25]-([.G25]+[.H25]+[.M25])) -> 38994490.36 | O25: 19795.16 | P25: 114714978.4 | Q25: =of:=VLOOKUP([.$A25];[$'FY 2024 TABLE 15'.$A$11:.$C$144];3;0) -> 8361.54 | S25: =of:=VLOOKUP([.A25];[.$Z$3:.$AB$138];3;0) -> 12298767.63 | T25: =of:=VLOOKUP([.$A25];[.$AD$3:.$AF$138];3;0) -> 13328179.46 | Z25: 23 | AA25: CRAIG | AB25: 856801.9459 | AD25: 23 | AE25: CRAIG | AF25: 853941.1466 | AI25: 23 | AJ25: CRAIG | AK25: 22388 | AL25: 9186
A26: 25 | B26: 14103614.56 | C26: 0 | D26: 0 | E26: 1377629.19 | F26: 735473 | G26: =of:=SUM([.B26]+[.C26]-[.D26]-[.E26]-[.F26]) -> 11990512.37 | H26: 1789701.3 | I26: 3869783.37 | J26: 0 | K26: 0 | L26: 0 | M26: =of:=SUM([.I26]+[.J26]-[.K26]-[.L26]) -> 3869783.37 | N26: =of:=SUM([.P26]-([.G26]+[.H26]+[.M26])) -> 5310854.27 | O26: 128273 | P26: 22960851.31 | Q26: =of:=VLOOKUP([.$A26];[$'FY 2024 TABLE 15'.$A$11:.$C$144];3;0) -> 1239.91 | S26: =of:=VLOOKUP([.A26];[.$Z$3:.$AB$138];3;0) -> 1861068.548 | T26: =of:=VLOOKUP([.$A26];[.$AD$3:.$AF$138];3;0) -> 1890949.415 | Z26: 24 | AA26: CULPEPER | AB26: 12298767.63 | AD26: 24 | AE26: CULPEPER | AF26: 13328179.46 | AI26: 24 | AJ26: CULPEPER | AK26: 25318 | AL26: 136665
A27: 26 | B27: 20741660.92 | C27: 0 | D27: 0 | E27: 68555.3 | F27: 0 | G27: =of:=SUM([.B27]+[.C27]-[.D27]-[.E27]-[.F27]) -> 20673105.62 | H27: 2577190.82 | I27: 7680692.24 | J27: 0 | K27: 0 | L27: 1489103.24 | M27: =of:=SUM([.I27]+[.J27]-[.K27]-[.L27]) -> 6191589 | N27: =of:=SUM([.P27]-([.G27]+[.H27]+[.M27])) -> 1473475.78 | O27: 203133.58 | P27: 30915361.22 | Q27: =of:=VLOOKUP([.$A27];[$'FY 2024 TABLE 15'.$A$11:.$C$144];3;0) -> 1861.65 | S27: =of:=VLOOKUP([.A27];[.$Z$3:.$AB$138];3;0) -> 2601620.984 | T27: =of:=VLOOKUP([.$A27];[.$AD$3:.$AF$138];3;0) -> 2635496.794 | Z27: 25 | AA27: CUMBERLAND | AB27: 1861068.548 | AD27: 25 | AE27: CUMBERLAND | AF27: 1890949.415 | AI27: 25 | AJ27: CUMBERLAND | AK27: 66220 | AL27: 52020
A28: 27 | B28: 37592075.39 | C28: 125000 | D28: 1470682.11 | E28: 248402.5 | F28: 130647.66 | G28: =of:=SUM([.B28]+[.C28]-[.D28]-[.E28]-[.F28]) -> 35867343.12 | H28: 5595646.28 | I28: 9806064.15 | J28: 117356.29 | K28: 0 | L28: 0 | M28: =of:=SUM([.I28]+[.J28]-[.K28]-[.L28]) -> 9923420.44 | N28: =of:=SUM([.P28]-([.G28]+[.H28]+[.M28])) -> 17318758.64 | O28: 0 | P28: 68705168.48 | Q28: =of:=VLOOKUP([.$A28];[$'FY 2024 TABLE 15'.$A$11:.$C$144];3;0) -> 4230.79 | S28: =of:=VLOOKUP([.A28];[.$Z$3:.$AB$138];3;0) -> 5689767.696 | T28: =of:=VLOOKUP([.$A28];[.$AD$3:.$AF$138];3;0) -> 5702987.344 | Z28: 26 | AA28: DICKENSON | AB28: 2601620.984 | AD28: 26 | AE28: DICKENSON | AF28: 2635496.794 | AI28: 26 | AJ28: DICKENSON | AK28: 71220 | AL28: 39953
A29: 28 | B29: 8741774.24 | C29: 0 | D29: 0 | E29: 0 | F29: 0 | G29: =of:=SUM([.B29]+[.C29]-[.D29]-[.E29]-[.F29]) -> 8741774.24 | H29: 1828561.22 | I29: 3194552.77 | J29: 563121.02 | K29: 569162.31 | L29: 17878.52 | M29: =of:=SUM([.I29]+[.J29]-[.K29]-[.L29]) -> 3170632.96 | N29: =of:=SUM([.P29]-([.G29]+[.H29]+[.M29])) -> 7270445.49 | O29: 15543.61 | P29: 21011413.91 | Q29: =of:=VLOOKUP([.$A29];[$'FY 2024 TABLE 15'.$A$11:.$C$144];3;0) -> 1125.35 | S29: =of:=VLOOKUP([.A29];[.$Z$3:.$AB$138];3;0) -> 1795409.103 | T29: =of:=VLOOKUP([.$A29];[.$AD$3:.$AF$138];3;0) -> 1790485.751 | Z29: 27 | AA29: DINWIDDIE | AB29: 5689767.696 | AD29: 27 | AE29: DINWIDDIE | AF29: 5702987.344 | AI29: 27 | AJ29: DINWIDDIE | AK29: 13078 | AL29: 88277
A30: 29 | B30: 764000752.4 | C30: 0 | D30: 0 | E30: 0 | F30: 6423205.52 | G30: =of:=SUM([.B30]+[.C30]-[.D30]-[.E30]-[.F30]) -> 757577546.9 | H30: 248417057.2 | I30: 236789272.4 | J30: 0 | K30: 0 | L30: 1179581.93 | M30: =of:=SUM([.I30]+[.J30]-[.K30]-[.L30]) -> 235609690.5 | N30: =of:=SUM([.P30]-([.G30]+[.H30]+[.M30])) -> 2491748050 | O30: 60627298.71 | P30: 3733352345 | Q30: =of:=VLOOKUP([.$A30];[$'FY 2024 TABLE 15'.$A$11:.$C$144];3;0) -> 180750.19 | S30: =of:=VLOOKUP([.A30];[.$Z$3:.$AB$138];3;0)+VLOOKUP(134;[.$Z$2:.$AB$147];3;0) -> 252265742.8 | T30: =of:=VLOOKUP([.$A30];[.$AD$3:.$AF$138];3;0)+VLOOKUP(134;[.$AD$3:.$AF$138];3;0) -> 257985108.6 | Z30: 28 | AA30: ESSEX | AB30: 1795409.103 | AD30: 28 | AE30: ESSEX | AF30: 1790485.751 | AI30: 28 | AJ30: ESSEX | AK30: 56640 | AL30: 55266
A31: 30 | B31: 51932134.81 | C31: 0 | D31: 0 | E31: 0 | F31: 0 | G31: =of:=SUM([.B31]+[.C31]-[.D31]-[.E31]-[.F31]) -> 51932134.81 | H31: 16230711.24 | I31: 12249292.79 | J31: 0 | K31: 0 | L31: 387875 | M31: =of:=SUM([.I31]+[.J31]-[.K31]-[.L31]) -> 11861417.79 | N31: =of:=SUM([.P31]-([.G31]+[.H31]+[.M31])) -> 96656626.28 | O31: 0 | P31: 176680890.1 | Q31: =of:=VLOOKUP([.$A31];[$'FY 2024 TABLE 15'.$A$11:.$C$144];3;0) -> 10805.28 | S31: =of:=VLOOKUP([.A31];[.$Z$3:.$AB$138];3;0) -> 16227570.52 | T31: =of:=VLOOKUP([.$A31];[.$AD$3:.$AF$138];3;0) -> 17037521.2 | Z31: 29 | AA31: FAIRFAX | AB31: 248019406.5 | AD31: 29 | AE31: FAIRFAX | AF31: 253340338.5 | AI31: 29 | AJ31: FAIRFAX | AK31: 144882 | AL31: 2804463 | AM31: includes Fairfax City
A32: 31 | B32: 13126017.78 | C32: 0 | D32: 0 | E32: 0 | F32: 0 | G32: =of:=SUM([.B32]+[.C32]-[.D32]-[.E32]-[.F32]) -> 13126017.78 | H32: 2801469.86 | I32: 3042277.04 | J32: 0 | K32: 0 | L32: 0 | M32: =of:=SUM([.I32]+[.J32]-[.K32]-[.L32]) -> 3042277.04 | N32: =of:=SUM([.P32]-([.G32]+[.H32]+[.M32])) -> 6939942.45 | O32: 1791.03 | P32: 25909707.13 | Q32: =of:=VLOOKUP([.$A32];[$'FY 2024 TABLE 15'.$A$11:.$C$144];3;0) -> 1704.86 | S32: =of:=VLOOKUP([.A32];[.$Z$3:.$AB$138];3;0) -> 2745856.487 | T32: =of:=VLOOKUP([.$A32];[.$AD$3:.$AF$138];3;0) -> 2843121.7 | Z32: 30 | AA32: FAUQUIER | AB32: 16227570.52 | AD32: 30 | AE32: FAUQUIER | AF32: 17037521.2 | AI32: 30 | AJ32: FAUQUIER | AK32: 196607 | AL32: 151694
A33: 32 | B33: 23659532.55 | C33: 0 | D33: 0 | E33: 180000 | F33: 0 | G33: =of:=SUM([.B33]+[.C33]-[.D33]-[.E33]-[.F33]) -> 23479532.55 | H33: 5074679.12 | I33: 4421645.11 | J33: 0 | K33: 0 | L33: 0 | M33: =of:=SUM([.I33]+[.J33]-[.K33]-[.L33]) -> 4421645.11 | N33: =of:=SUM([.P33]-([.G33]+[.H33]+[.M33])) -> 20241142.11 | O33: 89250 | P33: 53216998.89 | Q33: =of:=VLOOKUP([.$A33];[$'FY 2024 TABLE 15'.$A$11:.$C$144];3;0) -> 3349.09 | S33: =of:=VLOOKUP([.A33];[.$Z$3:.$AB$138];3;0) -> 5075152.23 | T33: =of:=VLOOKUP([.$A33];[.$AD$3:.$AF$138];3;0) -> 5393782.51 | Z33: 31 | AA33: FLOYD | AB33: 2745856.487 | AD33: 31 | AE33: FLOYD | AF33: 2843121.7 | AI33: 31 | AJ33: FLOYD | AK33: 24061 | AL33: 66579
A34: 33 | B34: 43935017.29 | C34: 0 | D34: 0 | E34: 0 | F34: 0 | G34: =of:=SUM([.B34]+[.C34]-[.D34]-[.E34]-[.F34]) -> 43935017.29 | H34: 9613771.5 | I34: 20475943.31 | J34: 0 | K34: 0 | L34: 5425448.37 | M34: =of:=SUM([.I34]+[.J34]-[.K34]-[.L34]) -> 15050494.94 | N34: =of:=SUM([.P34]-([.G34]+[.H34]+[.M34])) -> 35230636.98 | O34: 0 | P34: 103829920.7 | Q34: =of:=VLOOKUP([.$A34];[$'FY 2024 TABLE 15'.$A$11:.$C$144];3;0) -> 6087.13 | S34: =of:=VLOOKUP([.A34];[.$Z$3:.$AB$138];3;0) -> 9493710.003 | T34: =of:=VLOOKUP([.$A34];[.$AD$3:.$AF$138];3;0) -> 9845439.102 | Z34: 32 | AA34: FLUVANNA | AB34: 5075152.23 | AD34: 32 | AE34: FLUVANNA | AF34: 5393782.51 | AI34: 32 | AJ34: FLUVANNA | AK34: 22920 | AL34: 262431
A35: 34 | B35: 91916153.01 | C35: 719187.78 | D35: 3732931.31 | E35: 369330.72 | F35: 0 | G35: =of:=SUM([.B35]+[.C35]-[.D35]-[.E35]-[.F35]) -> 88533078.76 | H35: 20245760.72 | I35: 17323765.33 | J35: 0 | K35: 0 | L35: 3630730.47 | M35: =of:=SUM([.I35]+[.J35]-[.K35]-[.L35]) -> 13693034.86 | N35: =of:=SUM([.P35]-([.G35]+[.H35]+[.M35])) -> 102046347.5 | O35: 0 | P35: 224518221.8 | Q35: =of:=VLOOKUP([.$A35];[$'FY 2024 TABLE 15'.$A$11:.$C$144];3;0) -> 14269.21 | S35: =of:=VLOOKUP([.A35];[.$Z$3:.$AB$138];3;0) -> 20300608.92 | T35: =of:=VLOOKUP([.$A35];[.$AD$3:.$AF$138];3;0) -> 21385365.34 | Z35: 33 | AA35: FRANKLIN | AB35: 9493710.003 | AD35: 33 | AE35: FRANKLIN | AF35: 9845439.102 | AI35: 33 | AJ35: FRANKLIN | AK35: 23084 | AL35: 52049
A36: 35 | B36: 31316254.25 | C36: 0 | D36: 0 | E36: 1697578.08 | F36: 0 | G36: =of:=SUM([.B36]+[.C36]-[.D36]-[.E36]-[.F36]) -> 29618676.17 | H36: 3150443 | I36: 4640715.95 | J36: 892469 | K36: 1155706 | L36: 11698.88 | M36: =of:=SUM([.I36]+[.J36]-[.K36]-[.L36]) -> 4365780.07 | N36: =of:=SUM([.P36]-([.G36]+[.H36]+[.M36])) -> 8292972.72 | O36: 0 | P36: 45427871.96 | Q36: =of:=VLOOKUP([.$A36];[$'FY 2024 TABLE 15'.$A$11:.$C$144];3;0) -> 3550.48 | S36: =of:=VLOOKUP([.A36];[.$Z$3:.$AB$138];3;0) -> 3109674.399 | T36: =of:=VLOOKUP([.$A36];[.$AD$3:.$AF$138];3;0) -> 3261720.301 | Z36: 34 | AA36: FREDERICK | AB36: 20300608.92 | AD36: 34 | AE36: FREDERICK | AF36: 21385365.34 | AI36: 34 | AJ36: FREDERICK | AK36: 0 | AL36: 195938
A37: 36 | B37: 32472889.3 | C37: 0 | D37: 0 | E37: 0 | F37: 0 | G37: =of:=SUM([.B37]+[.C37]-[.D37]-[.E37]-[.F37]) -> 32472889.3 | H37: 7295826.62 | I37: 8344592.78 | J37: 0 | K37: 0 | L37: 1390144.67 | M37: =of:=SUM([.I37]+[.J37]-[.K37]-[.L37]) -> 6954448.11 | N37: =of:=SUM([.P37]-([.G37]+[.H37]+[.M37])) -> 34671936.06 | O37: 13163.8 | P37: 81395100.09 | Q37: =of:=VLOOKUP([.$A37];[$'FY 2024 TABLE 15'.$A$11:.$C$144];3;0) -> 4938.68 | S37: =of:=VLOOKUP([.A37];[.$Z$3:.$AB$138];3;0) -> 7393684.129 | T37: =of:=VLOOKUP([.$A37];[.$AD$3:.$AF$138];3;0) -> 7744632.255 | Z37: 35 | AA37: GILES | AB37: 3109674.399 | AD37: 35 | AE37: GILES | AF37: 3261720.301 | AI37: 35 | AJ37: GILES | AK37: 26836 | AL37: 62350
A38: 37 | B38: 6541853.1 | C38: 77446.76 | D38: 213039.71 | E38: 51528.3 | F38: 0 | G38: =of:=SUM([.B38]+[.C38]-[.D38]-[.E38]-[.F38]) -> 6354731.85 | H38: 4183402.76 | I38: 3607478.05 | J38: 0 | K38: 0 | L38: 1098641.68 | M38: =of:=SUM([.I38]+[.J38]-[.K38]-[.L38]) -> 2508836.37 | N38: =of:=SUM([.P38]-([.G38]+[.H38]+[.M38])) -> 28631919.64 | O38: 116193.56 | P38: 41678890.62 | Q38: =of:=VLOOKUP([.$A38];[$'FY 2024 TABLE 15'.$A$11:.$C$144];3;0) -> 2583.23 | S38: =of:=VLOOKUP([.A38];[.$Z$3:.$AB$138];3;0) -> 4266787.58 | T38: =of:=VLOOKUP([.$A38];[.$AD$3:.$AF$138];3;0) -> 4399192.234 | Z38: 36 | AA38: GLOUCESTER | AB38: 7393684.129 | AD38: 36 | AE38: GLOUCESTER | AF38: 7744632.255 | AI38: 36 | AJ38: GLOUCESTER | AK38: 134619 | AL38: 62531
A39: 38 | B39: 14272637.88 | C39: 484136.9 | D39: 865644.08 | E39: 931722.07 | F39: 0 | G39: =of:=SUM([.B39]+[.C39]-[.D39]-[.E39]-[.F39]) -> 12959408.63 | H39: 2324689.62 | I39: 4908858.13 | J39: 31592.32 | K39: 56421.51 | L39: 292973.14 | M39: =of:=SUM([.I39]+[.J39]-[.K39]-[.L39]) -> 4591055.8 | N39: =of:=SUM([.P39]-([.G39]+[.H39]+[.M39])) -> 7140728.15 | O39: 79223.41 | P39: 27015882.2 | Q39: =of:=VLOOKUP([.$A39];[$'FY 2024 TABLE 15'.$A$11:.$C$144];3;0) -> 1566.98 | S39: =of:=VLOOKUP([.A39];[.$Z$3:.$AB$138];3;0) -> 2333601.28 | T39: =of:=VLOOKUP([.$A39];[.$AD$3:.$AF$138];3;0) -> 2526103.026 | Z39: 37 | AA39: GOOCHLAND | AB39: 4266787.58 | AD39: 37 | AE39: GOOCHLAND | AF39: 4399192.234 | AI39: 37 | AJ39: GOOCHLAND | AK39: 21307 | AL39: 112090
A40: 39 | B40: 21037255.79 | C40: 0 | D40: 0 | E40: 180000 | F40: 0 | G40: =of:=SUM([.B40]+[.C40]-[.D40]-[.E40]-[.F40]) -> 20857255.79 | H40: 4473284.56 | I40: 6091880.09 | J40: 0 | K40: 0 | L40: 1096846.41 | M40: =of:=SUM([.I40]+[.J40]-[.K40]-[.L40]) -> 4995033.68 | N40: =of:=SUM([.P40]-([.G40]+[.H40]+[.M40])) -> 12643710.15 | O40: 0 | P40: 42969284.18 | Q40: =of:=VLOOKUP([.$A40];[$'FY 2024 TABLE 15'.$A$11:.$C$144];3;0) -> 2833.09 | S40: =of:=VLOOKUP([.A40];[.$Z$3:.$AB$138];3;0) -> 4441161.845 | T40: =of:=VLOOKUP([.$A40];[.$AD$3:.$AF$138];3;0) -> 4765326.477 | Z40: 38 | AA40: GRAYSON | AB40: 2333601.28 | AD40: 38 | AE40: GRAYSON | AF40: 2526103.026 | AI40: 38 | AJ40: GRAYSON | AK40: 23076 | AL40: 0
A41: 40 | B41: 16884782.28 | C41: 0 | D41: 0 | E41: 0 | F41: 0 | G41: =of:=SUM([.B41]+[.C41]-[.D41]-[.E41]-[.F41]) -> 16884782.28 | H41: 2764437.61 | I41: 9557166.23 | J41: 0 | K41: 0 | L41: 188815.65 | M41: =of:=SUM([.I41]+[.J41]-[.K41]-[.L41]) -> 9368350.58 | N41: =of:=SUM([.P41]-([.G41]+[.H41]+[.M41])) -> 10985368.95 | O41: 13649858.28 | P41: 40002939.42 | Q41: =of:=VLOOKUP([.$A41];[$'FY 2024 TABLE 15'.$A$11:.$C$144];3;0) -> 2037.12 | S41: =of:=VLOOKUP([.A41];[.$Z$3:.$AB$138];3;0)+VLOOKUP(138;[.$Z$2:.$AB$138];3;0) -> 2830890.851 | T41: =of:=VLOOKUP([.$A41];[.$AD$3:.$AF$138];3;0)+VLOOKUP(138;[.$AD$3:.$AF$138];3;0) -> 3065258.024 | Z41: 39 | AA41: GREENE | AB41: 4441161.845 | AD41: 39 | AE41: GREENE | AF41: 4765326.477 | AI41: 39 | AJ41: GREENE | AK41: 24619 | AL41: 137065
A42: 41 | B42: 43189712.86 | C42: 0 | D42: 0 | E42: 127412 | F42: 0 | G42: =of:=SUM([.B42]+[.C42]-[.D42]-[.E42]-[.F42]) -> 43062300.86 | H42: 6288195.26 | I42: 13760439.37 | J42: 93880 | K42: 1166297 | L42: 63064.77 | M42: =of:=SUM([.I42]+[.J42]-[.K42]-[.L42]) -> 12624957.6 | N42: =of:=SUM([.P42]-([.G42]+[.H42]+[.M42])) -> 14906612.5 | O42: 2600 | P42: 76882066.22 | Q42: =of:=VLOOKUP([.$A42];[$'FY 2024 TABLE 15'.$A$11:.$C$144];3;0) -> 4537.15 | S42: =of:=VLOOKUP([.A42];[.$Z$3:.$AB$138];3;0) -> 6320528.927 | T42: =of:=VLOOKUP([.$A42];[.$AD$3:.$AF$138];3;0) -> 6648462.051 | Z42: 40 | AA42: GREENSVILLE | AB42: 1561833.698 | AD42: 40 | AE42: GREENSVILLE | AF42: 1685557.035 | AI42: 40 | AJ42: GREENSVILLE | AK42: 129168 | AL42: 61576 | AM42: includes Emporia
A43: 42 | B43: 94529363.86 | C43: 0 | D43: 0 | E43: 1341770.18 | F43: 0 | G43: =of:=SUM([.B43]+[.C43]-[.D43]-[.E43]-[.F43]) -> 93187593.68 | H43: 21739951.54 | I43: 12688589.48 | J43: 0 | K43: 0 | L43: 235289.98 | M43: =of:=SUM([.I43]+[.J43]-[.K43]-[.L43]) -> 12453299.5 | N43: =of:=SUM([.P43]-([.G43]+[.H43]+[.M43])) -> 119236084 | O43: 482964 | P43: 246616928.8 | Q43: =of:=VLOOKUP([.$A43];[$'FY 2024 TABLE 15'.$A$11:.$C$144];3;0) -> 16794.66 | S43: =of:=VLOOKUP([.A43];[.$Z$3:.$AB$138];3;0) -> 23635247.65 | T43: =of:=VLOOKUP([.$A43];[.$AD$3:.$AF$138];3;0) -> 24450623.37 | Z43: 41 | AA43: HALIFAX | AB43: 6320528.927 | AD43: 41 | AE43: HALIFAX | AF43: 6648462.051 | AI43: 41 | AJ43: HALIFAX | AK43: 25264 | AL43: 0
A44: 43 | B44: 315341519.1 | C44: 0 | D44: 0 | E44: 48428191.53 | F44: 0 | G44: =of:=SUM([.B44]+[.C44]-[.D44]-[.E44]-[.F44]) -> 266913327.6 | H44: 79059028.7 | I44: 78769029.6 | J44: 0 | K44: 0 | L44: 1460303.25 | M44: =of:=SUM([.I44]+[.J44]-[.K44]-[.L44]) -> 77308726.35 | N44: =of:=SUM([.P44]-([.G44]+[.H44]+[.M44])) -> 330999061.3 | O44: 0 | P44: 754280143.9 | Q44: =of:=VLOOKUP([.$A44];[$'FY 2024 TABLE 15'.$A$11:.$C$144];3;0) -> 50421.86 | S44: =of:=VLOOKUP([.A44];[.$Z$3:.$AB$138];3;0) -> 69473075.37 | T44: =of:=VLOOKUP([.$A44];[.$AD$3:.$AF$138];3;0) -> 71247714.46 | Z44: 42 | AA44: HANOVER | AB44: 23635247.65 | AD44: 42 | AE44: HANOVER | AF44: 24450623.37 | AI44: 42 | AJ44: HANOVER | AK44: 41040 | AL44: 189215
A45: 44 | B45: 69412930.17 | C45: 0 | D45: 0 | E45: 2913756.82 | F45: 2051869.27 | G45: =of:=SUM([.B45]+[.C45]-[.D45]-[.E45]-[.F45]) -> 64447304.08 | H45: 9269739.18 | I45: 21898677.61 | J45: 0 | K45: 0 | L45: 6032215.69 | M45: =of:=SUM([.I45]+[.J45]-[.K45]-[.L45]) -> 15866461.92 | N45: =of:=SUM([.P45]-([.G45]+[.H45]+[.M45])) -> 15247145.03 | O45: 86223.08 | P45: 104830650.2 | Q45: =of:=VLOOKUP([.$A45];[$'FY 2024 TABLE 15'.$A$11:.$C$144];3;0) -> 6917.8 | S45: =of:=VLOOKUP([.A45];[.$Z$3:.$AB$138];3;0) -> 9033017.5 | T45: =of:=VLOOKUP([.$A45];[.$AD$3:.$AF$138];3;0) -> 9526187.902 | Z45: 43 | AA45: HENRICO | AB45: 69473075.37 | AD45: 43 | AE45: HENRICO | AF45: 71247714.46 | AI45: 43 | AJ45: HENRICO | AK45: 90624 | AL45: 757624
A46: 45 | B46: 2265227.67 | C46: 0 | D46: 185350.52 | E46: 0 | F46: 0 | G46: =of:=SUM([.B46]+[.C46]-[.D46]-[.E46]-[.F46]) -> 2079877.15 | H46: 289118.74 | I46: 885330.86 | J46: 0 | K46: 0 | L46: 456931.71 | M46: =of:=SUM([.I46]+[.J46]-[.K46]-[.L46]) -> 428399.15 | N46: =of:=SUM([.P46]-([.G46]+[.H46]+[.M46])) -> 2398142 | O46: 0 | P46: 5195537.04 | Q46: =of:=VLOOKUP([.$A46];[$'FY 2024 TABLE 15'.$A$11:.$C$144];3;0) -> 212 | S46: =of:=VLOOKUP([.A46];[.$Z$3:.$AB$138];3;0) -> 288471.0069 | T46: =of:=VLOOKUP([.$A46];[.$AD$3:.$AF$138];3;0) -> 304739.7817 | Z46: 44 | AA46: HENRY | AB46: 9033017.5 | AD46: 44 | AE46: HENRY | AF46: 9526187.902 | AI46: 44 | AJ46: HENRY | AK46: 104634 | AL46: 225476
A47: 46 | B47: 36902832.77 | C47: 0 | D47: 0 | E47: 3062 | F47: 0 | G47: =of:=SUM([.B47]+[.C47]-[.D47]-[.E47]-[.F47]) -> 36899770.77 | H47: 8103957.66 | I47: 6914848.93 | J47: 0 | K47: 0 | L47: 693221.71 | M47: =of:=SUM([.I47]+[.J47]-[.K47]-[.L47]) -> 6221627.22 | N47: =of:=SUM([.P47]-([.G47]+[.H47]+[.M47])) -> 30708372.71 | O47: 0 | P47: 81933728.36 | Q47: =of:=VLOOKUP([.$A47];[$'FY 2024 TABLE 15'.$A$11:.$C$144];3;0) -> 5573.26 | S47: =of:=VLOOKUP([.A47];[.$Z$3:.$AB$138];3;0) -> 8383957.734 | T47: =of:=VLOOKUP([.$A47];[.$AD$3:.$AF$138];3;0) -> 8639875.131 | Z47: 45 | AA47: HIGHLAND | AB47: 288471.0069 | AD47: 45 | AE47: HIGHLAND | AF47: 304739.7817 | AI47: 45 | AJ47: HIGHLAND | AK47: 3560 | AL47: 7801
A48: 47 | B48: 0 | C48: 0 | D48: 0 | E48: 0 | F48: 0 | G48: =of:=SUM([.B48]+[.C48]-[.D48]-[.E48]-[.F48]) -> 0 | I48: 0 | J48: 0 | K48: 0 | L48: 0 | M48: =of:=SUM([.I48]+[.J48]-[.K48]-[.L48]) -> 0 | N48: 0 | O48: 0 | P48: 0 | S48: 0 | T48: 0 | Z48: 46 | AA48: ISLE OF WIGHT | AB48: 8383957.734 | AD48: 46 | AE48: ISLE OF WIGHT | AF48: 8639875.131 | AI48: 46 | AJ48: ISLE OF WIGHT | AK48: 17594 | AL48: 167262
A49: 48 | B49: 29553481.63 | C49: 0 | D49: 0 | E49: 1900710.22 | F49: 0 | G49: =of:=SUM([.B49]+[.C49]-[.D49]-[.E49]-[.F49]) -> 27652771.41 | H49: 6434924.34 | I49: 5173417.02 | J49: 0 | K49: 0 | L49: 105600 | M49: =of:=SUM([.I49]+[.J49]-[.K49]-[.L49]) -> 5067817.02 | N49: =of:=SUM([.P49]-([.G49]+[.H49]+[.M49])) -> 22971747.23 | O49: 55889.65 | P49: 62127260 | Q49: =of:=VLOOKUP([.$A49];[$'FY 2024 TABLE 15'.$A$11:.$C$144];3;0) -> 4492.14 | S49: =of:=VLOOKUP([.A49];[.$Z$3:.$AB$138];3;0) -> 6675735.764 | T49: =of:=VLOOKUP([.$A49];[.$AD$3:.$AF$138];3;0) -> 6724367.931 | Z49: 47 | AA49: JAMES CITY | AB49: 14956360.6 | AD49: 47 | AE49: JAMES CITY | AF49: 15693540.63 | AI49: 47 | AJ49: JAMES CITY | AK49: 71792 | AL49: 0 | AM49: included in Williamsburg
A50: 49 | B50: 7393304.75 | C50: 0 | D50: 0 | E50: 220119.34 | F50: 0 | G50: =of:=SUM([.B50]+[.C50]-[.D50]-[.E50]-[.F50]) -> 7173185.41 | H50: 1049422.12 | I50: 2078095.79 | J50: 0 | K50: 0 | L50: 139041 | M50: =of:=SUM([.I50]+[.J50]-[.K50]-[.L50]) -> 1939054.79 | N50: =of:=SUM([.P50]-([.G50]+[.H50]+[.M50])) -> 4773194.87 | O50: 0 | P50: 14934857.19 | Q50: =of:=VLOOKUP([.$A50];[$'FY 2024 TABLE 15'.$A$11:.$C$144];3;0) -> 849.05 | S50: =of:=VLOOKUP([.A50];[.$Z$3:.$AB$138];3;0) -> 1075307.97 | T50: =of:=VLOOKUP([.$A50];[.$AD$3:.$AF$138];3;0) -> 1079426.26 | Z50: 48 | AA50: KING GEORGE | AB50: 6675735.764 | AD50: 48 | AE50: KING GEORGE | AF50: 6724367.931 | AI50: 48 | AJ50: KING GEORGE | AK50: 17640 | AL50: 231465
A51: 50 | B51: 16206655.39 | C51: 0 | D51: 0 | E51: 1506595.18 | F51: 0 | G51: =of:=SUM([.B51]+[.C51]-[.D51]-[.E51]-[.F51]) -> 14700060.21 | H51: 2931456.92 | I51: 3064685.81 | J51: 0 | K51: 0 | L51: 27556.24 | M51: =of:=SUM([.I51]+[.J51]-[.K51]-[.L51]) -> 3037129.57 | N51: =of:=SUM([.P51]-([.G51]+[.H51]+[.M51])) -> 10228733.06 | O51: 50 | P51: 30897379.76 | Q51: =of:=VLOOKUP([.$A51];[$'FY 2024 TABLE 15'.$A$11:.$C$144];3;0) -> 2094.34 | S51: =of:=VLOOKUP([.A51];[.$Z$3:.$AB$138];3;0) -> 2901932.219 | T51: =of:=VLOOKUP([.$A51];[.$AD$3:.$AF$138];3;0) -> 2981538.304 | Z51: 49 | AA51: KING QUEEN | AB51: 1075307.97 | AD51: 49 | AE51: KING QUEEN | AF51: 1079426.26 | AI51: 49 | AJ51: KING QUEEN | AK51: 56463 | AL51: 41679
A52: 51 | B52: 3330275.06 | C52: 0 | D52: 0 | E52: 618514.7 | F52: 0 | G52: =of:=SUM([.B52]+[.C52]-[.D52]-[.E52]-[.F52]) -> 2711760.36 | H52: 1472485.46 | I52: 2224272.58 | J52: 0 | K52: 0 | L52: 15372.71 | M52: =of:=SUM([.I52]+[.J52]-[.K52]-[.L52]) -> 2208899.87 | N52: =of:=SUM([.P52]-([.G52]+[.H52]+[.M52])) -> 12601412.78 | O52: 0 | P52: 18994558.47 | Q52: =of:=VLOOKUP([.$A52];[$'FY 2024 TABLE 15'.$A$11:.$C$144];3;0) -> 1016.73 | S52: =of:=VLOOKUP([.A52];[.$Z$3:.$AB$138];3;0) -> 1480028.487 | T52: =of:=VLOOKUP([.$A52];[.$AD$3:.$AF$138];3;0) -> 1635325.202 | Z52: 50 | AA52: KING WILLIAM | AB52: 2901932.219 | AD52: 50 | AE52: KING WILLIAM | AF52: 2981538.304 | AI52: 50 | AJ52: KING WILLIAM | AK52: 150818 | AL52: 71997
A53: 52 | B53: 31688463.14 | C53: 0 | D53: 4090055.69 | E53: 804581.87 | F53: 0 | G53: =of:=SUM([.B53]+[.C53]-[.D53]-[.E53]-[.F53]) -> 26793825.58 | H53: 4059931.04 | I53: 10275462.2 | J53: 0 | K53: 0 | L53: 86370.75 | M53: =of:=SUM([.I53]+[.J53]-[.K53]-[.L53]) -> 10189091.45 | N53: =of:=SUM([.P53]-([.G53]+[.H53]+[.M53])) -> 10234221.39 | O53: 0 | P53: 51277069.46 | Q53: =of:=VLOOKUP([.$A53];[$'FY 2024 TABLE 15'.$A$11:.$C$144];3;0) -> 2982.65 | S53: =of:=VLOOKUP([.A53];[.$Z$3:.$AB$138];3;0) -> 4037517.712 | T53: =of:=VLOOKUP([.$A53];[.$AD$3:.$AF$138];3;0) -> 4041988.094 | Z53: 51 | AA53: LANCASTER | AB53: 1480028.487 | AD53: 51 | AE53: LANCASTER | AF53: 1635325.202 | AI53: 51 | AJ53: LANCASTER | AK53: 5547 | AL53: 11532
A54: 53 | B54: 403306655.1 | C54: 0 | D54: 0 | E54: 0 | F54: 0 | G54: =of:=SUM([.B54]+[.C54]-[.D54]-[.E54]-[.F54]) -> 403306655.1 | H54: 110131367.5 | I54: 53244045.5 | J54: 0 | K54: 0 | L54: 11547571.2 | M54: =of:=SUM([.I54]+[.J54]-[.K54]-[.L54]) -> 41696474.3 | N54: =of:=SUM([.P54]-([.G54]+[.H54]+[.M54])) -> 1191166312 | O54: 0 | P54: 1746300809 | Q54: =of:=VLOOKUP([.$A54];[$'FY 2024 TABLE 15'.$A$11:.$C$144];3;0) -> 82439.13 | S54: =of:=VLOOKUP([.A54];[.$Z$3:.$AB$138];3;0) -> 112267964.5 | T54: =of:=VLOOKUP([.$A54];[.$AD$3:.$AF$138];3;0) -> 113487104 | Z54: 52 | AA54: LEE | AB54: 4037517.712 | AD54: 52 | AE54: LEE | AF54: 4041988.094 | AI54: 52 | AJ54: LEE | AK54: 259135 | AL54: 2389
A55: 54 | B55: 28653654.18 | C55: 0 | D55: 0 | E55: 0 | F55: 0 | G55: =of:=SUM([.B55]+[.C55]-[.D55]-[.E55]-[.F55]) -> 28653654.18 | H55: 7243604.88 | I55: 13398839.97 | J55: 0 | K55: 0 | L55: 293233.41 | M55: =of:=SUM([.I55]+[.J55]-[.K55]-[.L55]) -> 13105606.56 | N55: =of:=SUM([.P55]-([.G55]+[.H55]+[.M55])) -> 37262994.74 | O55: 315469.79 | P55: 86265860.36 | Q55: =of:=VLOOKUP([.$A55];[$'FY 2024 TABLE 15'.$A$11:.$C$144];3;0) -> 5135.66 | S55: =of:=VLOOKUP([.A55];[.$Z$3:.$AB$138];3;0) -> 7441045.04 | T55: =of:=VLOOKUP([.$A55];[.$AD$3:.$AF$138];3;0) -> 7668726.376 | Z55: 53 | AA55: LOUDOUN | AB55: 112267964.5 | AD55: 53 | AE55: LOUDOUN | AF55: 113487104 | AI55: 53 | AJ55: LOUDOUN | AK55: 0 | AL55: 1107487
A56: 55 | B56: 15280925.43 | C56: 0 | D56: 584630 | E56: 0 | F56: 0 | G56: =of:=SUM([.B56]+[.C56]-[.D56]-[.E56]-[.F56]) -> 14696295.43 | H56: 2189889.52 | I56: 3962283.07 | J56: 219412.42 | K56: 412975.82 | L56: 0 | M56: =of:=SUM([.I56]+[.J56]-[.K56]-[.L56]) -> 3768719.67 | N56: =of:=SUM([.P56]-([.G56]+[.H56]+[.M56])) -> 6060554.06 | O56: 0 | P56: 26715458.68 | Q56: =of:=VLOOKUP([.$A56];[$'FY 2024 TABLE 15'.$A$11:.$C$144];3;0) -> 1573.36 | S56: =of:=VLOOKUP([.A56];[.$Z$3:.$AB$138];3;0) -> 2249643.3 | T56: =of:=VLOOKUP([.$A56];[.$AD$3:.$AF$138];3;0) -> 2363128.637 | Z56: 54 | AA56: LOUISA | AB56: 7441045.04 | AD56: 54 | AE56: LOUISA | AF56: 7668726.376 | AI56: 54 | AJ56: LOUISA | AK56: 105386 | AL56: 122909
A57: 56 | B57: 10116119.52 | C57: 105996.72 | D57: 105996.72 | E57: 0 | F57: 0 | G57: =of:=SUM([.B57]+[.C57]-[.D57]-[.E57]-[.F57]) -> 10116119.52 | H57: 2732885.16 | I57: 2886185.99 | J57: 0 | K57: 0 | L57: 0 | M57: =of:=SUM([.I57]+[.J57]-[.K57]-[.L57]) -> 2886185.99 | N57: =of:=SUM([.P57]-([.G57]+[.H57]+[.M57])) -> 10059873.75 | O57: 0 | P57: 25795064.42 | Q57: =of:=VLOOKUP([.$A57];[$'FY 2024 TABLE 15'.$A$11:.$C$144];3;0) -> 1668.53 | S57: =of:=VLOOKUP([.A57];[.$Z$3:.$AB$138];3;0) -> 2711412.188 | T57: =of:=VLOOKUP([.$A57];[.$AD$3:.$AF$138];3;0) -> 2692426.203 | Z57: 55 | AA57: LUNENBURG | AB57: 2249643.3 | AD57: 55 | AE57: LUNENBURG | AF57: 2363128.637 | AI57: 55 | AJ57: LUNENBURG | AK57: 75922 | AL57: 89554
A58: 57 | B58: 4899986.35 | C58: 0 | D58: 0 | E58: 387075.1 | F58: 0 | G58: =of:=SUM([.B58]+[.C58]-[.D58]-[.E58]-[.F58]) -> 4512911.25 | H58: 1282304.4 | I58: 1537370.65 | J58: 0 | K58: 0 | L58: 20 | M58: =of:=SUM([.I58]+[.J58]-[.K58]-[.L58]) -> 1537350.65 | N58: =of:=SUM([.P58]-([.G58]+[.H58]+[.M58])) -> 10169761.66 | O58: 0 | P58: 17502327.96 | Q58: =of:=VLOOKUP([.$A58];[$'FY 2024 TABLE 15'.$A$11:.$C$144];3;0) -> 821.34 | S58: =of:=VLOOKUP([.A58];[.$Z$3:.$AB$138];3;0) -> 1244300.313 | T58: =of:=VLOOKUP([.$A58];[.$AD$3:.$AF$138];3;0) -> 1303795.11 | Z58: 56 | AA58: MADISON | AB58: 2711412.188 | AD58: 56 | AE58: MADISON | AF58: 2692426.203 | AI58: 56 | AJ58: MADISON | AK58: 20620 | AL58: 100432
A59: 58 | B59: 28734796.24 | C59: 0 | D59: 0 | E59: 0 | F59: 0 | G59: =of:=SUM([.B59]+[.C59]-[.D59]-[.E59]-[.F59]) -> 28734796.24 | H59: 5067331.46 | I59: 9349920.52 | J59: 0 | K59: 0 | L59: 341511.49 | M59: =of:=SUM([.I59]+[.J59]-[.K59]-[.L59]) -> 9008409.03 | N59: =of:=SUM([.P59]-([.G59]+[.H59]+[.M59])) -> 21397595.55 | O59: 0 | P59: 64208132.28 | Q59: =of:=VLOOKUP([.$A59];[$'FY 2024 TABLE 15'.$A$11:.$C$144];3;0) -> 3865.22 | S59: =of:=VLOOKUP([.A59];[.$Z$3:.$AB$138];3;0) -> 5111749.298 | T59: =of:=VLOOKUP([.$A59];[.$AD$3:.$AF$138];3;0) -> 5312295.316 | Z59: 57 | AA59: MATHEWS | AB59: 1244300.313 | AD59: 57 | AE59: MATHEWS | AF59: 1303795.11 | AI59: 57 | AJ59: MATHEWS | AK59: 44000 | AL59: 36705
A60: 59 | B60: 6289496.24 | C60: 0 | D60: 255903.76 | E60: 0 | F60: 652059 | G60: =of:=SUM([.B60]+[.C60]-[.D60]-[.E60]-[.F60]) -> 5381533.48 | H60: 1464062.2 | I60: 2966219.76 | J60: 45498.47 | K60: 0 | L60: 426332.4 | M60: =of:=SUM([.I60]+[.J60]-[.K60]-[.L60]) -> 2585385.83 | N60: =of:=SUM([.P60]-([.G60]+[.H60]+[.M60])) -> 11880478.16 | O60: 652059 | P60: 21311459.67 | Q60: =of:=VLOOKUP([.$A60];[$'FY 2024 TABLE 15'.$A$11:.$C$144];3;0) -> 1214.67 | S60: =of:=VLOOKUP([.A60];[.$Z$3:.$AB$138];3;0) -> 1520931.092 | T60: =of:=VLOOKUP([.$A60];[.$AD$3:.$AF$138];3;0) -> 1684440.772 | Z60: 58 | AA60: MECKLENBURG | AB60: 5111749.298 | AD60: 58 | AE60: MECKLENBURG | AF60: 5312295.316 | AI60: 58 | AJ60: MECKLENBURG | AK60: 251988 | AL60: 147521
A61: 60 | B61: 59828519.54 | C61: 3155798 | D61: 3155798 | E61: 0 | F61: 0 | G61: =of:=SUM([.B61]+[.C61]-[.D61]-[.E61]-[.F61]) -> 59828519.54 | H61: 15057624.22 | I61: 10840244.03 | J61: 83141.95 | K61: 83141.95 | L61: 0 | M61: =of:=SUM([.I61]+[.J61]-[.K61]-[.L61]) -> 10840244.03 | N61: =of:=SUM([.P61]-([.G61]+[.H61]+[.M61])) -> 58893291.1 | O61: 0 | P61: 144619678.9 | Q61: =of:=VLOOKUP([.$A61];[$'FY 2024 TABLE 15'.$A$11:.$C$144];3;0) -> 9566.78 | S61: =of:=VLOOKUP([.A61];[.$Z$3:.$AB$138];3;0) -> 14926221.84 | T61: =of:=VLOOKUP([.$A61];[.$AD$3:.$AF$138];3;0) -> 15373173.17 | Z61: 59 | AA61: MIDDLESEX | AB61: 1520931.092 | AD61: 59 | AE61: MIDDLESEX | AF61: 1684440.772 | AI61: 59 | AJ61: MIDDLESEX | AK61: 41628 | AL61: 25435
A62: 62 | B62: 8939754.57 | C62: 0 | D62: 0 | E62: 1369639.83 | F62: 0 | G62: =of:=SUM([.B62]+[.C62]-[.D62]-[.E62]-[.F62]) -> 7570114.74 | H62: 2327424.06 | I62: 4701930.45 | J62: 0 | K62: 0 | L62: 29832 | M62: =of:=SUM([.I62]+[.J62]-[.K62]-[.L62]) -> 4672098.45 | N62: =of:=SUM([.P62]-([.G62]+[.H62]+[.M62])) -> 17532929.36 | O62: 5625 | P62: 32102566.61 | Q62: =of:=VLOOKUP([.$A62];[$'FY 2024 TABLE 15'.$A$11:.$C$144];3;0) -> 1474.85 | S62: =of:=VLOOKUP([.A62];[.$Z$3:.$AB$138];3;0) -> 2336830.433 | T62: =of:=VLOOKUP([.$A62];[.$AD$3:.$AF$138];3;0) -> 2462476.038 | Z62: 60 | AA62: MONTGOMERY | AB62: 14926221.84 | AD62: 60 | AE62: MONTGOMERY | AF62: 15373173.17 | AI62: 60 | AJ62: MONTGOMERY | AK62: 90576 | AL62: 53378
A63: 63 | B63: 20778914.2 | C63: 0 | D63: 0 | E63: 0 | F63: 0 | G63: =of:=SUM([.B63]+[.C63]-[.D63]-[.E63]-[.F63]) -> 20778914.2 | H63: 4515712.7 | I63: 4388283.54 | J63: 0 | K63: 275625 | L63: 0 | M63: =of:=SUM([.I63]+[.J63]-[.K63]-[.L63]) -> 4112658.54 | N63: =of:=SUM([.P63]-([.G63]+[.H63]+[.M63])) -> 19834902.28 | O63: 0 | P63: 49242187.72 | Q63: =of:=VLOOKUP([.$A63];[$'FY 2024 TABLE 15'.$A$11:.$C$144];3;0) -> 3541.44 | S63: =of:=VLOOKUP([.A63];[.$Z$3:.$AB$138];3;0) -> 4630605.491 | T63: =of:=VLOOKUP([.$A63];[.$AD$3:.$AF$138];3;0) -> 4718443.434 | Z63: 62 | AA63: NELSON | AB63: 2336830.433 | AD63: 62 | AE63: NELSON | AF63: 2462476.038 | AI63: 62 | AJ63: NELSON | AK63: 30320 | AL63: 75396
A64: 65 | B64: 11678273.72 | C64: 249286.01 | D64: 976875.38 | E64: 1056351.65 | F64: 69623.06 | G64: =of:=SUM([.B64]+[.C64]-[.D64]-[.E64]-[.F64]) -> 9824709.64 | H64: 2028798.94 | I64: 3762713.13 | J64: 456233 | K64: 0 | L64: 339215.62 | M64: =of:=SUM([.I64]+[.J64]-[.K64]-[.L64]) -> 3879730.51 | N64: =of:=SUM([.P64]-([.G64]+[.H64]+[.M64])) -> 9838175.95 | O64: 0 | P64: 25571415.04 | Q64: =of:=VLOOKUP([.$A64];[$'FY 2024 TABLE 15'.$A$11:.$C$144];3;0) -> 1320.31 | S64: =of:=VLOOKUP([.A64];[.$Z$3:.$AB$138];3;0) -> 2042977.504 | T64: =of:=VLOOKUP([.$A64];[.$AD$3:.$AF$138];3;0) -> 2222479.507 | Z64: 63 | AA64: NEW KENT | AB64: 4630605.491 | AD64: 63 | AE64: NEW KENT | AF64: 4718443.434 | AI64: 63 | AJ64: NEW KENT | AK64: 61523 | AL64: 87618
A65: 66 | B65: 5063133.3 | C65: 0 | D65: 0 | E65: 493299.48 | F65: 8173.37 | G65: =of:=SUM([.B65]+[.C65]-[.D65]-[.E65]-[.F65]) -> 4561660.45 | H65: 1575274.2 | I65: 4698431.73 | J65: 0 | K65: 0 | L65: 476613.2 | M65: =of:=SUM([.I65]+[.J65]-[.K65]-[.L65]) -> 4221818.53 | N65: =of:=SUM([.P65]-([.G65]+[.H65]+[.M65])) -> 12841783.96 | O65: 387896.9 | P65: 23200537.14 | Q65: =of:=VLOOKUP([.$A65];[$'FY 2024 TABLE 15'.$A$11:.$C$144];3;0) -> 1162.79 | S65: =of:=VLOOKUP([.A65];[.$Z$3:.$AB$138];3;0) -> 1577979.463 | T65: =of:=VLOOKUP([.$A65];[.$AD$3:.$AF$138];3;0) -> 1575047.004 | Z65: 65 | AA65: NORTHAMPTON | AB65: 2042977.504 | AD65: 65 | AE65: NORTHAMPTON | AF65: 2222479.507 | AI65: 65 | AJ65: NORTHAMPTON | AK65: 49632 | AL65: 0
A66: 67 | B66: 17548023.37 | C66: 166920 | D66: 167388.11 | E66: 372442.3 | F66: 560134.52 | G66: =of:=SUM([.B66]+[.C66]-[.D66]-[.E66]-[.F66]) -> 16614978.44 | H66: 2654424.66 | I66: 8543356.8 | J66: 0 | K66: 0 | L66: 0 | M66: =of:=SUM([.I66]+[.J66]-[.K66]-[.L66]) -> 8543356.8 | N66: =of:=SUM([.P66]-([.G66]+[.H66]+[.M66])) -> 6012054.1 | O66: 0 | P66: 33824814 | Q66: =of:=VLOOKUP([.$A66];[$'FY 2024 TABLE 15'.$A$11:.$C$144];3;0) -> 1824.6 | S66: =of:=VLOOKUP([.A66];[.$Z$3:.$AB$138];3;0) -> 2693113.654 | T66: =of:=VLOOKUP([.$A66];[.$AD$3:.$AF$138];3;0) -> 2907864.95 | Z66: 66 | AA66: NORTHUMBERLAND | AB66: 1577979.463 | AD66: 66 | AE66: NORTHUMBERLAND | AF66: 1575047.004 | AI66: 66 | AJ66: NORTHUMBERLAND | AK66: 32676 | AL66: 43662
A67: 68 | B67: 33824389.03 | C67: 0 | D67: 0 | E67: 0 | F67: 0 | G67: =of:=SUM([.B67]+[.C67]-[.D67]-[.E67]-[.F67]) -> 33824389.03 | H67: 7088479.6 | I67: 10750800.53 | J67: 0 | K67: 1468691.68 | L67: 200908.47 | M67: =of:=SUM([.I67]+[.J67]-[.K67]-[.L67]) -> 9081200.38 | N67: =of:=SUM([.P67]-([.G67]+[.H67]+[.M67])) -> 22319296.88 | O67: 49157.88 | P67: 72313365.89 | Q67: =of:=VLOOKUP([.$A67];[$'FY 2024 TABLE 15'.$A$11:.$C$144];3;0) -> 5052.56 | S67: =of:=VLOOKUP([.A67];[.$Z$3:.$AB$138];3;0) -> 7332330.22 | T67: =of:=VLOOKUP([.$A67];[.$AD$3:.$AF$138];3;0) -> 7707795.578 | Z67: 67 | AA67: NOTTOWAY | AB67: 2693113.654 | AD67: 67 | AE67: NOTTOWAY | AF67: 2907864.95 | AI67: 67 | AJ67: NOTTOWAY | AK67: 76307 | AL67: 55018
A68: 69 | B68: 25162733.34 | C68: 0 | D68: 0 | E68: 60179.66 | F68: 0 | G68: =of:=SUM([.B68]+[.C68]-[.D68]-[.E68]-[.F68]) -> 25102553.68 | H68: 4311941.46 | I68: 5273575.49 | J68: 0 | K68: 0 | L68: 405744.61 | M68: =of:=SUM([.I68]+[.J68]-[.K68]-[.L68]) -> 4867830.88 | N68: =of:=SUM([.P68]-([.G68]+[.H68]+[.M68])) -> 13760545.59 | O68: 18134 | P68: 48042871.61 | Q68: =of:=VLOOKUP([.$A68];[$'FY 2024 TABLE 15'.$A$11:.$C$144];3;0) -> 2985.71 | S68: =of:=VLOOKUP([.A68];[.$Z$3:.$AB$138];3;0) -> 4362585.787 | T68: =of:=VLOOKUP([.$A68];[.$AD$3:.$AF$138];3;0) -> 4460586.695 | Z68: 68 | AA68: ORANGE | AB68: 7332330.22 | AD68: 68 | AE68: ORANGE | AF68: 7707795.578 | AI68: 68 | AJ68: ORANGE | AK68: 22428 | AL68: 252457
A69: 70 | B69: 22066189.82 | C69: 0 | D69: 0 | E69: 430406.51 | F69: 0 | G69: =of:=SUM([.B69]+[.C69]-[.D69]-[.E69]-[.F69]) -> 21635783.31 | H69: 2994225.84 | I69: 4808133.6 | J69: 0 | K69: 0 | L69: 233693 | M69: =of:=SUM([.I69]+[.J69]-[.K69]-[.L69]) -> 4574440.6 | N69: =of:=SUM([.P69]-([.G69]+[.H69]+[.M69])) -> 6915321.61 | O69: 0 | P69: 36119771.36 | Q69: =of:=VLOOKUP([.$A69];[$'FY 2024 TABLE 15'.$A$11:.$C$144];3;0) -> 2354.4 | S69: =of:=VLOOKUP([.A69];[.$Z$3:.$AB$138];3;0) -> 2988042.967 | T69: =of:=VLOOKUP([.$A69];[.$AD$3:.$AF$138];3;0) -> 3039583.977 | Z69: 69 | AA69: PAGE | AB69: 4362585.787 | AD69: 69 | AE69: PAGE | AF69: 4460586.695 | AI69: 69 | AJ69: PAGE | AK69: 0 | AL69: 47306
A70: 71 | B70: 76523747.73 | C70: 6640699.47 | D70: 9884333.91 | E70: 1666812.08 | F70: 0 | G70: =of:=SUM([.B70]+[.C70]-[.D70]-[.E70]-[.F70]) -> 71613301.21 | H70: 11047495.18 | I70: 23494950.69 | J70: 69317.62 | K70: 0 | L70: 1735817.92 | M70: =of:=SUM([.I70]+[.J70]-[.K70]-[.L70]) -> 21828450.39 | N70: =of:=SUM([.P70]-([.G70]+[.H70]+[.M70])) -> 24724861.03 | O70: 11450 | P70: 129214107.8 | Q70: =of:=VLOOKUP([.$A70];[$'FY 2024 TABLE 15'.$A$11:.$C$144];3;0) -> 7792.09 | S70: =of:=VLOOKUP([.A70];[.$Z$3:.$AB$138];3;0) -> 10923148.43 | T70: =of:=VLOOKUP([.$A70];[.$AD$3:.$AF$138];3;0) -> 10725054.3 | Z70: 70 | AA70: PATRICK | AB70: 2988042.967 | AD70: 70 | AE70: PATRICK | AF70: 3039583.977 | AI70: 70 | AJ70: PATRICK | AK70: 34725 | AL70: 0
A71: 72 | B71: 21806511.84 | C71: 0 | D71: 460890.88 | E71: 0 | F71: 0 | G71: =of:=SUM([.B71]+[.C71]-[.D71]-[.E71]-[.F71]) -> 21345620.96 | H71: 6087339.48 | I71: 3717088.18 | J71: 0 | K71: 0 | L71: 0 | M71: =of:=SUM([.I71]+[.J71]-[.K71]-[.L71]) -> 3717088.18 | N71: =of:=SUM([.P71]-([.G71]+[.H71]+[.M71])) -> 29571163.29 | O71: 625 | P71: 60721211.91 | Q71: =of:=VLOOKUP([.$A71];[$'FY 2024 TABLE 15'.$A$11:.$C$144];3;0) -> 4171.94 | S71: =of:=VLOOKUP([.A71];[.$Z$3:.$AB$138];3;0) -> 6263480.557 | T71: =of:=VLOOKUP([.$A71];[.$AD$3:.$AF$138];3;0) -> 6153957.57 | Z71: 71 | AA71: PITTSYLVANIA | AB71: 10923148.43 | AD71: 71 | AE71: PITTSYLVANIA | AF71: 10725054.3 | AI71: 71 | AJ71: PITTSYLVANIA | AK71: 136666 | AL71: 215904
A72: 73 | B72: 15051434.67 | C72: 0 | D72: 0 | E72: 0 | F72: 0 | G72: =of:=SUM([.B72]+[.C72]-[.D72]-[.E72]-[.F72]) -> 15051434.67 | H72: 3140520.02 | I72: 7210545.75 | J72: 0 | K72: 0 | L72: 0 | M72: =of:=SUM([.I72]+[.J72]-[.K72]-[.L72]) -> 7210545.75 | N72: =of:=SUM([.P72]-([.G72]+[.H72]+[.M72])) -> 7792490.24 | O72: 70681.07 | P72: 33194990.68 | Q72: =of:=VLOOKUP([.$A72];[$'FY 2024 TABLE 15'.$A$11:.$C$144];3;0) -> 1860.26 | S72: =of:=VLOOKUP([.A72];[.$Z$3:.$AB$138];3;0) -> 3160264.464 | T72: =of:=VLOOKUP([.$A72];[.$AD$3:.$AF$138];3;0) -> 3301905.767 | Z72: 72 | AA72: POWHATAN | AB72: 6263480.557 | AD72: 72 | AE72: POWHATAN | AF72: 6153957.57 | AI72: 72 | AJ72: POWHATAN | AK72: 106306 | AL72: 60453
A73: 74 | B73: 50412013.71 | C73: 0 | D73: 0 | E73: 0 | F73: 0 | G73: =of:=SUM([.B73]+[.C73]-[.D73]-[.E73]-[.F73]) -> 50412013.71 | H73: 8039174.76 | I73: 13120962.1 | J73: 0 | K73: 0 | L73: 1546625.55 | M73: =of:=SUM([.I73]+[.J73]-[.K73]-[.L73]) -> 11574336.55 | N73: =of:=SUM([.P73]-([.G73]+[.H73]+[.M73])) -> 15475241.88 | O73: 0 | P73: 85500766.9 | Q73: =of:=VLOOKUP([.$A73];[$'FY 2024 TABLE 15'.$A$11:.$C$144];3;0) -> 6125.02 | S73: =of:=VLOOKUP([.A73];[.$Z$3:.$AB$138];3;0) -> 7910348.619 | T73: =of:=VLOOKUP([.$A73];[.$AD$3:.$AF$138];3;0) -> 8187788.641 | Z73: 73 | AA73: PRINCE EDWARD | AB73: 3160264.464 | AD73: 73 | AE73: PRINCE EDWARD | AF73: 3301905.767 | AI73: 73 | AJ73: PRINCE EDWARD | AK73: 64548 | AL73: 47643
A74: 75 | B74: 670996536 | C74: 0 | D74: 0 | E74: 10954 | F74: 592865.99 | G74: =of:=SUM([.B74]+[.C74]-[.D74]-[.E74]-[.F74]) -> 670392716 | H74: 118304436.8 | I74: 107606752.1 | J74: 0 | K74: 0 | L74: 12203448.36 | M74: =of:=SUM([.I74]+[.J74]-[.K74]-[.L74]) -> 95403303.75 | N74: =of:=SUM([.P74]-([.G74]+[.H74]+[.M74])) -> 655375842.5 | O74: 444940.16 | P74: 1539476299 | Q74: =of:=VLOOKUP([.$A74];[$'FY 2024 TABLE 15'.$A$11:.$C$144];3;0) -> 90689.17 | S74: =of:=VLOOKUP([.A74];[.$Z$3:.$AB$138];3;0) -> 121852090.8 | T74: =of:=VLOOKUP([.$A74];[.$AD$3:.$AF$138];3;0) -> 125768228.8 | Z74: 74 | AA74: PRINCE GEORGE | AB74: 7910348.619 | AD74: 74 | AE74: PRINCE GEORGE | AF74: 8187788.641 | AI74: 74 | AJ74: PRINCE GEORGE | AK74: 14918 | AL74: 94603
A75: 77 | B75: 35392045.74 | C75: 0 | D75: 0 | E75: 0 | F75: 0 | G75: =of:=SUM([.B75]+[.C75]-[.D75]-[.E75]-[.F75]) -> 35392045.74 | H75: 5591687.3 | I75: 10953247.01 | J75: 0 | K75: 0 | L75: 29837.08 | M75: =of:=SUM([.I75]+[.J75]-[.K75]-[.L75]) -> 10923409.93 | N75: =of:=SUM([.P75]-([.G75]+[.H75]+[.M75])) -> 15819807.43 | O75: 0 | P75: 67726950.4 | Q75: =of:=VLOOKUP([.$A75];[$'FY 2024 TABLE 15'.$A$11:.$C$144];3;0) -> 4322.39 | S75: =of:=VLOOKUP([.A75];[.$Z$3:.$AB$138];3;0) -> 5660705.318 | T75: =of:=VLOOKUP([.$A75];[.$AD$3:.$AF$138];3;0) -> 5765498.068 | Z75: 75 | AA75: PRINCE WILLIAM | AB75: 121852090.8 | AD75: 75 | AE75: PRINCE WILLIAM | AF75: 125768228.8 | AI75: 75 | AJ75: PRINCE WILLIAM | AK75: 383488 | AL75: 1243399
A76: 78 | B76: 2726842.25 | C76: 0 | D76: 0 | E76: 392044.47 | F76: 0 | G76: =of:=SUM([.B76]+[.C76]-[.D76]-[.E76]-[.F76]) -> 2334797.78 | H76: 1170817.9 | I76: 696835.63 | J76: 0 | K76: 0 | L76: 0 | M76: =of:=SUM([.I76]+[.J76]-[.K76]-[.L76]) -> 696835.63 | N76: =of:=SUM([.P76]-([.G76]+[.H76]+[.M76])) -> 11271849.97 | O76: 0 | P76: 15474301.28 | Q76: =of:=VLOOKUP([.$A76];[$'FY 2024 TABLE 15'.$A$11:.$C$144];3;0) -> 771.87 | S76: =of:=VLOOKUP([.A76];[.$Z$3:.$AB$138];3;0) -> 1184022.79 | T76: =of:=VLOOKUP([.$A76];[.$AD$3:.$AF$138];3;0) -> 1217842.864 | Z76: 77 | AA76: PULASKI | AB76: 5660705.318 | AD76: 77 | AE76: PULASKI | AF76: 5765498.068 | AI76: 77 | AJ76: PULASKI | AK76: 294050 | AL76: 45901
A77: 79 | B77: 12521790.62 | C77: 0 | D77: 0 | E77: 1452576.88 | F77: 230205 | G77: =of:=SUM([.B77]+[.C77]-[.D77]-[.E77]-[.F77]) -> 10839008.74 | H77: 1477835.4 | I77: 2820575.8 | J77: 0 | K77: 0 | L77: 247814.23 | M77: =of:=SUM([.I77]+[.J77]-[.K77]-[.L77]) -> 2572761.57 | N77: =of:=SUM([.P77]-([.G77]+[.H77]+[.M77])) -> 5496942.19 | O77: 0 | P77: 20386547.9 | Q77: =of:=VLOOKUP([.$A77];[$'FY 2024 TABLE 15'.$A$11:.$C$144];3;0) -> 1367.8 | S77: =of:=VLOOKUP([.A77];[.$Z$3:.$AB$138];3;0) -> 1544611.548 | T77: =of:=VLOOKUP([.$A77];[.$AD$3:.$AF$138];3;0) -> 1590674.685 | Z77: 78 | AA77: RAPPAHANNOCK | AB77: 1184022.79 | AD77: 78 | AE77: RAPPAHANNOCK | AF77: 1217842.864 | AI77: 78 | AJ77: RAPPAHANNOCK | AK77: 21324 | AL77: 6919
A78: 80 | B78: 92572042.22 | C78: 712481.73 | D78: 4243868.09 | E78: 822617.5 | F78: 0 | G78: =of:=SUM([.B78]+[.C78]-[.D78]-[.E78]-[.F78]) -> 88218038.36 | H78: 18841607.68 | I78: 16863275.2 | J78: 0 | K78: 0 | L78: 1574579.88 | M78: =of:=SUM([.I78]+[.J78]-[.K78]-[.L78]) -> 15288695.32 | N78: =of:=SUM([.P78]-([.G78]+[.H78]+[.M78])) -> 96208793.31 | O78: 68500 | P78: 218557134.7 | Q78: =of:=VLOOKUP([.$A78];[$'FY 2024 TABLE 15'.$A$11:.$C$144];3;0) -> 13715.82 | S78: =of:=VLOOKUP([.A78];[.$Z$3:.$AB$138];3;0) -> 18786136.13 | T78: =of:=VLOOKUP([.$A78];[.$AD$3:.$AF$138];3;0) -> 19249954.34 | Z78: 79 | AA78: RICHMOND | AB78: 1544611.548 | AD78: 79 | AE78: RICHMOND | AF78: 1590674.685 | AI78: 79 | AJ78: RICHMOND | AK78: 79392 | AL78: 88161
A79: 81 | B79: 17469725.45 | C79: 0 | D79: 0 | E79: 2409570 | F79: 0 | G79: =of:=SUM([.B79]+[.C79]-[.D79]-[.E79]-[.F79]) -> 15060155.45 | H79: 3930632.36 | I79: 4501553.24 | J79: 0 | K79: 0 | L79: 0 | M79: =of:=SUM([.I79]+[.J79]-[.K79]-[.L79]) -> 4501553.24 | N79: =of:=SUM([.P79]-([.G79]+[.H79]+[.M79])) -> 17699764.66 | O79: 1883862.67 | P79: 41192105.71 | Q79: =of:=VLOOKUP([.$A79];[$'FY 2024 TABLE 15'.$A$11:.$C$144];3;0) -> 2309.58 | S79: =of:=VLOOKUP([.A79];[.$Z$3:.$AB$138];3;0) -> 3933108.43 | T79: =of:=VLOOKUP([.$A79];[.$AD$3:.$AF$138];3;0) -> 3945989.481 | Z79: 80 | AA79: ROANOKE | AB79: 18786136.13 | AD79: 80 | AE79: ROANOKE | AF79: 19249954.34 | AI79: 80 | AJ79: ROANOKE | AK79: 68500 | AL79: 116559
A80: 82 | B80: 80858284.66 | C80: 0 | D80: 0 | E80: 92795.77 | F80: 0 | G80: =of:=SUM([.B80]+[.C80]-[.D80]-[.E80]-[.F80]) -> 80765488.89 | H80: 17264686.12 | I80: 14761249.2 | J80: 0 | K80: 0 | L80: 406092.41 | M80: =of:=SUM([.I80]+[.J80]-[.K80]-[.L80]) -> 14355156.79 | N80: =of:=SUM([.P80]-([.G80]+[.H80]+[.M80])) -> 66542620.9 | O80: 370955.49 | P80: 178927952.7 | Q80: =of:=VLOOKUP([.$A80];[$'FY 2024 TABLE 15'.$A$11:.$C$144];3;0) -> 11554.51 | S80: =of:=VLOOKUP([.A80];[.$Z$3:.$AB$138];3;0) -> 17274892.5 | T80: =of:=VLOOKUP([.$A80];[.$AD$3:.$AF$138];3;0) -> 18381501.78 | Z80: 81 | AA80: ROCKBRIDGE | AB80: 3933108.43 | AD80: 81 | AE80: ROCKBRIDGE | AF80: 3945989.481 | AI80: 81 | AJ80: ROCKBRIDGE | AK80: 25520 | AL80: 0
A81: 83 | B81: 32551148.21 | C81: 0 | D81: 0 | E81: 406958.64 | F81: 0 | G81: =of:=SUM([.B81]+[.C81]-[.D81]-[.E81]-[.F81]) -> 32144189.57 | H81: 4593851.46 | I81: 8253628.07 | J81: 0 | K81: 0 | L81: 383906.73 | M81: =of:=SUM([.I81]+[.J81]-[.K81]-[.L81]) -> 7869721.34 | N81: =of:=SUM([.P81]-([.G81]+[.H81]+[.M81])) -> 7103310.53 | O81: 0 | P81: 51711072.9 | Q81: =of:=VLOOKUP([.$A81];[$'FY 2024 TABLE 15'.$A$11:.$C$144];3;0) -> 3415.33 | S81: =of:=VLOOKUP([.A81];[.$Z$3:.$AB$138];3;0) -> 4626299.954 | T81: =of:=VLOOKUP([.$A81];[.$AD$3:.$AF$138];3;0) -> 4651467.657 | Z81: 82 | AA81: ROCKINGHAM | AB81: 17274892.5 | AD81: 82 | AE81: ROCKINGHAM | AF81: 18381501.78 | AI81: 82 | AJ81: ROCKINGHAM | AK81: 0 | AL81: 112984
A82: 84 | B82: 47697384.5 | C82: 0 | D82: 0 | E82: 0 | F82: 0 | G82: =of:=SUM([.B82]+[.C82]-[.D82]-[.E82]-[.F82]) -> 47697384.5 | H82: 3885890.02 | I82: 8003398.56 | J82: 0 | K82: 0 | L82: 0 | M82: =of:=SUM([.I82]+[.J82]-[.K82]-[.L82]) -> 8003398.56 | N82: =of:=SUM([.P82]-([.G82]+[.H82]+[.M82])) -> 10490771.95 | O82: 0 | P82: 70077445.03 | Q82: =of:=VLOOKUP([.$A82];[$'FY 2024 TABLE 15'.$A$11:.$C$144];3;0) -> 4251.93 | S82: =of:=VLOOKUP([.A82];[.$Z$3:.$AB$138];3;0) -> 3836233.838 | T82: =of:=VLOOKUP([.$A82];[.$AD$3:.$AF$138];3;0) -> 4023011.624 | Z82: 83 | AA82: RUSSELL | AB82: 4626299.954 | AD82: 83 | AE82: RUSSELL | AF82: 4651467.657 | AI82: 83 | AJ82: RUSSELL | AK82: 592434 | AL82: 260959
A83: 85 | B83: 40160085.39 | C83: 0 | D83: 0 | E83: 304534.76 | F83: 286627 | G83: =of:=SUM([.B83]+[.C83]-[.D83]-[.E83]-[.F83]) -> 39568923.63 | H83: 8713701.38 | I83: 11382183.57 | J83: 0 | K83: 0 | L83: 187629.55 | M83: =of:=SUM([.I83]+[.J83]-[.K83]-[.L83]) -> 11194554.02 | N83: =of:=SUM([.P83]-([.G83]+[.H83]+[.M83])) -> 31458846.33 | O83: 0 | P83: 90936025.36 | Q83: =of:=VLOOKUP([.$A83];[$'FY 2024 TABLE 15'.$A$11:.$C$144];3;0) -> 5655.02 | S83: =of:=VLOOKUP([.A83];[.$Z$3:.$AB$138];3;0) -> 8756386.721 | T83: =of:=VLOOKUP([.$A83];[.$AD$3:.$AF$138];3;0) -> 9071868.887 | Z83: 84 | AA83: SCOTT | AB83: 3836233.838 | AD83: 84 | AE83: SCOTT | AF83: 4023011.624 | AI83: 84 | AJ83: SCOTT | AK83: 218492 | AL83: 156593
A84: 86 | B84: 37760540.65 | C84: 0 | D84: 0 | E84: 473677.97 | F84: 0 | G84: =of:=SUM([.B84]+[.C84]-[.D84]-[.E84]-[.F84]) -> 37286862.68 | H84: 5516111.06 | I84: 12530099.43 | J84: 0 | K84: 0 | L84: 0 | M84: =of:=SUM([.I84]+[.J84]-[.K84]-[.L84]) -> 12530099.43 | N84: =of:=SUM([.P84]-([.G84]+[.H84]+[.M84])) -> 11744476.64 | O84: 0 | P84: 67077549.81 | Q84: =of:=VLOOKUP([.$A84];[$'FY 2024 TABLE 15'.$A$11:.$C$144];3;0) -> 3869.45 | S84: =of:=VLOOKUP([.A84];[.$Z$3:.$AB$138];3;0) -> 5373310.696 | T84: =of:=VLOOKUP([.$A84];[.$AD$3:.$AF$138];3;0) -> 5543361.744 | Z84: 85 | AA84: SHENANDOAH | AB84: 8756386.721 | AD84: 85 | AE84: SHENANDOAH | AF84: 9071868.887 | AI84: 85 | AJ84: SHENANDOAH | AK84: 23542 | AL84: 88622
A85: 87 | B85: 22118287.75 | C85: 0 | D85: 1435218.48 | E85: 20620 | F85: 0 | G85: =of:=SUM([.B85]+[.C85]-[.D85]-[.E85]-[.F85]) -> 20662449.27 | H85: 3264371.78 | I85: 3986216.94 | J85: 45575.14 | K85: 40417.26 | L85: 277600 | M85: =of:=SUM([.I85]+[.J85]-[.K85]-[.L85]) -> 3713774.82 | N85: =of:=SUM([.P85]-([.G85]+[.H85]+[.M85])) -> 11428863.55 | O85: 375000 | P85: 39069459.42 | Q85: =of:=VLOOKUP([.$A85];[$'FY 2024 TABLE 15'.$A$11:.$C$144];3;0) -> 2472.54 | S85: =of:=VLOOKUP([.A85];[.$Z$3:.$AB$138];3;0) -> 3356166.416 | T85: =of:=VLOOKUP([.$A85];[.$AD$3:.$AF$138];3;0) -> 3335393.655 | Z85: 86 | AA85: SMYTH | AB85: 5373310.696 | AD85: 86 | AE85: SMYTH | AF85: 5543361.744 | AI85: 86 | AJ85: SMYTH | AK85: 28045 | AL85: 135199
A86: 88 | B86: 171810077.4 | C86: 0 | D86: 6039759.94 | E86: 6770565 | F86: 76896 | G86: =of:=SUM([.B86]+[.C86]-[.D86]-[.E86]-[.F86]) -> 158922856.5 | H86: 33052930.34 | I86: 32245112.46 | J86: 0 | K86: 0 | L86: 776980.04 | M86: =of:=SUM([.I86]+[.J86]-[.K86]-[.L86]) -> 31468132.42 | N86: =of:=SUM([.P86]-([.G86]+[.H86]+[.M86])) -> 133273098.3 | O86: 1260 | P86: 356717017.6 | Q86: =of:=VLOOKUP([.$A86];[$'FY 2024 TABLE 15'.$A$11:.$C$144];3;0) -> 23865.69 | S86: =of:=VLOOKUP([.A86];[.$Z$3:.$AB$138];3;0) -> 34235480.77 | T86: =of:=VLOOKUP([.$A86];[.$AD$3:.$AF$138];3;0) -> 35807482.49 | Z86: 87 | AA86: SOUTHAMPTON | AB86: 3356166.416 | AD86: 87 | AE86: SOUTHAMPTON | AF86: 3335393.655 | AI86: 87 | AJ86: SOUTHAMPTON | AK86: 0 | AL86: 68146
A87: 89 | B87: 220665887.1 | C87: 0 | D87: 0 | E87: 5656165.5 | F87: 0 | G87: =of:=SUM([.B87]+[.C87]-[.D87]-[.E87]-[.F87]) -> 215009721.6 | H87: 41058860.32 | I87: 34308823.53 | J87: 0 | K87: 0 | L87: 919223.38 | M87: =of:=SUM([.I87]+[.J87]-[.K87]-[.L87]) -> 33389600.15 | N87: =of:=SUM([.P87]-([.G87]+[.H87]+[.M87])) -> 155155048 | O87: 0 | P87: 444613230 | Q87: =of:=VLOOKUP([.$A87];[$'FY 2024 TABLE 15'.$A$11:.$C$144];3;0) -> 31662.95 | S87: =of:=VLOOKUP([.A87];[.$Z$3:.$AB$138];3;0) -> 41923017.82 | T87: =of:=VLOOKUP([.$A87];[.$AD$3:.$AF$138];3;0) -> 43364582.57 | Z87: 88 | AA87: SPOTSYLVANIA | AB87: 34235480.77 | AD87: 88 | AE87: SPOTSYLVANIA | AF87: 35807482.49 | AI87: 88 | AJ87: SPOTSYLVANIA | AK87: 44002 | AL87: 475882
A88: 90 | B88: 2738954.71 | C88: 0 | D88: 0 | E88: 0 | F88: 0 | G88: =of:=SUM([.B88]+[.C88]-[.D88]-[.E88]-[.F88]) -> 2738954.71 | H88: 923003.34 | I88: 2860548.83 | J88: 0 | K88: 0 | L88: 0 | M88: =of:=SUM([.I88]+[.J88]-[.K88]-[.L88]) -> 2860548.83 | N88: =of:=SUM([.P88]-([.G88]+[.H88]+[.M88])) -> 12413305.32 | O88: 0 | P88: 18935812.2 | Q88: =of:=VLOOKUP([.$A88];[$'FY 2024 TABLE 15'.$A$11:.$C$144];3;0) -> 689.88 | S88: =of:=VLOOKUP([.A88];[.$Z$3:.$AB$138];3;0) -> 989197.2215 | T88: =of:=VLOOKUP([.$A88];[.$AD$3:.$AF$138];3;0) -> 1038124.531 | Z88: 89 | AA88: STAFFORD | AB88: 41923017.82 | AD88: 89 | AE88: STAFFORD | AF88: 43364582.57 | AI88: 89 | AJ88: STAFFORD | AK88: 233932 | AL88: 683848
A89: 91 | B89: 11037326.24 | C89: 0 | D89: 0 | E89: 1386594 | F89: 0 | G89: =of:=SUM([.B89]+[.C89]-[.D89]-[.E89]-[.F89]) -> 9650732.24 | H89: 1451133.32 | I89: 5036801.66 | J89: 0 | K89: 0 | L89: 0 | M89: =of:=SUM([.I89]+[.J89]-[.K89]-[.L89]) -> 5036801.66 | N89: =of:=SUM([.P89]-([.G89]+[.H89]+[.M89])) -> 9331294.93 | O89: 0 | P89: 25469962.15 | Q89: =of:=VLOOKUP([.$A89];[$'FY 2024 TABLE 15'.$A$11:.$C$144];3;0) -> 1010.28 | S89: =of:=VLOOKUP([.A89];[.$Z$3:.$AB$138];3;0) -> 1447736.956 | T89: =of:=VLOOKUP([.$A89];[.$AD$3:.$AF$138];3;0) -> 1562768.111 | Z89: 90 | AA89: SURRY | AB89: 989197.2215 | AD89: 90 | AE89: SURRY | AF89: 1038124.531 | AI89: 90 | AJ89: SURRY | AK89: 0 | AL89: 5535
A90: 92 | B90: 47072154.92 | C90: 0 | D90: 0 | E90: 2124037.94 | F90: 0 | G90: =of:=SUM([.B90]+[.C90]-[.D90]-[.E90]-[.F90]) -> 44948116.98 | H90: 7060490.68 | I90: 29876356.02 | J90: 0 | K90: 0 | L90: 2026052.71 | M90: =of:=SUM([.I90]+[.J90]-[.K90]-[.L90]) -> 27850303.31 | N90: =of:=SUM([.P90]-([.G90]+[.H90]+[.M90])) -> 10830128.66 | O90: 416005.82 | P90: 90689039.63 | Q90: =of:=VLOOKUP([.$A90];[$'FY 2024 TABLE 15'.$A$11:.$C$144];3;0) -> 5271.56 | S90: =of:=VLOOKUP([.A90];[.$Z$3:.$AB$138];3;0) -> 7191323.87 | T90: =of:=VLOOKUP([.$A90];[.$AD$3:.$AF$138];3;0) -> 7701098.001 | Z90: 91 | AA90: SUSSEX | AB90: 1447736.956 | AD90: 91 | AE90: SUSSEX | AF90: 1562768.111 | AI90: 91 | AJ90: SUSSEX | AK90: 27700 | AL90: 40626
A91: 93 | B91: 32229054.25 | C91: 0 | D91: 0 | E91: 2098949 | F91: 0 | G91: =of:=SUM([.B91]+[.C91]-[.D91]-[.E91]-[.F91]) -> 30130105.25 | H91: 8236772.16 | I91: 9639194.33 | J91: 0 | K91: 0 | L91: 0 | M91: =of:=SUM([.I91]+[.J91]-[.K91]-[.L91]) -> 9639194.33 | N91: =of:=SUM([.P91]-([.G91]+[.H91]+[.M91])) -> 28817240.74 | O91: 215632.12 | P91: 76823312.48 | Q91: =of:=VLOOKUP([.$A91];[$'FY 2024 TABLE 15'.$A$11:.$C$144];3;0) -> 5107.37 | S91: =of:=VLOOKUP([.A91];[.$Z$3:.$AB$138];3;0) -> 8313992.751 | T91: =of:=VLOOKUP([.$A91];[.$AD$3:.$AF$138];3;0) -> 8517086.207 | Z91: 92 | AA91: TAZEWELL | AB91: 7191323.87 | AD91: 92 | AE91: TAZEWELL | AF91: 7701098.001 | AI91: 92 | AJ91: TAZEWELL | AK91: 582957 | AL91: 192939
A92: 94 | B92: 53071814.29 | C92: 0 | D92: 0 | E92: 1006164.85 | F92: 1840637.4 | G92: =of:=SUM([.B92]+[.C92]-[.D92]-[.E92]-[.F92]) -> 50225012.04 | H92: 9435442.04 | I92: 16660541.44 | J92: 0 | K92: 0 | L92: 4232285.55 | M92: =of:=SUM([.I92]+[.J92]-[.K92]-[.L92]) -> 12428255.89 | N92: =of:=SUM([.P92]-([.G92]+[.H92]+[.M92])) -> 28983095.45 | O92: 237040.2 | P92: 101071805.4 | Q92: =of:=VLOOKUP([.$A92];[$'FY 2024 TABLE 15'.$A$11:.$C$144];3;0) -> 6748.62 | S92: =of:=VLOOKUP([.A92];[.$Z$3:.$AB$138];3;0) -> 9346245.347 | T92: =of:=VLOOKUP([.$A92];[.$AD$3:.$AF$138];3;0) -> 9445816.971 | Z92: 93 | AA92: WARREN | AB92: 8313992.751 | AD92: 93 | AE92: WARREN | AF92: 8517086.207 | AI92: 93 | AJ92: WARREN | AK92: 0 | AL92: 74437
A93: 95 | B93: 13705677.65 | C93: 0 | D93: 0 | E93: 0 | F93: 0 | G93: =of:=SUM([.B93]+[.C93]-[.D93]-[.E93]-[.F93]) -> 13705677.65 | H93: 2350574.63 | I93: 4520043.36 | J93: 0 | K93: 0 | L93: 852842.13 | M93: =of:=SUM([.I93]+[.J93]-[.K93]-[.L93]) -> 3667201.23 | N93: =of:=SUM([.P93]-([.G93]+[.H93]+[.M93])) -> 11614132.81 | O93: 6863.9 | P93: 31337586.32 | Q93: =of:=VLOOKUP([.$A93];[$'FY 2024 TABLE 15'.$A$11:.$C$144];3;0) -> 1554.5 | S93: =of:=VLOOKUP([.A93];[.$Z$3:.$AB$138];3;0) -> 2337906.817 | T93: =of:=VLOOKUP([.$A93];[.$AD$3:.$AF$138];3;0) -> 2498196.452 | Z93: 94 | AA93: WASHINGTON | AB93: 9346245.347 | AD93: 94 | AE93: WASHINGTON | AF93: 9445816.971 | AI93: 94 | AJ93: WASHINGTON | AK93: 90555 | AL93: 277717
A94: 96 | B94: 50015104.31 | C94: 2734585.97 | D94: 8216805.04 | E94: 2307573.82 | F94: 0 | G94: =of:=SUM([.B94]+[.C94]-[.D94]-[.E94]-[.F94]) -> 42225311.42 | H94: 6641582.14 | I94: 14384146.62 | J94: 0 | K94: 0 | L94: 1325678.63 | M94: =of:=SUM([.I94]+[.J94]-[.K94]-[.L94]) -> 13058467.99 | N94: =of:=SUM([.P94]-([.G94]+[.H94]+[.M94])) -> 20920006.2 | O94: 473115.91 | P94: 82845367.75 | Q94: =of:=VLOOKUP([.$A94];[$'FY 2024 TABLE 15'.$A$11:.$C$144];3;0) -> 5815.5 | S94: =of:=VLOOKUP([.A94];[.$Z$3:.$AB$138];3;0) -> 6540111.336 | T94: =of:=VLOOKUP([.$A94];[.$AD$3:.$AF$138];3;0) -> 6729949.246 | Z94: 95 | AA94: WESTMORELAND | AB94: 2337906.817 | AD94: 95 | AE94: WESTMORELAND | AF94: 2498196.452 | AI94: 95 | AJ94: WESTMORELAND | AK94: 45432 | AL94: 42234
A95: 97 | B95: 35837952.67 | C95: 0 | D95: 0 | E95: 5410000 | F95: 163210 | G95: =of:=SUM([.B95]+[.C95]-[.D95]-[.E95]-[.F95]) -> 30264742.67 | H95: 5179688.22 | I95: 13000672.55 | J95: 0 | K95: 0 | L95: 5440747.77 | M95: =of:=SUM([.I95]+[.J95]-[.K95]-[.L95]) -> 7559924.78 | N95: =of:=SUM([.P95]-([.G95]+[.H95]+[.M95])) -> 13046233.86 | O95: 0 | P95: 56050589.53 | Q95: =of:=VLOOKUP([.$A95];[$'FY 2024 TABLE 15'.$A$11:.$C$144];3;0) -> 3766.37 | S95: =of:=VLOOKUP([.A95];[.$Z$3:.$AB$138];3;0) -> 5236609.883 | T95: =of:=VLOOKUP([.$A95];[.$AD$3:.$AF$138];3;0) -> 5379271.092 | Z95: 96 | AA95: WISE | AB95: 6540111.336 | AD95: 96 | AE95: WISE | AF95: 6729949.246 | AI95: 96 | AJ95: WISE | AK95: 288372 | AL95: 271378
A96: 98 | B96: 83863725.1 | C96: 0 | D96: 0 | E96: 2172112.4 | F96: 0 | G96: =of:=SUM([.B96]+[.C96]-[.D96]-[.E96]-[.F96]) -> 81691612.7 | H96: 16340826.56 | I96: 27550099.03 | J96: 0 | K96: 0 | L96: 3379421.78 | M96: =of:=SUM([.I96]+[.J96]-[.K96]-[.L96]) -> 24170677.25 | N96: =of:=SUM([.P96]-([.G96]+[.H96]+[.M96])) -> 70859963.87 | O96: 0 | P96: 193063080.4 | Q96: =of:=VLOOKUP([.$A96];[$'FY 2024 TABLE 15'.$A$11:.$C$144];3;0) -> 13021.98 | S96: =of:=VLOOKUP([.A96];[.$Z$3:.$AB$138];3;0) -> 16549409.44 | T96: =of:=VLOOKUP([.$A96];[.$AD$3:.$AF$138];3;0) -> 16688130.9 | Z96: 97 | AA96: WYTHE | AB96: 5236609.883 | AD96: 97 | AE96: WYTHE | AF96: 5379271.092 | AI96: 97 | AJ96: WYTHE | AK96: 133920 | AL96: 162810
A97: 101 | B97: 46884720.39 | C97: 0 | D97: 0 | E97: 2002662.16 | F97: 0 | G97: =of:=SUM([.B97]+[.C97]-[.D97]-[.E97]-[.F97]) -> 44882058.23 | H97: 23096056.06 | I97: 36576410.65 | J97: 0 | K97: 0 | L97: 573587.4 | M97: =of:=SUM([.I97]+[.J97]-[.K97]-[.L97]) -> 36002823.25 | N97: =of:=SUM([.P97]-([.G97]+[.H97]+[.M97])) -> 265269893.8 | O97: 141456.95 | P97: 369250831.3 | Q97: =of:=VLOOKUP([.$A97];[$'FY 2024 TABLE 15'.$A$11:.$C$144];3;0) -> 16572.83 | S97: =of:=VLOOKUP([.A97];[.$Z$3:.$AB$138];3;0) -> 23322019.8 | T97: =of:=VLOOKUP([.$A97];[.$AD$3:.$AF$138];3;0) -> 23836678.75 | Z97: 98 | AA97: YORK | AB97: 16549409.44 | AD97: 98 | AE97: YORK | AF97: 16688130.9 | AI97: 98 | AJ97: YORK | AK97: 135564 | AL97: 261583
A98: 102 | B98: 21090931.17 | C98: 3451670.89 | D98: 4932492.19 | E98: 619408.37 | F98: 183138 | G98: =of:=SUM([.B98]+[.C98]-[.D98]-[.E98]-[.F98]) -> 18807563.5 | H98: 3268153.54 | I98: 9509610.08 | J98: 0 | K98: 0 | L98: 56831.62 | M98: =of:=SUM([.I98]+[.J98]-[.K98]-[.L98]) -> 9452778.46 | N98: =of:=SUM([.P98]-([.G98]+[.H98]+[.M98])) -> 9183471.85 | O98: 137759.8 | P98: 40711967.35 | Q98: =of:=VLOOKUP([.$A98];[$'FY 2024 TABLE 15'.$A$11:.$C$144];3;0) -> 2151.45 | S98: =of:=VLOOKUP([.A98];[.$Z$3:.$AB$138];3;0) -> 3148424.236 | T98: =of:=VLOOKUP([.$A98];[.$AD$3:.$AF$138];3;0) -> 3224883.624 | Z98: 101 | AA98: ALEXANDRIA | AB98: 23322019.8 | AD98: 101 | AE98: ALEXANDRIA | AF98: 23836678.75 | AI98: 101 | AJ98: ALEXANDRIA | AK98: 4498 | AL98: 0
A99: 103 | B99: 9140224.98 | C99: 0 | D99: 0 | E99: 6405.58 | F99: 127924.48 | G99: =of:=SUM([.B99]+[.C99]-[.D99]-[.E99]-[.F99]) -> 9005894.92 | H99: 1194872.88 | I99: 2473761.34 | J99: 0 | K99: 0 | L99: 187242.6 | M99: =of:=SUM([.I99]+[.J99]-[.K99]-[.L99]) -> 2286518.74 | N99: =of:=SUM([.P99]-([.G99]+[.H99]+[.M99])) -> 1928479.85 | O99: 0 | P99: 14415766.39 | Q99: =of:=VLOOKUP([.$A99];[$'FY 2024 TABLE 15'.$A$11:.$C$144];3;0) -> 831.72 | S99: =of:=VLOOKUP([.A99];[.$Z$3:.$AB$138];3;0) -> 1215237.936 | T99: =of:=VLOOKUP([.$A99];[.$AD$3:.$AF$138];3;0) -> 1314957.74 | Z99: 102 | AA99: BRISTOL | AB99: 3148424.236 | AD99: 102 | AE99: BRISTOL | AF99: 3224883.624 | AI99: 102 | AJ99: BRISTOL | AK99: 92583 | AL99: 26018
A100: 104 | B100: 29524621.54 | C100: 0 | D100: 0 | E100: 192107.66 | F100: 0 | G100: =of:=SUM([.B100]+[.C100]-[.D100]-[.E100]-[.F100]) -> 29332513.88 | H100: 6914493.96 | I100: 16820114.56 | J100: 0 | K100: 0 | L100: 172955.06 | M100: =of:=SUM([.I100]+[.J100]-[.K100]-[.L100]) -> 16647159.5 | N100: =of:=SUM([.P100]-([.G100]+[.H100]+[.M100])) -> 42342440.32 | O100: 0 | P100: 95236607.66 | Q100: =of:=VLOOKUP([.$A100];[$'FY 2024 TABLE 15'.$A$11:.$C$144];3;0) -> 4341.47 | S100: =of:=VLOOKUP([.A100];[.$Z$3:.$AB$138];3;0) -> 7137504.652 | T100: =of:=VLOOKUP([.$A100];[.$AD$3:.$AF$138];3;0) -> 7308173.447 | Z100: 103 | AA100: BUENA VISTA | AB100: 1215237.936 | AD100: 103 | AE100: BUENA VISTA | AF100: 1314957.74 | AI100: 103 | AJ100: BUENA VISTA | AK100: 20864 | AL100: 11151
A101: 106 | B101: 20187162.67 | C101: 0 | D101: 0 | E101: 160037.7 | F101: 0 | G101: =of:=SUM([.B101]+[.C101]-[.D101]-[.E101]-[.F101]) -> 20027124.97 | H101: 3711607.6 | I101: 5750874.5 | J101: 0 | K101: 0 | L101: 1813584.3 | M101: =of:=SUM([.I101]+[.J101]-[.K101]-[.L101]) -> 3937290.2 | N101: =of:=SUM([.P101]-([.G101]+[.H101]+[.M101])) -> 23170041.79 | O101: 67536.39 | P101: 50846064.56 | Q101: =of:=VLOOKUP([.$A101];[$'FY 2024 TABLE 15'.$A$11:.$C$144];3;0) -> 2904.04 | S101: =of:=VLOOKUP([.A101];[.$Z$3:.$AB$138];3;0) -> 3868525.369 | T101: =of:=VLOOKUP([.$A101];[.$AD$3:.$AF$138];3;0) -> 4160311.965 | Z101: 104 | AA101: CHARLOTTESVILLE | AB101: 7137504.652 | AD101: 104 | AE101: CHARLOTTESVILLE | AF101: 7308173.447 | AI101: 104 | AJ101: CHARLOTTESVILLE | AK101: 0 | AL101: 0
A102: 107 | B102: 0 | C102: 0 | D102: 0 | E102: 0 | F102: 0 | G102: =of:=SUM([.B102]+[.C102]-[.D102]-[.E102]-[.F102]) -> 0 | H102: 0 | I102: 0 | J102: 0 | K102: 0 | L102: 0 | M102: =of:=SUM([.I102]+[.J102]-[.K102]-[.L102]) -> 0 | N102: 0 | O102: 0 | P102: 0 | Q102: =of:=VLOOKUP([.$A102];[$'FY 2024 TABLE 15'.$A$11:.$C$144];3;0) -> 0 | S102: =of:=VLOOKUP([.A102];[.$Z$3:.$AB$138];3;0) -> 0 | T102: =of:=VLOOKUP([.$A102];[.$AD$3:.$AF$138];3;0) -> 0 | Z102: 106 | AA102: COLONIAL HEIGHTS | AB102: 3868525.369 | AD102: 106 | AE102: COLONIAL HEIGHTS | AF102: 4160311.965 | AI102: 106 | AJ102: COLONIAL HEIGHTS | AK102: 11552 | AL102: 68692
A103: 108 | B103: 97360080.26 | C103: 0 | D103: 0 | E103: 755448.92 | F103: 0 | G103: =of:=SUM([.B103]+[.C103]-[.D103]-[.E103]-[.F103]) -> 96604631.34 | H103: 8308084.63 | I103: 28020712.83 | J103: 0 | K103: -47686.02 | L103: 2004715.55 | M103: =of:=SUM([.I103]+[.J103]-[.K103]-[.L103]) -> 26063683.3 | N103: =of:=SUM([.P103]-([.G103]+[.H103]+[.M103])) -> -12479926.62 | O103: 132496 | P103: 118496472.7 | Q103: =of:=VLOOKUP([.$A103];[$'FY 2024 TABLE 15'.$A$11:.$C$144];3;0) -> 5528.54 | S103: =of:=VLOOKUP([.A103];[.$Z$3:.$AB$138];3;0) -> 8241875 | T103: =of:=VLOOKUP([.$A103];[.$AD$3:.$AF$138];3;0) -> 8981451.589 | Z103: 107 | AA103: COVINGTON | AB103: 0 | AD103: 107 | AE103: COVINGTON | AF103: 0 | AI103: 107 | AJ103: COVINGTON | AK103: 0 | AL103: 0
A104: 109 | B104: 9463368.23 | C104: 0 | D104: 0 | E104: 0 | F104: 0 | G104: =of:=SUM([.B104]+[.C104]-[.D104]-[.E104]-[.F104]) -> 9463368.23 | H104: 3457469.62 | I104: 1732588.84 | J104: 0 | K104: 0 | L104: 0 | M104: =of:=SUM([.I104]+[.J104]-[.K104]-[.L104]) -> 1732588.84 | N104: =of:=SUM([.P104]-([.G104]+[.H104]+[.M104])) -> 53136564.34 | O104: 0 | P104: 67789991.03 | Q104: =of:=VLOOKUP([.$A104];[$'FY 2024 TABLE 15'.$A$11:.$C$144];3;0) -> 2631.12 | S104: =of:=VLOOKUP([.A104];[.$Z$3:.$AB$138];3;0) -> 3481027.001 | T104: =of:=VLOOKUP([.$A104];[.$AD$3:.$AF$138];3;0) -> 3861153.498 | Z104: 108 | AA104: DANVILLE | AB104: 8241875 | AD104: 108 | AE104: DANVILLE | AF104: 8981451.589 | AI104: 108 | AJ104: DANVILLE | AK104: 138358 | AL104: 99144
A105: 110 | B105: 22152571.28 | C105: 0 | D105: 0 | E105: 781319.17 | F105: 0 | G105: =of:=SUM([.B105]+[.C105]-[.D105]-[.E105]-[.F105]) -> 21371252.11 | H105: 4841825.26 | I105: 12488355.18 | J105: 0 | K105: 0 | L105: 507181.99 | M105: =of:=SUM([.I105]+[.J105]-[.K105]-[.L105]) -> 11981173.19 | N105: =of:=SUM([.P105]-([.G105]+[.H105]+[.M105])) -> 29693568.68 | O105: 109000 | P105: 67887819.24 | Q105: =of:=VLOOKUP([.$A105];[$'FY 2024 TABLE 15'.$A$11:.$C$144];3;0) -> 3489.61 | S105: =of:=VLOOKUP([.A105];[.$Z$3:.$AB$138];3;0) -> 4925534.805 | T105: =of:=VLOOKUP([.$A105];[.$AD$3:.$AF$138];3;0) -> 5143739.613 | Z105: 109 | AA105: FALLS CHURCH | AB105: 3481027.001 | AD105: 109 | AE105: FALLS CHURCH | AF105: 3861153.498 | AI105: 109 | AJ105: FALLS CHURCH | AK105: 0 | AL105: 12356
A106: 111 | B106: 12695014.09 | C106: 0 | D106: 350759.22 | E106: 0 | F106: 0 | G106: =of:=SUM([.B106]+[.C106]-[.D106]-[.E106]-[.F106]) -> 12344254.87 | H106: 1462158.64 | I106: 3829385.54 | J106: 0 | K106: 0 | L106: 0 | M106: =of:=SUM([.I106]+[.J106]-[.K106]-[.L106]) -> 3829385.54 | N106: =of:=SUM([.P106]-([.G106]+[.H106]+[.M106])) -> 5146294.67 | O106: 228881.74 | P106: 22782093.72 | Q106: =of:=VLOOKUP([.$A106];[$'FY 2024 TABLE 15'.$A$11:.$C$144];3;0) -> 1417.03 | S106: =of:=VLOOKUP([.A106];[.$Z$3:.$AB$138];3;0) -> 1419750.963 | T106: =of:=VLOOKUP([.$A106];[.$AD$3:.$AF$138];3;0) -> 1576163.267 | Z106: 110 | AA106: FREDERICKSBURG | AB106: 4925534.805 | AD106: 110 | AE106: FREDERICKSBURG | AF106: 5143739.613 | AI106: 110 | AJ106: FREDERICKSBURG | AK106: 12117 | AL106: 0
A107: 112 | B107: 163633706.6 | C107: 7743398.29 | D107: 17921781.93 | E107: 2558194.45 | F107: 597422.82 | G107: =of:=SUM([.B107]+[.C107]-[.D107]-[.E107]-[.F107]) -> 150299705.7 | H107: 24957064.98 | I107: 54166546.74 | J107: 0 | K107: 0 | L107: 450779.17 | M107: =of:=SUM([.I107]+[.J107]-[.K107]-[.L107]) -> 53715767.57 | N107: =of:=SUM([.P107]-([.G107]+[.H107]+[.M107])) -> 91774855.34 | O107: 541702 | P107: 320747393.6 | Q107: =of:=VLOOKUP([.$A107];[$'FY 2024 TABLE 15'.$A$11:.$C$144];3;0) -> 19611.6 | S107: =of:=VLOOKUP([.A107];[.$Z$3:.$AB$138];3;0) -> 25543677.11 | T107: =of:=VLOOKUP([.$A107];[.$AD$3:.$AF$138];3;0) -> 27649832.94 | Z107: 111 | AA107: GALAX | AB107: 1419750.963 | AD107: 111 | AE107: GALAX | AF107: 1576163.267 | AI107: 111 | AJ107: GALAX | AK107: 35108 | AL107: 25535
A108: 113 | B108: 56670053.23 | C108: 0 | D108: 0 | E108: 0 | F108: 0 | G108: =of:=SUM([.B108]+[.C108]-[.D108]-[.E108]-[.F108]) -> 56670053.23 | H108: 8455384.46 | I108: 15380873.34 | J108: 0 | K108: 0 | L108: 419467.99 | M108: =of:=SUM([.I108]+[.J108]-[.K108]-[.L108]) -> 14961405.35 | N108: =of:=SUM([.P108]-([.G108]+[.H108]+[.M108])) -> 34705582.59 | O108: 0 | P108: 114792425.6 | Q108: =of:=VLOOKUP([.$A108];[$'FY 2024 TABLE 15'.$A$11:.$C$144];3;0) -> 6801.6 | S108: =of:=VLOOKUP([.A108];[.$Z$3:.$AB$138];3;0) -> 8757463.105 | T108: =of:=VLOOKUP([.$A108];[.$AD$3:.$AF$138];3;0) -> 8748152.635 | Z108: 112 | AA108: HAMPTON | AB108: 25543677.11 | AD108: 112 | AE108: HAMPTON | AF108: 27649832.94 | AI108: 112 | AJ108: HAMPTON | AK108: 94679 | AL108: 62869
A109: 114 | B109: 40384503.23 | C109: 5249211.38 | D109: 6648240.05 | E109: 815959.87 | F109: 0 | G109: =of:=SUM([.B109]+[.C109]-[.D109]-[.E109]-[.F109]) -> 38169514.69 | H109: 5023482.38 | I109: 13581382.28 | J109: 0 | K109: 0 | L109: 72581.59 | M109: =of:=SUM([.I109]+[.J109]-[.K109]-[.L109]) -> 13508800.69 | N109: =of:=SUM([.P109]-([.G109]+[.H109]+[.M109])) -> 12347600.83 | O109: 0 | P109: 69049398.59 | Q109: =of:=VLOOKUP([.$A109];[$'FY 2024 TABLE 15'.$A$11:.$C$144];3;0) -> 3895.97 | S109: =of:=VLOOKUP([.A109];[.$Z$3:.$AB$138];3;0) -> 4967513.794 | T109: =of:=VLOOKUP([.$A109];[.$AD$3:.$AF$138];3;0) -> 5403828.877 | Z109: 113 | AA109: HARRISONBURG | AB109: 8757463.105 | AD109: 113 | AE109: HARRISONBURG | AF109: 8748152.635 | AI109: 113 | AJ109: HARRISONBURG | AK109: 0 | AL109: 37715
A110: 115 | B110: 58208061.06 | C110: 0 | D110: 0 | E110: 88827.53 | F110: 0 | G110: =of:=SUM([.B110]+[.C110]-[.D110]-[.E110]-[.F110]) -> 58119233.53 | H110: 12951896.7 | I110: 32524762.02 | J110: 0 | K110: 0 | L110: 349264.03 | M110: =of:=SUM([.I110]+[.J110]-[.K110]-[.L110]) -> 32175497.99 | N110: =of:=SUM([.P110]-([.G110]+[.H110]+[.M110])) -> 34950140.45 | O110: 0 | P110: 138196768.7 | Q110: =of:=VLOOKUP([.$A110];[$'FY 2024 TABLE 15'.$A$11:.$C$144];3;0) -> 7667.56 | S110: =of:=VLOOKUP([.A110];[.$Z$3:.$AB$138];3;0) -> 12947827.4 | T110: =of:=VLOOKUP([.$A110];[.$AD$3:.$AF$138];3;0) -> 13909752.45 | Z110: 114 | AA110: HOPEWELL | AB110: 4967513.794 | AD110: 114 | AE110: HOPEWELL | AF110: 5403828.877 | AI110: 114 | AJ110: HOPEWELL | AK110: 55475 | AL110: 154561
A111: 116 | B111: 18850308.5 | C111: 270788 | D111: 0 | E111: 0 | F111: 0 | G111: =of:=SUM([.B111]+[.C111]-[.D111]-[.E111]-[.F111]) -> 19121096.5 | H111: 2658574.06 | I111: 8237154.68 | J111: 51631.31 | K111: 0 | L111: 0 | M111: =of:=SUM([.I111]+[.J111]-[.K111]-[.L111]) -> 8288785.99 | N111: =of:=SUM([.P111]-([.G111]+[.H111]+[.M111])) -> 5956564.29 | O111: 37903.95 | P111: 36025020.84 | Q111: =of:=VLOOKUP([.$A111];[$'FY 2024 TABLE 15'.$A$11:.$C$144];3;0) -> 1813.4 | S111: =of:=VLOOKUP([.A111];[.$Z$3:.$AB$138];3;0) -> 2652211.049 | T111: =of:=VLOOKUP([.$A111];[.$AD$3:.$AF$138];3;0) -> 2924608.894 | Z111: 115 | AA111: LYNCHBURG | AB111: 12947827.4 | AD111: 115 | AE111: LYNCHBURG | AF111: 13909752.45 | AI111: 115 | AJ111: LYNCHBURG | AK111: 212512 | AL111: 201484
A112: 117 | B112: 235655256 | C112: 6093889.78 | D112: 6135535.37 | E112: 0 | F112: 0 | G112: =of:=SUM([.B112]+[.C112]-[.D112]-[.E112]-[.F112]) -> 235613610.4 | H112: 35642470.74 | I112: 107362712.7 | J112: 0 | K112: 0 | L112: 4909.91 | M112: =of:=SUM([.I112]+[.J112]-[.K112]-[.L112]) -> 107357802.8 | N112: =of:=SUM([.P112]-([.G112]+[.H112]+[.M112])) -> 121589534.6 | O112: 0 | P112: 500203418.5 | Q112: =of:=VLOOKUP([.$A112];[$'FY 2024 TABLE 15'.$A$11:.$C$144];3;0) -> 26035.99 | S112: =of:=VLOOKUP([.A112];[.$Z$3:.$AB$138];3;0) -> 36337659.41 | T112: =of:=VLOOKUP([.$A112];[.$AD$3:.$AF$138];3;0) -> 38353678.24 | Z112: 116 | AA112: MARTINSVILLE | AB112: 2652211.049 | AD112: 116 | AE112: MARTINSVILLE | AF112: 2924608.894 | AI112: 116 | AJ112: MARTINSVILLE | AK112: 100620 | AL112: 112104
A113: 118 | B113: 218883838.4 | C113: 0 | D113: 0 | E113: 1512200.57 | F113: 0 | G113: =of:=SUM([.B113]+[.C113]-[.D113]-[.E113]-[.F113]) -> 217371637.8 | H113: 37371632.62 | I113: 130013422.3 | J113: 0 | K113: 0 | L113: 38628036.81 | M113: =of:=SUM([.I113]+[.J113]-[.K113]-[.L113]) -> 91385385.48 | N113: =of:=SUM([.P113]-([.G113]+[.H113]+[.M113])) -> 118971868 | O113: -505945.43 | P113: 465100523.9 | Q113: =of:=VLOOKUP([.$A113];[$'FY 2024 TABLE 15'.$A$11:.$C$144];3;0) -> 26846.02 | S113: =of:=VLOOKUP([.A113];[.$Z$3:.$AB$138];3;0) -> 38308519.16 | T113: =of:=VLOOKUP([.$A113];[.$AD$3:.$AF$138];3;0) -> 42160134.86 | Z113: 117 | AA113: NEWPORT NEWS | AB113: 36337659.41 | AD113: 117 | AE113: NEWPORT NEWS | AF113: 38353678.24 | AI113: 117 | AJ113: NEWPORT NEWS | AK113: 1088442 | AL113: 66349
A114: 119 | B114: 7820890.14 | C114: 282424.72 | D114: 832269.56 | E114: 0 | F114: 0 | G114: =of:=SUM([.B114]+[.C114]-[.D114]-[.E114]-[.F114]) -> 7271045.3 | H114: 889511.5 | I114: 2339763.95 | J114: 0 | K114: 0 | L114: 0 | M114: =of:=SUM([.I114]+[.J114]-[.K114]-[.L114]) -> 2339763.95 | N114: =of:=SUM([.P114]-([.G114]+[.H114]+[.M114])) -> 2787049.33 | O114: 0 | P114: 13287370.08 | Q114: =of:=VLOOKUP([.$A114];[$'FY 2024 TABLE 15'.$A$11:.$C$144];3;0) -> 816.3 | S114: =of:=VLOOKUP([.A114];[.$Z$3:.$AB$138];3;0) -> 852496.4085 | T114: =of:=VLOOKUP([.$A114];[.$AD$3:.$AF$138];3;0) -> 868452.5648 | Z114: 118 | AA114: NORFOLK | AB114: 38308519.16 | AD114: 118 | AE114: NORFOLK | AF114: 42160134.86 | AI114: 118 | AJ114: NORFOLK | AK114: 210420 | AL114: 297543
A115: 120 | B115: 45164312.26 | C115: 0 | D115: 0 | E115: 2615566.62 | F115: 0 | G115: =of:=SUM([.B115]+[.C115]-[.D115]-[.E115]-[.F115]) -> 42548745.64 | H115: 5097705.72 | I115: 16365158.59 | J115: 0 | K115: 0 | L115: 39134.41 | M115: =of:=SUM([.I115]+[.J115]-[.K115]-[.L115]) -> 16326024.18 | N115: =of:=SUM([.P115]-([.G115]+[.H115]+[.M115])) -> 15783056.51 | O115: 0 | P115: 79755532.05 | Q115: =of:=VLOOKUP([.$A115];[$'FY 2024 TABLE 15'.$A$11:.$C$144];3;0) -> 4500.62 | S115: =of:=VLOOKUP([.A115];[.$Z$3:.$AB$138];3;0) -> 5672545.546 | T115: =of:=VLOOKUP([.$A115];[.$AD$3:.$AF$138];3;0) -> 6481022.611 | Z115: 119 | AA115: NORTON | AB115: 852496.4085 | AD115: 119 | AE115: NORTON | AF115: 868452.5648 | AI115: 119 | AJ115: NORTON | AK115: 72060 | AL115: 135522
A116: 121 | B116: 120456541 | C116: 0 | D116: 0 | E116: 1927355.06 | F116: 1205970.75 | G116: =of:=SUM([.B116]+[.C116]-[.D116]-[.E116]-[.F116]) -> 117323215.2 | H116: 18601828.72 | I116: 54167047.86 | J116: 0 | K116: 0 | L116: 677586.02 | M116: =of:=SUM([.I116]+[.J116]-[.K116]-[.L116]) -> 53489461.84 | N116: =of:=SUM([.P116]-([.G116]+[.H116]+[.M116])) -> 36527594.63 | O116: 0 | P116: 225942100.4 | Q116: =of:=VLOOKUP([.$A116];[$'FY 2024 TABLE 15'.$A$11:.$C$144];3;0) -> 12849.84 | S116: =of:=VLOOKUP([.A116];[.$Z$3:.$AB$138];3;0) -> 19000336.62 | T116: =of:=VLOOKUP([.$A116];[.$AD$3:.$AF$138];3;0) -> 19750040.14 | Z116: 120 | AA116: PETERSBURG | AB116: 5672545.546 | AD116: 120 | AE116: PETERSBURG | AF116: 6481022.611 | AI116: 120 | AJ116: PETERSBURG | AK116: 73950 | AL116: 378115
A117: 122 | B117: 23340605.08 | C117: 0 | D117: 0 | E117: 116680.07 | F117: 0 | G117: =of:=SUM([.B117]+[.C117]-[.D117]-[.E117]-[.F117]) -> 23223925.01 | H117: 2133017.08 | I117: 3213394.79 | J117: 0 | K117: 0 | L117: 244899.03 | M117: =of:=SUM([.I117]+[.J117]-[.K117]-[.L117]) -> 2968495.76 | N117: =of:=SUM([.P117]-([.G117]+[.H117]+[.M117])) -> 8300029.49 | O117: 140000 | P117: 36625467.34 | Q117: =of:=VLOOKUP([.$A117];[$'FY 2024 TABLE 15'.$A$11:.$C$144];3;0) -> 3186.52 | S117: =of:=VLOOKUP([.A117];[.$Z$3:.$AB$138];3;0) -> 2064505.191 | T117: =of:=VLOOKUP([.$A117];[.$AD$3:.$AF$138];3;0) -> 2034947.334 | Z117: 121 | AA117: PORTSMOUTH | AB117: 19000336.62 | AD117: 121 | AE117: PORTSMOUTH | AF117: 19750040.14 | AI117: 121 | AJ117: PORTSMOUTH | AK117: 116090 | AL117: 115489
A118: 123 | B118: 156347549 | C118: 0 | D118: 0 | E118: 9436233.43 | F118: 0 | G118: =of:=SUM([.B118]+[.C118]-[.D118]-[.E118]-[.F118]) -> 146911315.6 | H118: 31282398.58 | I118: 105647269.5 | J118: 0 | K118: 0 | L118: 3274357.91 | M118: =of:=SUM([.I118]+[.J118]-[.K118]-[.L118]) -> 102372911.6 | N118: =of:=SUM([.P118]-([.G118]+[.H118]+[.M118])) -> 208309278.3 | O118: 0 | P118: 488875904 | Q118: =of:=VLOOKUP([.$A118];[$'FY 2024 TABLE 15'.$A$11:.$C$144];3;0) -> 21180.55 | S118: =of:=VLOOKUP([.A118];[.$Z$3:.$AB$138];3;0) -> 31401360.76 | T118: =of:=VLOOKUP([.$A118];[.$AD$3:.$AF$138];3;0) -> 33696629.27 | Z118: 122 | AA118: RADFORD | AB118: 2064505.191 | AD118: 122 | AE118: RADFORD | AF118: 2034947.334 | AI118: 122 | AJ118: RADFORD | AK118: 29413 | AL118: 26310
A119: 124 | B119: 129236102.7 | C119: 0 | D119: 0 | E119: 137682 | F119: 1017637 | G119: =of:=SUM([.B119]+[.C119]-[.D119]-[.E119]-[.F119]) -> 128080783.7 | H119: 18693776.16 | I119: 47170590.54 | J119: 0 | K119: 0 | L119: 5715957.94 | M119: =of:=SUM([.I119]+[.J119]-[.K119]-[.L119]) -> 41454632.6 | N119: =of:=SUM([.P119]-([.G119]+[.H119]+[.M119])) -> 78029664.6 | O119: 0 | P119: 266258857.1 | Q119: =of:=VLOOKUP([.$A119];[$'FY 2024 TABLE 15'.$A$11:.$C$144];3;0) -> 13609.98 | S119: =of:=VLOOKUP([.A119];[.$Z$3:.$AB$138];3;0) -> 18892698.18 | T119: =of:=VLOOKUP([.$A119];[.$AD$3:.$AF$138];3;0) -> 20571609.66 | Z119: 123 | AA119: RICHMOND CITY | AB119: 31401360.76 | AD119: 123 | AE119: RICHMOND CITY | AF119: 33696629.27 | AI119: 123 | AJ119: RICHMOND CITY | AK119: 81260 | AL119: 1046008
A120: 126 | B120: 18510520.4 | C120: 0 | D120: 0 | E120: 487618.37 | F120: 0 | G120: =of:=SUM([.B120]+[.C120]-[.D120]-[.E120]-[.F120]) -> 18022902.03 | H120: 4264965.88 | I120: 7829951.44 | J120: 0 | K120: 0 | L120: 2583064.85 | M120: =of:=SUM([.I120]+[.J120]-[.K120]-[.L120]) -> 5246886.59 | N120: =of:=SUM([.P120]-([.G120]+[.H120]+[.M120])) -> 17517801.95 | O120: 62889.78 | P120: 45052556.45 | Q120: =of:=VLOOKUP([.$A120];[$'FY 2024 TABLE 15'.$A$11:.$C$144];3;0) -> 2656.99 | S120: =of:=VLOOKUP([.A120];[.$Z$3:.$AB$138];3;0) -> 4465918.685 | T120: =of:=VLOOKUP([.$A120];[.$AD$3:.$AF$138];3;0) -> 4617979.769 | Z120: 124 | AA120: ROANOKE CITY | AB120: 18892698.18 | AD120: 124 | AE120: ROANOKE CITY | AF120: 20571609.66 | AI120: 124 | AJ120: ROANOKE CITY | AK120: 252358 | AL120: 292838
A121: 127 | B121: 102235909.2 | C121: 0 | D121: 0 | E121: 549572.55 | F121: 0 | G121: =of:=SUM([.B121]+[.C121]-[.D121]-[.E121]-[.F121]) -> 101686336.7 | H121: 20436643.18 | I121: 33711090.59 | J121: 0 | K121: 0 | L121: 168952.31 | M121: =of:=SUM([.I121]+[.J121]-[.K121]-[.L121]) -> 33542138.28 | N121: =of:=SUM([.P121]-([.G121]+[.H121]+[.M121])) -> 73086475.67 | O121: 91503.03 | P121: 228751593.8 | Q121: =of:=VLOOKUP([.$A121];[$'FY 2024 TABLE 15'.$A$11:.$C$144];3;0) -> 14432.37 | S121: =of:=VLOOKUP([.A121];[.$Z$3:.$AB$138];3;0) -> 21336090.67 | T121: =of:=VLOOKUP([.$A121];[.$AD$3:.$AF$138];3;0) -> 22506093.33 | Z121: 126 | AA121: STAUNTON | AB121: 4465918.685 | AD121: 126 | AE121: STAUNTON | AF121: 4617979.769 | AI121: 126 | AJ121: STAUNTON | AK121: 0 | AL121: 156536
A122: 128 | B122: 399972688.7 | C122: 3944180.73 | D122: 18231349.09 | E122: 0 | F122: 0 | G122: =of:=SUM([.B122]+[.C122]-[.D122]-[.E122]-[.F122]) -> 385685520.3 | H122: 90678102.66 | I122: 127296172.2 | J122: 0 | K122: 0 | L122: 13904883.9 | M122: =of:=SUM([.I122]+[.J122]-[.K122]-[.L122]) -> 113391288.3 | N122: =of:=SUM([.P122]-([.G122]+[.H122]+[.M122])) -> 466779922.7 | O122: 82916.48 | P122: 1056534834 | Q122: =of:=VLOOKUP([.$A122];[$'FY 2024 TABLE 15'.$A$11:.$C$144];3;0) -> 64755.16 | S122: =of:=VLOOKUP([.A122];[.$Z$3:.$AB$138];3;0) -> 91211733.79 | T122: =of:=VLOOKUP([.$A122];[.$AD$3:.$AF$138];3;0) -> 94290730.27 | Z122: 127 | AA122: SUFFOLK | AB122: 21336090.67 | AD122: 127 | AE122: SUFFOLK | AF122: 22506093.33 | AI122: 127 | AJ122: SUFFOLK | AK122: 63829 | AL122: 183997
A123: 130 | B123: 25592835.98 | C123: 0 | D123: 0 | E123: 3899467.15 | F123: 211158.99 | G123: =of:=SUM([.B123]+[.C123]-[.D123]-[.E123]-[.F123]) -> 21482209.84 | H123: 4268595.26 | I123: 6478131.11 | J123: 0 | K123: 0 | L123: 0 | M123: =of:=SUM([.I123]+[.J123]-[.K123]-[.L123]) -> 6478131.11 | N123: =of:=SUM([.P123]-([.G123]+[.H123]+[.M123])) -> 22389436.89 | O123: 2700.97 | P123: 54618373.1 | Q123: =of:=VLOOKUP([.$A123];[$'FY 2024 TABLE 15'.$A$11:.$C$144];3;0) -> 2998.03 | S123: =of:=VLOOKUP([.A123];[.$Z$3:.$AB$138];3;0) -> 4301231.879 | T123: =of:=VLOOKUP([.$A123];[.$AD$3:.$AF$138];3;0) -> 4745233.744 | Z123: 128 | AA123: VIRGINIA BEACH | AB123: 91211733.79 | AD123: 128 | AE123: VIRGINIA BEACH | AF123: 94290730.27 | AI123: 128 | AJ123: VIRGINIA BEACH | AK123: 198560 | AL123: 575488
A124: 131 | B124: 57908950.05 | C124: 0 | D124: 0 | E124: 18216.03 | F124: 0 | G124: =of:=SUM([.B124]+[.C124]-[.D124]-[.E124]-[.F124]) -> 57890734.02 | H124: 16366879.14 | I124: 14490173.5 | J124: 0 | K124: 0 | L124: 606619.09 | M124: =of:=SUM([.I124]+[.J124]-[.K124]-[.L124]) -> 13883554.41 | N124: =of:=SUM([.P124]-([.G124]+[.H124]+[.M124])) -> 94983190.64 | O124: 151044801.2 | P124: 183124358.2 | Q124: =of:=VLOOKUP([.$A124];[$'FY 2024 TABLE 15'.$A$11:.$C$144];3;0) -> 11572.65 | S124: =of:=VLOOKUP([.A124];[.$Z$3:.$AB$138];3;0)+VLOOKUP(47;[.$Z$3:.$AB$138];3;0) -> 16521423.45 | T124: =of:=VLOOKUP([.$A124];[.$AD$3:.$AF$138];3;0)+VLOOKUP(47;[.$AD$3:.$AF$138];3;0) -> 17427096.97 | Z124: 130 | AA124: WAYNESBORO | AB124: 4301231.879 | AD124: 130 | AE124: WAYNESBORO | AF124: 4745233.744 | AI124: 130 | AJ124: WAYNESBORO | AK124: 36935 | AL124: 152929
A125: 132 | B125: 31153951.37 | C125: 0 | D125: 0 | E125: 0 | F125: 0 | G125: =of:=SUM([.B125]+[.C125]-[.D125]-[.E125]-[.F125]) -> 31153951.37 | H125: 5316792.66 | I125: 17095770.7 | J125: 0 | K125: 0 | L125: 3714869.46 | M125: =of:=SUM([.I125]+[.J125]-[.K125]-[.L125]) -> 13380901.24 | N125: =of:=SUM([.P125]-([.G125]+[.H125]+[.M125])) -> 34705673.46 | O125: 0 | P125: 84557318.73 | Q125: =of:=VLOOKUP([.$A125];[$'FY 2024 TABLE 15'.$A$11:.$C$144];3;0) -> 4206.63 | S125: =of:=VLOOKUP([.A125];[.$Z$3:.$AB$138];3;0) -> 5471261.672 | T125: =of:=VLOOKUP([.$A125];[.$AD$3:.$AF$138];3;0) -> 5956379.031 | Z125: 131 | AA125: WILLIAMSBURG | AB125: 1565062.851 | AD125: 131 | AE125: WILLIAMSBURG | AF125: 1733556.341 | AI125: 131 | AJ125: WILLIAMSBURG | AK125: 0 | AL125: 49744 | AM125: includes James City County
A126: 134 | B126: 0 | C126: 0 | D126: 0 | E126: 0 | F126: 0 | G126: =of:=SUM([.B126]+[.C126]-[.D126]-[.E126]-[.F126]) -> 0 | I126: 0 | J126: 0 | K126: 0 | L126: 0 | M126: =of:=SUM([.I126]+[.J126]-[.K126]-[.L126]) -> 0 | N126: 0 | O126: 0 | P126: 0 | T126: 0 | Z126: 132 | AA126: WINCHESTER | AB126: 5471261.672 | AD126: 132 | AE126: WINCHESTER | AF126: 5956379.031 | AI126: 132 | AJ126: WINCHESTER | AK126: 0 | AL126: 50406
A127: 135 | B127: 12597403.31 | C127: 162350 | D127: 225394.1 | E127: 0 | F127: 0 | G127: =of:=SUM([.B127]+[.C127]-[.D127]-[.E127]-[.F127]) -> 12534359.21 | H127: 1667677.7 | I127: 6111092.35 | J127: 0 | K127: 0 | L127: 3027143.83 | M127: =of:=SUM([.I127]+[.J127]-[.K127]-[.L127]) -> 3083948.52 | N127: =of:=SUM([.P127]-([.G127]+[.H127]+[.M127])) -> 4255747.39 | O127: 0 | P127: 21541732.82 | Q127: =of:=VLOOKUP([.$A127];[$'FY 2024 TABLE 15'.$A$11:.$C$144];3;0) -> 1038.85 | S127: =of:=VLOOKUP([.A127];[.$Z$3:.$AB$138];3;0) -> 1699610.895 | T127: =of:=VLOOKUP([.$A127];[.$AD$3:.$AF$138];3;0) -> 1849647.686 | Z127: 134 | AA127: FAIRFAX CITY | AB127: 4246336.277 | AD127: 134 | AE127: FAIRFAX CITY | AF127: 4644770.08 | AI127: 134 | AJ127: FAIRFAX CITY | AK127: 0 | AL127: 11120 | AM127: included in Fairfax County
A128: 136 | B128: 279531928.9 | C128: 0 | D128: 0 | E128: 1510852.41 | F128: 0 | G128: =of:=SUM([.B128]+[.C128]-[.D128]-[.E128]-[.F128]) -> 278021076.5 | H128: 56177093.5 | I128: 82055025.86 | J128: 0 | K128: 0 | L128: 13090088.94 | M128: =of:=SUM([.I128]+[.J128]-[.K128]-[.L128]) -> 68964936.92 | N128: =of:=SUM([.P128]-([.G128]+[.H128]+[.M128])) -> 261347417.6 | O128: 0 | P128: 664510524.5 | Q128: =of:=VLOOKUP([.$A128];[$'FY 2024 TABLE 15'.$A$11:.$C$144];3;0) -> 40643.27 | S128: =of:=VLOOKUP([.A128];[.$Z$3:.$AB$138];3;0) -> 56969794.71 | T128: =of:=VLOOKUP([.$A128];[.$AD$3:.$AF$138];3;0) -> 59309282.36 | Z128: 135 | AA128: FRANKLIN CITY | AB128: 1699610.895 | AD128: 135 | AE128: FRANKLIN CITY | AF128: 1849647.686 | AI128: 135 | AJ128: FRANKLIN CITY | AK128: 0 | AL128: 19766
A129: 137 | B129: 4096863.13 | C129: 400923.17 | D129: 400923.17 | E129: 0 | F129: 0 | G129: =of:=SUM([.B129]+[.C129]-[.D129]-[.E129]-[.F129]) -> 4096863.13 | H129: 808296.66 | I129: 493848.43 | J129: 0 | K129: 0 | L129: 0 | M129: =of:=SUM([.I129]+[.J129]-[.K129]-[.L129]) -> 493848.43 | N129: =of:=SUM([.P129]-([.G129]+[.H129]+[.M129])) -> 3817814.84 | O129: 0 | P129: 9216823.06 | Q129: =of:=VLOOKUP([.$A129];[$'FY 2024 TABLE 15'.$A$11:.$C$144];3;0) -> 649.79 | S129: =of:=VLOOKUP([.A129];[.$Z$3:.$AB$138];3;0) -> 785760.5785 | T129: =of:=VLOOKUP([.$A129];[.$AD$3:.$AF$138];3;0) -> 826034.5732 | Z129: 136 | AA129: CHESAPEAKE CITY | AB129: 56969794.71 | AD129: 136 | AE129: CHESAPEAKE CITY | AF129: 59309282.36 | AI129: 136 | AJ129: CHESAPEAKE CITY | AK129: 165035 | AL129: 465581
A130: 138 | B130: 0 | C130: 0 | D130: 0 | E130: 0 | F130: 0 | G130: =of:=SUM([.B130]+[.C130]-[.D130]-[.E130]-[.F130]) -> 0 | I130: 0 | J130: 0 | K130: 0 | L130: 0 | M130: =of:=SUM([.I130]+[.J130]-[.K130]-[.L130]) -> 0 | N130: 0 | O130: 0 | P130: 0 | T130: 0 | Z130: 137 | AA130: LEXINGTON | AB130: 785760.5785 | AD130: 137 | AE130: LEXINGTON | AF130: 826034.5732 | AI130: 137 | AJ130: LEXINGTON | AK130: 17856 | AL130: 0
A131: 139 | B131: 28870523.83 | C131: 0 | D131: 0 | E131: 803928.97 | F131: 0 | G131: =of:=SUM([.B131]+[.C131]-[.D131]-[.E131]-[.F131]) -> 28066594.86 | H131: 4600937 | I131: 5080759.91 | J131: 0 | K131: 0 | L131: 0 | M131: =of:=SUM([.I131]+[.J131]-[.K131]-[.L131]) -> 5080759.91 | N131: =of:=SUM([.P131]-([.G131]+[.H131]+[.M131])) -> 23713389.4 | O131: 100816.8 | P131: 61461681.17 | Q131: =of:=VLOOKUP([.$A131];[$'FY 2024 TABLE 15'.$A$11:.$C$144];3;0) -> 4272 | S131: =of:=VLOOKUP([.A131];[.$Z$3:.$AB$138];3;0) -> 4501439.369 | T131: =of:=VLOOKUP([.$A131];[.$AD$3:.$AF$138];3;0) -> 4665979.076 | Z131: 138 | AA131: EMPORIA | AB131: 1269057.154 | AD131: 138 | AE131: EMPORIA | AF131: 1379700.99 | AI131: 138 | AJ131: EMPORIA | AK131: 0 | AL131: 0 | AM131: included in Greensville
A132: 140 | B132: 0 | C132: 0 | D132: 0 | E132: 0 | F132: 0 | G132: =of:=SUM([.B132]+[.C132]-[.D132]-[.E132]-[.F132]) -> 0 | I132: 0 | J132: 0 | K132: 0 | L132: 0 | M132: =of:=SUM([.I132]+[.J132]-[.K132]-[.L132]) -> 0 | N132: 0 | O132: 0 | P132: 0 | T132: 0 | Z132: 139 | AA132: SALEM | AB132: 4501439.369 | AD132: 139 | AE132: SALEM | AF132: 4665979.076 | AI132: 139 | AJ132: SALEM | AK132: 100576 | AL132: 34800
A133: 142 | B133: 12860847.61 | C133: 0 | D133: 0 | E133: 828695.9 | F133: 0 | G133: =of:=SUM([.B133]+[.C133]-[.D133]-[.E133]-[.F133]) -> 12032151.71 | H133: 2851738.1 | I133: 1645808.79 | J133: 73608.05 | K133: 65671.1 | L133: 128006.06 | M133: =of:=SUM([.I133]+[.J133]-[.K133]-[.L133]) -> 1525739.68 | N133: =of:=SUM([.P133]-([.G133]+[.H133]+[.M133])) -> 12057523.94 | O133: 34000 | P133: 28467153.43 | Q133: =of:=VLOOKUP([.$A133];[$'FY 2024 TABLE 15'.$A$11:.$C$144];3;0) -> 2021.54 | S133: =of:=VLOOKUP([.A133];[.$Z$3:.$AB$138];3;0) -> 2901932.219 | T133: =of:=VLOOKUP([.$A133];[.$AD$3:.$AF$138];3;0) -> 2952515.468 | Z133: 140 | AA133: BEDFORD CITY | AB133: 0 | AD133: 140 | AE133: BEDFORD CITY | AF133: 0 | AI133: 140 | AJ133: BEDFORD CITY | AM133: included in Bedford County
A134: 143 | B134: 65116573.56 | C134: 0 | D134: 0 | E134: 0 | F134: 0 | G134: =of:=SUM([.B134]+[.C134]-[.D134]-[.E134]-[.F134]) -> 65116573.56 | H134: 9571052.38 | I134: 10435880.93 | J134: 0 | K134: 0 | L134: 223806.4 | M134: =of:=SUM([.I134]+[.J134]-[.K134]-[.L134]) -> 10212074.53 | N134: =of:=SUM([.P134]-([.G134]+[.H134]+[.M134])) -> 54831349.98 | O134: 0 | P134: 139731050.4 | Q134: =of:=VLOOKUP([.$A134];[$'FY 2024 TABLE 15'.$A$11:.$C$144];3;0) -> 7519.68 | S134: =of:=VLOOKUP([.A134];[.$Z$3:.$AB$138];3;0) -> 9847840.456 | T134: =of:=VLOOKUP([.$A134];[.$AD$3:.$AF$138];3;0) -> 10502917.97 | Z134: 142 | AA134: POQUOSON | AB134: 2901932.219 | AD134: 142 | AE134: POQUOSON | AF134: 2952515.468 | AI134: 142 | AJ134: POQUOSON | AK134: 50600 | AL134: 43998
A135: 144 | B135: 34265502.37 | C135: 0 | D135: 0 | E135: 0 | F135: 0 | G135: =of:=SUM([.B135]+[.C135]-[.D135]-[.E135]-[.F135]) -> 34265502.37 | H135: 4082164.44 | I135: 5021705.24 | J135: 0 | K135: 0 | L135: 0 | M135: =of:=SUM([.I135]+[.J135]-[.K135]-[.L135]) -> 5021705.24 | N135: =of:=SUM([.P135]-([.G135]+[.H135]+[.M135])) -> 11989072.63 | O135: 0 | P135: 55358444.68 | Q135: =of:=VLOOKUP([.$A135];[$'FY 2024 TABLE 15'.$A$11:.$C$144];3;0) -> 3424.57 | S135: =of:=VLOOKUP([.A135];[.$Z$3:.$AB$138];3;0) -> 4088107.777 | T135: =of:=VLOOKUP([.$A135];[.$AD$3:.$AF$138];3;0) -> 4073243.456 | Z135: 143 | AA135: MANASSAS CITY | AB135: 9847840.456 | AD135: 143 | AE135: MANASSAS CITY | AF135: 10502917.97 | AI135: 143 | AJ135: MANASSAS CITY | AK135: 27948 | AL135: 55681
A136: 202 | B136: 6001387.25 | C136: 759841 | D136: 759841 | E136: 0 | F136: 0 | G136: =of:=SUM([.B136]+[.C136]-[.D136]-[.E136]-[.F136]) -> 6001387.25 | H136: 699745.73 | I136: 2399907.21 | J136: 0 | K136: 513872.88 | L136: 299413.17 | M136: =of:=SUM([.I136]+[.J136]-[.K136]-[.L136]) -> 1586621.16 | N136: =of:=SUM([.P136]-([.G136]+[.H136]+[.M136])) -> 2585375.76 | O136: 0 | P136: 10873129.9 | Q136: =of:=VLOOKUP([.$A136];[$'FY 2024 TABLE 15'.$A$11:.$C$144];3;0) -> 598.04 | S136: =of:=VLOOKUP([.A136];[.$Z$3:.$AB$138];3;0) -> 686733.2179 | T136: =of:=VLOOKUP([.$A136];[.$AD$3:.$AF$138];3;0) -> 741198.59 | Z136: 144 | AA136: MANASSAS PARK | AB136: 4088107.777 | AD136: 144 | AE136: MANASSAS PARK | AF136: 4073243.456 | AI136: 144 | AJ136: MANASSAS PARK | AK136: 31896 | AL136: 20950
A137: 207 | B137: 7256459.2 | C137: 0 | D137: 0 | E137: 0 | F137: 0 | G137: =of:=SUM([.B137]+[.C137]-[.D137]-[.E137]-[.F137]) -> 7256459.2 | H137: 883344.96 | I137: 602703.24 | J137: 0 | K137: 0 | L137: 0 | M137: =of:=SUM([.I137]+[.J137]-[.K137]-[.L137]) -> 602703.24 | N137: =of:=SUM([.P137]-([.G137]+[.H137]+[.M137])) -> 4852100.56 | O137: 0 | P137: 13594607.96 | Q137: =of:=VLOOKUP([.$A137];[$'FY 2024 TABLE 15'.$A$11:.$C$144];3;0) -> 842.49 | S137: =of:=VLOOKUP([.A137];[.$Z$3:.$AB$138];3;0) -> 880482.4017 | T137: =of:=VLOOKUP([.$A137];[.$AD$3:.$AF$138];3;0) -> 958869.8627 | Z137: 202 | AA137: COLONIAL BEACH | AB137: 686733.2179 | AD137: 202 | AE137: COLONIAL BEACH | AF137: 741198.59 | AI137: 202 | AJ137: COLONIAL BEACH | AK137: 30575 | AL137: 22944
B138: =of:=SUM([.B2:.B137]) -> 8304815186 | C138: =of:=SUM([.C2:.C137]) -> 51651041.41 | D138: =of:=SUM([.D2:.D137]) -> 116056366.3 | E138: =of:=SUM([.E2:.E137]) -> 170871384.6 | F138: =of:=SUM([.F2:.F137]) -> 20409922.54 | G138: =of:=SUM([.G2:.G137]) -> 8049128554 | H138: =of:=SUM([.H2:.H137]) -> 1737049862 | I138: =of:=SUM([.I2:.I137]) -> 2405704292 | J138: =of:=SUM([.J2:.J137]) -> 13361979.2 | K138: =of:=SUM([.K2:.K137]) -> 7911982.64 | L138: =of:=SUM([.L2:.L137]) -> 197941730.2 | M138: =of:=SUM([.M2:.M137]) -> 2213212558 | N138: =of:=SUM([.N2:.N137]) -> 1.018562508e+10 | O138: =of:=SUM([.O2:.O137]) -> 235549932.6 | P138: =of:=SUM([.P2:.P137]) -> 2.218501605e+10 | Q138: =of:=SUM([.Q2:.Q137]) -> 1257959.93 | S138: =of:=SUM([.S2:.S137]) -> 1755500000 | T138: =of:=SUM([.T1:.T137]) -> 1821500000 | Z138: 207 | AA138: WEST POINT | AB138: 880482.4017 | AD138: 207 | AE138: WEST POINT | AF138: 958869.8627 | AI138: 207 | AJ138: WEST POINT | AK138: 78518 | AL138: 0
B140: 0 | C140: 0 | D140: 0 | E140: 0 | F140: 0 | G140: 0 | H140: 0 | I140: 0 | J140: 0 | K140: 0 | L140: 0 | M140: 0 | N140: 0 | O140: 0 | P140: 0 | Q140: =of:=[.Q138]-[$'FY 2024 TABLE 15'.C146] -> 0 | AA140: State Totals: | AB140: =of:=SUM([.AB3:.AB139]) -> 1755500000 | AE140: State Totals: | AF140: =of:=SUM([.AF3:.AF139]) -> 1821500000 | AJ140: State Totals: | AK140: =of:=SUM([.AK3:.AK138]) -> 11033363 | AL140: =of:=SUM([.AL3:.AL138]) -> 21884415
